Body Name,Date Paid,Transaction Number,Amount,Supplier Name,Supplier Type,Expense Area,Cost Centre Description,Expense Type
Cambridgeshire County Council,14-Jul-17,22054098-15688720,-66418.58,Network Rail,Company,Transport and Infrastructure Policy & Funding,Transport Strategy and Policy,Capital WIP - other  -  Expenditure / Payments
Cambridgeshire County Council,26-Jul-17,23884388-15749574,-46663,Cambridge City Council,Other Public Bodies,6 - Commissioning - Quality & Transformation,OP Blocks - Grants,Supporting People - Block Gross Non-Chargeable
Cambridgeshire County Council,03-Jul-17,22986538-15627613,-17644.02,Voice Ability,Charity,1- Commissioning - Service Director,Advocacy Contract,Grants to Voluntary Bodies
Cambridgeshire County Council,06-Jul-17,23721825-15649129,-15545,St George'S Court,Care Establishment,2 - Commissioning - Older people Pool,OP Blocks - Care Placements,Nursing Independent Sector
Cambridgeshire County Council,06-Jul-17,23725154-15649140,-15545,St George'S Court,Care Establishment,2 - Commissioning - Older people Pool,OP Blocks - Care Placements,Nursing Independent Sector
Cambridgeshire County Council,06-Jul-17,23726922-15649158,-15545,St George'S Court,Care Establishment,2 - Commissioning - Older people Pool,OP Blocks - Care Placements,Nursing Independent Sector
Cambridgeshire County Council,06-Jul-17,23725247-15649207,-15545,St George'S Court,Care Establishment,2 - Commissioning - Older people Pool,OP Blocks - Care Placements,Nursing Independent Sector
Cambridgeshire County Council,06-Jul-17,23727506-15649168,-15545,St George'S Court,Care Establishment,2 - Commissioning - Older people Pool,OP Blocks - Care Placements,Nursing Independent Sector
Cambridgeshire County Council,06-Jul-17,23725065-15649147,-15545,St George'S Court,Care Establishment,2 - Commissioning - Older people Pool,OP Blocks - Care Placements,Nursing Independent Sector
Cambridgeshire County Council,06-Jul-17,23717682-15649187,-15545,St George'S Court,Care Establishment,2 - Commissioning - Older people Pool,OP Blocks - Care Placements,Nursing Independent Sector
Cambridgeshire County Council,06-Jul-17,23722583-15649136,-15545,St George'S Court,Care Establishment,2 - Commissioning - Older people Pool,OP Blocks - Care Placements,Nursing Independent Sector
Cambridgeshire County Council,06-Jul-17,23717726-15649175,-15545,St George'S Court,Care Establishment,2 - Commissioning - Older people Pool,OP Blocks - Care Placements,Nursing Independent Sector
Cambridgeshire County Council,06-Jul-17,23727636-15649173,-15545,St George'S Court,Care Establishment,2 - Commissioning - Older people Pool,OP Blocks - Care Placements,Nursing Independent Sector
Cambridgeshire County Council,06-Jul-17,23722661-15649197,-15545,St George'S Court,Care Establishment,2 - Commissioning - Older people Pool,OP Blocks - Care Placements,Nursing Independent Sector
Cambridgeshire County Council,19-Jul-17,23428596-15702081,-14229.75,Swaay Child & Adolescent Services Ltd,Care Establishment,S&C,Placements - Social Care,Agency Placements - Out County
Cambridgeshire County Council,06-Jul-17,23727003-15649163,-13324.29,St George'S Court,Care Establishment,2 - Commissioning - Older people Pool,OP Blocks - Care Placements,Nursing Independent Sector
Cambridgeshire County Council,06-Jul-17,23721790-15642153,-9980,Rheola Healthcare,Care Establishment,2 - Commissioning - Older people Pool,OP Blocks - Care Placements,Residential Independent Sector
Cambridgeshire County Council,06-Jul-17,23722602-15642162,-9980,Rheola Healthcare,Care Establishment,2 - Commissioning - Older people Pool,OP Blocks - Care Placements,Residential Independent Sector
Cambridgeshire County Council,06-Jul-17,23727580-15642178,-9980,Rheola Healthcare,Care Establishment,2 - Commissioning - Older people Pool,OP Blocks - Care Placements,Residential Independent Sector
Cambridgeshire County Council,06-Jul-17,23722692-15642194,-9980,Rheola Healthcare,Care Establishment,2 - Commissioning - Older people Pool,OP Blocks - Care Placements,Residential Independent Sector
Cambridgeshire County Council,06-Jul-17,23721842-15642156,-9980,Rheola Healthcare,Care Establishment,2 - Commissioning - Older people Pool,OP Blocks - Care Placements,Residential Independent Sector
Cambridgeshire County Council,06-Jul-17,23724944-15642169,-9980,Rheola Healthcare,Care Establishment,2 - Commissioning - Older people Pool,OP Blocks - Care Placements,Residential Independent Sector
Cambridgeshire County Council,06-Jul-17,23725148-15642165,-9980,Rheola Healthcare,Care Establishment,2 - Commissioning - Older people Pool,OP Blocks - Care Placements,Residential Independent Sector
Cambridgeshire County Council,06-Jul-17,23726953-15642174,-9980,Rheola Healthcare,Care Establishment,2 - Commissioning - Older people Pool,OP Blocks - Care Placements,Residential Independent Sector
Cambridgeshire County Council,06-Jul-17,23717700-15642181,-9980,Rheola Healthcare,Care Establishment,2 - Commissioning - Older people Pool,OP Blocks - Care Placements,Residential Independent Sector
Cambridgeshire County Council,06-Jul-17,23726950-15642171,-9980,Rheola Healthcare,Care Establishment,2 - Commissioning - Older people Pool,OP Blocks - Care Placements,Residential Independent Sector
Cambridgeshire County Council,06-Jul-17,23717530-15642184,-9980,Rheola Healthcare,Care Establishment,2 - Commissioning - Older people Pool,OP Blocks - Care Placements,Residential Independent Sector
Cambridgeshire County Council,06-Jul-17,23722614-15649223,-9234,Fitzwilliam Healthcare Ltd,Care Establishment,2 - Commissioning - Older people Pool,OP Blocks - Care Placements,Residential Independent Sector
Cambridgeshire County Council,06-Jul-17,23725163-15649225,-9234,Fitzwilliam Healthcare Ltd,Care Establishment,2 - Commissioning - Older people Pool,OP Blocks - Care Placements,Residential Independent Sector
Cambridgeshire County Council,06-Jul-17,23727689-15649239,-9234,Fitzwilliam Healthcare Ltd,Care Establishment,2 - Commissioning - Older people Pool,OP Blocks - Care Placements,Residential Independent Sector
Cambridgeshire County Council,06-Jul-17,23722589-15649220,-9234,Fitzwilliam Healthcare Ltd,Care Establishment,2 - Commissioning - Older people Pool,OP Blocks - Care Placements,Residential Independent Sector
Cambridgeshire County Council,06-Jul-17,23727642-15649242,-9234,Fitzwilliam Healthcare Ltd,Care Establishment,2 - Commissioning - Older people Pool,OP Blocks - Care Placements,Residential Independent Sector
Cambridgeshire County Council,06-Jul-17,23721849-15649214,-9234,Fitzwilliam Healthcare Ltd,Care Establishment,2 - Commissioning - Older people Pool,OP Blocks - Care Placements,Residential Independent Sector
Cambridgeshire County Council,06-Jul-17,23725126-15649233,-9234,Fitzwilliam Healthcare Ltd,Care Establishment,2 - Commissioning - Older people Pool,OP Blocks - Care Placements,Residential Independent Sector
Cambridgeshire County Council,06-Jul-17,23727560-15649240,-9234,Fitzwilliam Healthcare Ltd,Care Establishment,2 - Commissioning - Older people Pool,OP Blocks - Care Placements,Residential Independent Sector
Cambridgeshire County Council,06-Jul-17,23722538-15649218,-9234,Fitzwilliam Healthcare Ltd,Care Establishment,2 - Commissioning - Older people Pool,OP Blocks - Care Placements,Residential Independent Sector
Cambridgeshire County Council,06-Jul-17,23726931-15649235,-9234,Fitzwilliam Healthcare Ltd,Care Establishment,2 - Commissioning - Older people Pool,OP Blocks - Care Placements,Residential Independent Sector
Cambridgeshire County Council,06-Jul-17,23727688-15649238,-9234,Fitzwilliam Healthcare Ltd,Care Establishment,2 - Commissioning - Older people Pool,OP Blocks - Care Placements,Residential Independent Sector
Cambridgeshire County Council,06-Jul-17,23717698-15641608,-9150,Primrose Healthcare,Care Establishment,2 - Commissioning - Older people Pool,OP Blocks - Care Placements,Residential Independent Sector
Cambridgeshire County Council,06-Jul-17,23727579-15641606,-9150,Primrose Healthcare,Care Establishment,2 - Commissioning - Older people Pool,OP Blocks - Care Placements,Residential Independent Sector
Cambridgeshire County Council,06-Jul-17,23722626-15641615,-9150,Primrose Healthcare,Care Establishment,2 - Commissioning - Older people Pool,OP Blocks - Care Placements,Residential Independent Sector
Cambridgeshire County Council,06-Jul-17,23725274-15641623,-9150,Primrose Healthcare,Care Establishment,2 - Commissioning - Older people Pool,OP Blocks - Care Placements,Residential Independent Sector
Cambridgeshire County Council,06-Jul-17,23717585-15641610,-9150,Primrose Healthcare,Care Establishment,2 - Commissioning - Older people Pool,OP Blocks - Care Placements,Residential Independent Sector
Cambridgeshire County Council,06-Jul-17,23722555-15641582,-9150,Primrose Healthcare,Care Establishment,2 - Commissioning - Older people Pool,OP Blocks - Care Placements,Residential Independent Sector
Cambridgeshire County Council,06-Jul-17,23722556-15641583,-9150,Primrose Healthcare,Care Establishment,2 - Commissioning - Older people Pool,OP Blocks - Care Placements,Residential Independent Sector
Cambridgeshire County Council,06-Jul-17,23722721-15641618,-9150,Primrose Healthcare,Care Establishment,2 - Commissioning - Older people Pool,OP Blocks - Care Placements,Residential Independent Sector
Cambridgeshire County Council,06-Jul-17,23722722-15641619,-9150,Primrose Healthcare,Care Establishment,2 - Commissioning - Older people Pool,OP Blocks - Care Placements,Residential Independent Sector
Cambridgeshire County Council,06-Jul-17,23722598-15641585,-9150,Primrose Healthcare,Care Establishment,2 - Commissioning - Older people Pool,OP Blocks - Care Placements,Residential Independent Sector
Cambridgeshire County Council,06-Jul-17,23722600-15641587,-9150,Primrose Healthcare,Care Establishment,2 - Commissioning - Older people Pool,OP Blocks - Care Placements,Residential Independent Sector
Cambridgeshire County Council,06-Jul-17,23726996-15646048,-8721,Brook Healthcare#1,Care Establishment,2 - Commissioning - Older people Pool,OP Blocks - Care Placements,Residential Independent Sector
Cambridgeshire County Council,06-Jul-17,23727538-15646050,-8721,Brook Healthcare#1,Care Establishment,2 - Commissioning - Older people Pool,OP Blocks - Care Placements,Residential Independent Sector
Cambridgeshire County Council,06-Jul-17,23722745-15646067,-8721,Brook Healthcare#1,Care Establishment,2 - Commissioning - Older people Pool,OP Blocks - Care Placements,Residential Independent Sector
Cambridgeshire County Council,06-Jul-17,23725516-15646044,-8721,Brook Healthcare#1,Care Establishment,2 - Commissioning - Older people Pool,OP Blocks - Care Placements,Residential Independent Sector
Cambridgeshire County Council,06-Jul-17,23725050-15646036,-8721,Brook Healthcare#1,Care Establishment,2 - Commissioning - Older people Pool,OP Blocks - Care Placements,Residential Independent Sector
Cambridgeshire County Council,06-Jul-17,23722743-15646065,-8721,Brook Healthcare#1,Care Establishment,2 - Commissioning - Older people Pool,OP Blocks - Care Placements,Residential Independent Sector
Cambridgeshire County Council,06-Jul-17,23724981-15646032,-8721,Brook Healthcare#1,Care Establishment,2 - Commissioning - Older people Pool,OP Blocks - Care Placements,Residential Independent Sector
Cambridgeshire County Council,06-Jul-17,23725298-15646071,-8721,Brook Healthcare#1,Care Establishment,2 - Commissioning - Older people Pool,OP Blocks - Care Placements,Residential Independent Sector
Cambridgeshire County Council,06-Jul-17,23722573-15646030,-8721,Brook Healthcare#1,Care Establishment,2 - Commissioning - Older people Pool,OP Blocks - Care Placements,Residential Independent Sector
Cambridgeshire County Council,06-Jul-17,23717547-15646056,-8721,Brook Healthcare#1,Care Establishment,2 - Commissioning - Older people Pool,OP Blocks - Care Placements,Residential Independent Sector
Cambridgeshire County Council,06-Jul-17,23722744-15646066,-8721,Brook Healthcare#1,Care Establishment,2 - Commissioning - Older people Pool,OP Blocks - Care Placements,Residential Independent Sector
Cambridgeshire County Council,06-Jul-17,23722601-15642161,-8554.29,Rheola Healthcare,Care Establishment,2 - Commissioning - Older people Pool,OP Blocks - Care Placements,Residential Independent Sector
Cambridgeshire County Council,06-Jul-17,23725124-15649231,-7914.86,Fitzwilliam Healthcare Ltd,Care Establishment,2 - Commissioning - Older people Pool,OP Blocks - Care Placements,Residential Independent Sector
Cambridgeshire County Council,06-Jul-17,23726966-15641599,-7842.86,Primrose Healthcare,Care Establishment,2 - Commissioning - Older people Pool,OP Blocks - Care Placements,Residential Independent Sector
Cambridgeshire County Council,06-Jul-17,23717617-15642720,-7772.5,Buchan Healthcare Ltd,Care Establishment,2 - Commissioning - Older people Pool,OP Blocks - Care Placements,Nursing Independent Sector
Cambridgeshire County Council,06-Jul-17,23726988-15642694,-7772.5,Buchan Healthcare Ltd,Care Establishment,2 - Commissioning - Older people Pool,OP Blocks - Care Placements,Nursing Independent Sector
Cambridgeshire County Council,20-Jul-17,23841677-15710347,-7772.5,Etheldred House,Care Establishment,2 - Commissioning - Older people Pool,OP Blocks - Care Placements,Residential Independent Sector
Cambridgeshire County Council,20-Jul-17,23841670-15710355,-7772.5,Etheldred House,Care Establishment,2 - Commissioning - Older people Pool,OP Blocks - Care Placements,Residential Independent Sector
Cambridgeshire County Council,20-Jul-17,23841723-15710362,-7772.5,Etheldred House,Care Establishment,2 - Commissioning - Older people Pool,OP Blocks - Care Placements,Residential Independent Sector
Cambridgeshire County Council,20-Jul-17,23862354-15710424,-7772.5,Etheldred House,Care Establishment,2 - Commissioning - Older people Pool,OP Blocks - Care Placements,Residential Independent Sector
Cambridgeshire County Council,06-Jul-17,23717618-15642721,-7772.5,Buchan Healthcare Ltd,Care Establishment,2 - Commissioning - Older people Pool,OP Blocks - Care Placements,Nursing Independent Sector
Cambridgeshire County Council,06-Jul-17,23722706-15642730,-7772.5,Buchan Healthcare Ltd,Care Establishment,2 - Commissioning - Older people Pool,OP Blocks - Care Placements,Nursing Independent Sector
Cambridgeshire County Council,20-Jul-17,23841678-15710348,-7772.5,Etheldred House,Care Establishment,2 - Commissioning - Older people Pool,OP Blocks - Care Placements,Residential Independent Sector
Cambridgeshire County Council,06-Jul-17,23727661-15642706,-7772.5,Buchan Healthcare Ltd,Care Establishment,2 - Commissioning - Older people Pool,OP Blocks - Care Placements,Nursing Independent Sector
Cambridgeshire County Council,20-Jul-17,23841713-15710360,-7772.5,Etheldred House,Care Establishment,2 - Commissioning - Older people Pool,OP Blocks - Care Placements,Residential Independent Sector
Cambridgeshire County Council,06-Jul-17,23726987-15642693,-7772.5,Buchan Healthcare Ltd,Care Establishment,2 - Commissioning - Older people Pool,OP Blocks - Care Placements,Nursing Independent Sector
Cambridgeshire County Council,20-Jul-17,23862363-15710428,-7772.5,Etheldred House,Care Establishment,2 - Commissioning - Older people Pool,OP Blocks - Care Placements,Residential Independent Sector
Cambridgeshire County Council,06-Jul-17,23727586-15642696,-7772.5,Buchan Healthcare Ltd,Care Establishment,2 - Commissioning - Older people Pool,OP Blocks - Care Placements,Nursing Independent Sector
Cambridgeshire County Council,06-Jul-17,23717601-15642717,-7772.5,Buchan Healthcare Ltd,Care Establishment,2 - Commissioning - Older people Pool,OP Blocks - Care Placements,Nursing Independent Sector
Cambridgeshire County Council,06-Jul-17,23722643-15642727,-7772.5,Buchan Healthcare Ltd,Care Establishment,2 - Commissioning - Older people Pool,OP Blocks - Care Placements,Nursing Independent Sector
Cambridgeshire County Council,20-Jul-17,23862322-15710417,-7772.5,Etheldred House,Care Establishment,2 - Commissioning - Older people Pool,OP Blocks - Care Placements,Residential Independent Sector
Cambridgeshire County Council,06-Jul-17,23725294-15642748,-7772.5,Buchan Healthcare Ltd,Care Establishment,2 - Commissioning - Older people Pool,OP Blocks - Care Placements,Nursing Independent Sector
Cambridgeshire County Council,06-Jul-17,23722567-15642682,-7772.5,Buchan Healthcare Ltd,Care Establishment,2 - Commissioning - Older people Pool,OP Blocks - Care Placements,Nursing Independent Sector
Cambridgeshire County Council,20-Jul-17,23841661-15710353,-7772.5,Etheldred House,Care Establishment,2 - Commissioning - Older people Pool,OP Blocks - Care Placements,Residential Independent Sector
Cambridgeshire County Council,20-Jul-17,23841662-15710354,-7772.5,Etheldred House,Care Establishment,2 - Commissioning - Older people Pool,OP Blocks - Care Placements,Residential Independent Sector
Cambridgeshire County Council,20-Jul-17,23841706-15710358,-7772.5,Etheldred House,Care Establishment,2 - Commissioning - Older people Pool,OP Blocks - Care Placements,Residential Independent Sector
Cambridgeshire County Council,24-Jul-17,23428461-15738876,-7749.01,Health Management Ltd,Trade Supplier,Corporate Services,Occupational Health,Staff health and welfare - Medical Costs
Cambridgeshire County Council,06-Jul-17,23724980-15646031,-7475.14,Brook Healthcare#1,Care Establishment,2 - Commissioning - Older people Pool,OP Blocks - Care Placements,Residential Independent Sector
Cambridgeshire County Council,06-Jul-17,23725067-15649149,-7320,St George'S Court,Care Establishment,2 - Commissioning - Older people Pool,OP Blocks - Care Placements,Residential Independent Sector
Cambridgeshire County Council,06-Jul-17,23726924-15649160,-7320,St George'S Court,Care Establishment,2 - Commissioning - Older people Pool,OP Blocks - Care Placements,Residential Independent Sector
Cambridgeshire County Council,06-Jul-17,23727634-15649171,-7320,St George'S Court,Care Establishment,2 - Commissioning - Older people Pool,OP Blocks - Care Placements,Residential Independent Sector
Cambridgeshire County Council,06-Jul-17,23724971-15649156,-7320,St George'S Court,Care Establishment,2 - Commissioning - Older people Pool,OP Blocks - Care Placements,Residential Independent Sector
Cambridgeshire County Council,06-Jul-17,23725064-15649146,-7320,St George'S Court,Care Establishment,2 - Commissioning - Older people Pool,OP Blocks - Care Placements,Residential Independent Sector
Cambridgeshire County Council,06-Jul-17,23727673-15649165,-7320,St George'S Court,Care Establishment,2 - Commissioning - Older people Pool,OP Blocks - Care Placements,Residential Independent Sector
Cambridgeshire County Council,06-Jul-17,23717632-15649183,-7320,St George'S Court,Care Establishment,2 - Commissioning - Older people Pool,OP Blocks - Care Placements,Residential Independent Sector
Cambridgeshire County Council,06-Jul-17,23717631-15649182,-7320,St George'S Court,Care Establishment,2 - Commissioning - Older people Pool,OP Blocks - Care Placements,Residential Independent Sector
Cambridgeshire County Council,06-Jul-17,23722584-15649137,-7320,St George'S Court,Care Establishment,2 - Commissioning - Older people Pool,OP Blocks - Care Placements,Residential Independent Sector
Cambridgeshire County Council,06-Jul-17,23727551-15649169,-7320,St George'S Court,Care Establishment,2 - Commissioning - Older people Pool,OP Blocks - Care Placements,Residential Independent Sector
Cambridgeshire County Council,06-Jul-17,23725310-15649208,-7320,St George'S Court,Care Establishment,2 - Commissioning - Older people Pool,OP Blocks - Care Placements,Residential Independent Sector
Cambridgeshire County Council,20-Jul-17,23841690-15710352,-6662.14,Etheldred House,Care Establishment,2 - Commissioning - Older people Pool,OP Blocks - Care Placements,Residential Independent Sector
Cambridgeshire County Council,06-Jul-17,23727658-15642703,-6662.14,Buchan Healthcare Ltd,Care Establishment,2 - Commissioning - Older people Pool,OP Blocks - Care Placements,Nursing Independent Sector
Cambridgeshire County Council,06-Jul-17,23722735-15642737,-6100,Buchan Healthcare Ltd,Care Establishment,2 - Commissioning - Older people Pool,OP Blocks - Care Placements,Residential Independent Sector
Cambridgeshire County Council,06-Jul-17,23725230-15642740,-6100,Buchan Healthcare Ltd,Care Establishment,2 - Commissioning - Older people Pool,OP Blocks - Care Placements,Residential Independent Sector
Cambridgeshire County Council,06-Jul-17,23726985-15642691,-6100,Buchan Healthcare Ltd,Care Establishment,2 - Commissioning - Older people Pool,OP Blocks - Care Placements,Residential Independent Sector
Cambridgeshire County Council,06-Jul-17,23724953-15642686,-6100,Buchan Healthcare Ltd,Care Establishment,2 - Commissioning - Older people Pool,OP Blocks - Care Placements,Residential Independent Sector
Cambridgeshire County Council,06-Jul-17,23727588-15642698,-6100,Buchan Healthcare Ltd,Care Establishment,2 - Commissioning - Older people Pool,OP Blocks - Care Placements,Residential Independent Sector
Cambridgeshire County Council,06-Jul-17,23717543-15642712,-6100,Buchan Healthcare Ltd,Care Establishment,2 - Commissioning - Older people Pool,OP Blocks - Care Placements,Residential Independent Sector
Cambridgeshire County Council,06-Jul-17,23722568-15642683,-6100,Buchan Healthcare Ltd,Care Establishment,2 - Commissioning - Older people Pool,OP Blocks - Care Placements,Residential Independent Sector
Cambridgeshire County Council,06-Jul-17,23717712-15642709,-6100,Buchan Healthcare Ltd,Care Establishment,2 - Commissioning - Older people Pool,OP Blocks - Care Placements,Residential Independent Sector
Cambridgeshire County Council,06-Jul-17,23722704-15642728,-6100,Buchan Healthcare Ltd,Care Establishment,2 - Commissioning - Older people Pool,OP Blocks - Care Placements,Residential Independent Sector
Cambridgeshire County Council,06-Jul-17,23722707-15642731,-6100,Buchan Healthcare Ltd,Care Establishment,2 - Commissioning - Older people Pool,OP Blocks - Care Placements,Residential Independent Sector
Cambridgeshire County Council,06-Jul-17,23725293-15642747,-6100,Buchan Healthcare Ltd,Care Establishment,2 - Commissioning - Older people Pool,OP Blocks - Care Placements,Residential Independent Sector
Cambridgeshire County Council,04-Jul-17,23446012-15631601,-5876.64,Beaumont Healthcare Ltd,Care Establishment,2 - Commissioning - Older people Pool,Dom Blocks,Short Term Other
Cambridgeshire County Council,06-Jul-17,23721843-15642157,-5770,Rheola Healthcare,Care Establishment,2 - Commissioning - Older people Pool,OP Blocks - Care Placements,Residential Independent Sector
Cambridgeshire County Council,06-Jul-17,23717660-15642187,-5770,Rheola Healthcare,Care Establishment,2 - Commissioning - Older people Pool,OP Blocks - Care Placements,Residential Independent Sector
Cambridgeshire County Council,06-Jul-17,23722737-15645994,-5770,Hunters Healthcare (Hunters Down),Care Establishment,2 - Commissioning - Older people Pool,OP Blocks - Care Placements,Residential Independent Sector
Cambridgeshire County Council,06-Jul-17,23722558-15642160,-5770,Rheola Healthcare,Care Establishment,2 - Commissioning - Older people Pool,OP Blocks - Care Placements,Residential Independent Sector
Cambridgeshire County Council,06-Jul-17,23726951-15642172,-5770,Rheola Healthcare,Care Establishment,2 - Commissioning - Older people Pool,OP Blocks - Care Placements,Residential Independent Sector
Cambridgeshire County Council,06-Jul-17,23722690-15642192,-5770,Rheola Healthcare,Care Establishment,2 - Commissioning - Older people Pool,OP Blocks - Care Placements,Residential Independent Sector
Cambridgeshire County Council,06-Jul-17,23725104-15645938,-5770,Hunters Healthcare (Hunters Down),Care Establishment,2 - Commissioning - Older people Pool,OP Blocks - Care Placements,Residential Independent Sector
Cambridgeshire County Council,06-Jul-17,23722647-15645988,-5770,Hunters Healthcare (Hunters Down),Care Establishment,2 - Commissioning - Older people Pool,OP Blocks - Care Placements,Residential Independent Sector
Cambridgeshire County Council,06-Jul-17,23722557-15642159,-5770,Rheola Healthcare,Care Establishment,2 - Commissioning - Older people Pool,OP Blocks - Care Placements,Residential Independent Sector
Cambridgeshire County Council,06-Jul-17,23724943-15642168,-5770,Rheola Healthcare,Care Establishment,2 - Commissioning - Older people Pool,OP Blocks - Care Placements,Residential Independent Sector
Cambridgeshire County Council,06-Jul-17,23724977-15645917,-5770,Hunters Healthcare (Hunters Down),Care Establishment,2 - Commissioning - Older people Pool,OP Blocks - Care Placements,Residential Independent Sector
Cambridgeshire County Council,06-Jul-17,23717672-15645983,-5770,Hunters Healthcare (Hunters Down),Care Establishment,2 - Commissioning - Older people Pool,OP Blocks - Care Placements,Residential Independent Sector
Cambridgeshire County Council,06-Jul-17,23725147-15642164,-5770,Rheola Healthcare,Care Establishment,2 - Commissioning - Older people Pool,OP Blocks - Care Placements,Residential Independent Sector
Cambridgeshire County Council,06-Jul-17,23727663-15645968,-5770,Hunters Healthcare (Hunters Down),Care Establishment,2 - Commissioning - Older people Pool,OP Blocks - Care Placements,Residential Independent Sector
Cambridgeshire County Council,06-Jul-17,23725296-15646004,-5770,Hunters Healthcare (Hunters Down),Care Establishment,2 - Commissioning - Older people Pool,OP Blocks - Care Placements,Residential Independent Sector
Cambridgeshire County Council,06-Jul-17,23726970-15642175,-5770,Rheola Healthcare,Care Establishment,2 - Commissioning - Older people Pool,OP Blocks - Care Placements,Residential Independent Sector
Cambridgeshire County Council,06-Jul-17,23722723-15642196,-5770,Rheola Healthcare,Care Establishment,2 - Commissioning - Older people Pool,OP Blocks - Care Placements,Residential Independent Sector
Cambridgeshire County Council,06-Jul-17,23725041-15645922,-5770,Hunters Healthcare (Hunters Down),Care Establishment,2 - Commissioning - Older people Pool,OP Blocks - Care Placements,Residential Independent Sector
Cambridgeshire County Council,06-Jul-17,23727598-15645964,-5770,Hunters Healthcare (Hunters Down),Care Establishment,2 - Commissioning - Older people Pool,OP Blocks - Care Placements,Residential Independent Sector
Cambridgeshire County Council,06-Jul-17,23722629-15642190,-5770,Rheola Healthcare,Care Establishment,2 - Commissioning - Older people Pool,OP Blocks - Care Placements,Residential Independent Sector
Cambridgeshire County Council,06-Jul-17,23727594-15645960,-5770,Hunters Healthcare (Hunters Down),Care Establishment,2 - Commissioning - Older people Pool,OP Blocks - Care Placements,Residential Independent Sector
Cambridgeshire County Council,06-Jul-17,23727621-15645966,-5770,Hunters Healthcare (Hunters Down),Care Establishment,2 - Commissioning - Older people Pool,OP Blocks - Care Placements,Residential Independent Sector
Cambridgeshire County Council,06-Jul-17,23725072-15649229,-5490,Fitzwilliam Healthcare Ltd,Care Establishment,2 - Commissioning - Older people Pool,OP Blocks - Care Placements,Residential Independent Sector
Cambridgeshire County Council,06-Jul-17,23722670-15649254,-5490,Fitzwilliam Healthcare Ltd,Care Establishment,2 - Commissioning - Older people Pool,OP Blocks - Care Placements,Residential Independent Sector
Cambridgeshire County Council,06-Jul-17,23721828-15649211,-5490,Fitzwilliam Healthcare Ltd,Care Establishment,2 - Commissioning - Older people Pool,OP Blocks - Care Placements,Residential Independent Sector
Cambridgeshire County Council,06-Jul-17,23721829-15649212,-5490,Fitzwilliam Healthcare Ltd,Care Establishment,2 - Commissioning - Older people Pool,OP Blocks - Care Placements,Residential Independent Sector
Cambridgeshire County Council,06-Jul-17,23717640-15649251,-5490,Fitzwilliam Healthcare Ltd,Care Establishment,2 - Commissioning - Older people Pool,OP Blocks - Care Placements,Residential Independent Sector
Cambridgeshire County Council,06-Jul-17,23725197-15649227,-5490,Fitzwilliam Healthcare Ltd,Care Establishment,2 - Commissioning - Older people Pool,OP Blocks - Care Placements,Residential Independent Sector
Cambridgeshire County Council,06-Jul-17,23725125-15649232,-5490,Fitzwilliam Healthcare Ltd,Care Establishment,2 - Commissioning - Older people Pool,OP Blocks - Care Placements,Residential Independent Sector
Cambridgeshire County Council,06-Jul-17,23717570-15649246,-5490,Fitzwilliam Healthcare Ltd,Care Establishment,2 - Commissioning - Older people Pool,OP Blocks - Care Placements,Residential Independent Sector
Cambridgeshire County Council,06-Jul-17,23722668-15649252,-5490,Fitzwilliam Healthcare Ltd,Care Establishment,2 - Commissioning - Older people Pool,OP Blocks - Care Placements,Residential Independent Sector
Cambridgeshire County Council,06-Jul-17,23727644-15649244,-5490,Fitzwilliam Healthcare Ltd,Care Establishment,2 - Commissioning - Older people Pool,OP Blocks - Care Placements,Residential Independent Sector
Cambridgeshire County Council,06-Jul-17,23717639-15649250,-5490,Fitzwilliam Healthcare Ltd,Care Establishment,2 - Commissioning - Older people Pool,OP Blocks - Care Placements,Residential Independent Sector
Cambridgeshire County Council,17-Jul-17,23608465-15693697,-5460.96,Integrated Services Programme (Isp),Care Establishment,S&C,Placements - Social Care,Agency Placements - In Cambs
Cambridgeshire County Council,17-Jul-17,23608463-15693696,-5460.96,Integrated Services Programme (Isp),Care Establishment,S&C,Placements - Social Care,Agency Placements - In Cambs
Cambridgeshire County Council,06-Jul-17,23717668-15642723,-5228.57,Buchan Healthcare Ltd,Care Establishment,2 - Commissioning - Older people Pool,OP Blocks - Care Placements,Residential Independent Sector
Cambridgeshire County Council,06-Jul-17,23724967-15649152,-5228.57,St George'S Court,Care Establishment,2 - Commissioning - Older people Pool,OP Blocks - Care Placements,Residential Independent Sector
Cambridgeshire County Council,06-Jul-17,23717699-15641609,-5130,Primrose Healthcare,Care Establishment,2 - Commissioning - Older people Pool,OP Blocks - Care Placements,Residential Independent Sector
Cambridgeshire County Council,06-Jul-17,23722688-15641616,-5130,Primrose Healthcare,Care Establishment,2 - Commissioning - Older people Pool,OP Blocks - Care Placements,Residential Independent Sector
Cambridgeshire County Council,06-Jul-17,23717711-15642708,-5130,Buchan Healthcare Ltd,Care Establishment,2 - Commissioning - Older people Pool,OP Blocks - Care Placements,Residential Independent Sector
Cambridgeshire County Council,06-Jul-17,23717541-15642710,-5130,Buchan Healthcare Ltd,Care Establishment,2 - Commissioning - Older people Pool,OP Blocks - Care Placements,Residential Independent Sector
Cambridgeshire County Council,06-Jul-17,23725040-15642685,-5130,Buchan Healthcare Ltd,Care Establishment,2 - Commissioning - Older people Pool,OP Blocks - Care Placements,Residential Independent Sector
Cambridgeshire County Council,06-Jul-17,23722520-15649130,-5130,St George'S Court,Care Establishment,2 - Commissioning - Older people Pool,OP Blocks - Care Placements,Residential Independent Sector
Cambridgeshire County Council,06-Jul-17,23717557-15649179,-5130,St George'S Court,Care Establishment,2 - Commissioning - Older people Pool,OP Blocks - Care Placements,Residential Independent Sector
Cambridgeshire County Council,06-Jul-17,23717586-15641611,-5130,Primrose Healthcare,Care Establishment,2 - Commissioning - Older people Pool,OP Blocks - Care Placements,Residential Independent Sector
Cambridgeshire County Council,06-Jul-17,23721813-15642681,-5130,Buchan Healthcare Ltd,Care Establishment,2 - Commissioning - Older people Pool,OP Blocks - Care Placements,Residential Independent Sector
Cambridgeshire County Council,06-Jul-17,23726923-15649159,-5130,St George'S Court,Care Establishment,2 - Commissioning - Older people Pool,OP Blocks - Care Placements,Residential Independent Sector
Cambridgeshire County Council,06-Jul-17,23721786-15641578,-5130,Primrose Healthcare,Care Establishment,2 - Commissioning - Older people Pool,OP Blocks - Care Placements,Residential Independent Sector
Cambridgeshire County Council,06-Jul-17,23721787-15641579,-5130,Primrose Healthcare,Care Establishment,2 - Commissioning - Older people Pool,OP Blocks - Care Placements,Residential Independent Sector
Cambridgeshire County Council,06-Jul-17,23726925-15649161,-5130,St George'S Court,Care Establishment,2 - Commissioning - Older people Pool,OP Blocks - Care Placements,Residential Independent Sector
Cambridgeshire County Council,06-Jul-17,23717725-15649174,-5130,St George'S Court,Care Establishment,2 - Commissioning - Older people Pool,OP Blocks - Care Placements,Residential Independent Sector
Cambridgeshire County Council,06-Jul-17,23722660-15649196,-5130,St George'S Court,Care Establishment,2 - Commissioning - Older people Pool,OP Blocks - Care Placements,Residential Independent Sector
Cambridgeshire County Council,06-Jul-17,23726969-15641602,-5130,Primrose Healthcare,Care Establishment,2 - Commissioning - Older people Pool,OP Blocks - Care Placements,Residential Independent Sector
Cambridgeshire County Council,06-Jul-17,23727578-15641605,-5130,Primrose Healthcare,Care Establishment,2 - Commissioning - Older people Pool,OP Blocks - Care Placements,Residential Independent Sector
Cambridgeshire County Council,06-Jul-17,23722732-15642734,-5130,Buchan Healthcare Ltd,Care Establishment,2 - Commissioning - Older people Pool,OP Blocks - Care Placements,Residential Independent Sector
Cambridgeshire County Council,06-Jul-17,23717542-15642711,-5130,Buchan Healthcare Ltd,Care Establishment,2 - Commissioning - Older people Pool,OP Blocks - Care Placements,Residential Independent Sector
Cambridgeshire County Council,06-Jul-17,23717600-15642716,-5130,Buchan Healthcare Ltd,Care Establishment,2 - Commissioning - Older people Pool,OP Blocks - Care Placements,Residential Independent Sector
Cambridgeshire County Council,06-Jul-17,23722731-15642733,-5130,Buchan Healthcare Ltd,Care Establishment,2 - Commissioning - Older people Pool,OP Blocks - Care Placements,Residential Independent Sector
Cambridgeshire County Council,06-Jul-17,23724968-15649153,-5130,St George'S Court,Care Establishment,2 - Commissioning - Older people Pool,OP Blocks - Care Placements,Residential Independent Sector
Cambridgeshire County Council,06-Jul-17,23725024-15641591,-5130,Primrose Healthcare,Care Establishment,2 - Commissioning - Older people Pool,OP Blocks - Care Placements,Residential Independent Sector
Cambridgeshire County Council,06-Jul-17,23717587-15641612,-5130,Primrose Healthcare,Care Establishment,2 - Commissioning - Older people Pool,OP Blocks - Care Placements,Residential Independent Sector
Cambridgeshire County Council,06-Jul-17,23722625-15641614,-5130,Primrose Healthcare,Care Establishment,2 - Commissioning - Older people Pool,OP Blocks - Care Placements,Residential Independent Sector
Cambridgeshire County Council,06-Jul-17,23722734-15642736,-5130,Buchan Healthcare Ltd,Care Establishment,2 - Commissioning - Older people Pool,OP Blocks - Care Placements,Residential Independent Sector
Cambridgeshire County Council,06-Jul-17,23726984-15642690,-5130,Buchan Healthcare Ltd,Care Establishment,2 - Commissioning - Older people Pool,OP Blocks - Care Placements,Residential Independent Sector
Cambridgeshire County Council,06-Jul-17,23725186-15649144,-5130,St George'S Court,Care Establishment,2 - Commissioning - Older people Pool,OP Blocks - Care Placements,Residential Independent Sector
Cambridgeshire County Council,06-Jul-17,23717633-15649184,-5130,St George'S Court,Care Establishment,2 - Commissioning - Older people Pool,OP Blocks - Care Placements,Residential Independent Sector
Cambridgeshire County Council,06-Jul-17,23725086-15641594,-5130,Primrose Healthcare,Care Establishment,2 - Commissioning - Older people Pool,OP Blocks - Care Placements,Residential Independent Sector
Cambridgeshire County Council,06-Jul-17,23722523-15649133,-5130,St George'S Court,Care Establishment,2 - Commissioning - Older people Pool,OP Blocks - Care Placements,Residential Independent Sector
Cambridgeshire County Council,06-Jul-17,23725117-15649151,-5130,St George'S Court,Care Establishment,2 - Commissioning - Older people Pool,OP Blocks - Care Placements,Residential Independent Sector
Cambridgeshire County Council,06-Jul-17,23727589-15642699,-5130,Buchan Healthcare Ltd,Care Establishment,2 - Commissioning - Older people Pool,OP Blocks - Care Placements,Residential Independent Sector
Cambridgeshire County Council,06-Jul-17,23725015-15642166,-4945.71,Rheola Healthcare,Care Establishment,2 - Commissioning - Older people Pool,OP Blocks - Care Placements,Residential Independent Sector
Cambridgeshire County Council,06-Jul-17,23717603-15645976,-4945.71,Hunters Healthcare (Hunters Down),Care Establishment,2 - Commissioning - Older people Pool,OP Blocks - Care Placements,Residential Independent Sector
Cambridgeshire County Council,06-Jul-17,23727675-15649237,-4705.71,Fitzwilliam Healthcare Ltd,Care Establishment,2 - Commissioning - Older people Pool,OP Blocks - Care Placements,Residential Independent Sector
Cambridgeshire County Council,20-Jul-17,23721351-15726390,-4655,Brookdale Healthcare Limited,Care Establishment,4 - Operations - Providers services,LDP Huntingdonshire Locality - Care,Respite Independent Sector
Cambridgeshire County Council,20-Jul-17,23805111-15726412,-4655,Brookdale Healthcare Limited,Care Establishment,2 - Operations - Learning Disability,LDP Hunts special needs,Respite Independent Sector
Cambridgeshire County Council,20-Jul-17,23853076-15726430,-4655,Brookdale Healthcare Limited,Care Establishment,4 - Operations - Providers services,LDP Huntingdonshire Locality - Care,Respite Independent Sector
Cambridgeshire County Council,20-Jul-17,23721316-15726374,-4655,Brookdale Healthcare Limited,Care Establishment,4 - Operations - Providers services,LDP Huntingdonshire Locality - Care,Respite Independent Sector
Cambridgeshire County Council,20-Jul-17,23721317-15726375,-4655,Brookdale Healthcare Limited,Care Establishment,4 - Operations - Providers services,LDP Huntingdonshire Locality - Care,Respite Independent Sector
Cambridgeshire County Council,20-Jul-17,23805099-15726400,-4655,Brookdale Healthcare Limited,Care Establishment,2 - Operations - Learning Disability,LDP Hunts special needs,Respite Independent Sector
Cambridgeshire County Council,20-Jul-17,23805100-15726401,-4655,Brookdale Healthcare Limited,Care Establishment,2 - Operations - Learning Disability,LDP Hunts special needs,Respite Independent Sector
Cambridgeshire County Council,20-Jul-17,23805101-15726402,-4655,Brookdale Healthcare Limited,Care Establishment,2 - Operations - Learning Disability,LDP Hunts special needs,Respite Independent Sector
Cambridgeshire County Council,20-Jul-17,23805103-15726404,-4655,Brookdale Healthcare Limited,Care Establishment,2 - Operations - Learning Disability,LDP Hunts special needs,Respite Independent Sector
Cambridgeshire County Council,27-Jul-17,23896108-15763378,-4655,Brookdale Healthcare Limited,Care Establishment,2 - Operations - Learning Disability,LDP Hunts special needs,Respite Independent Sector
Cambridgeshire County Council,27-Jul-17,23896110-15763380,-4655,Brookdale Healthcare Limited,Care Establishment,2 - Operations - Learning Disability,LDP Hunts special needs,Respite Independent Sector
Cambridgeshire County Council,27-Jul-17,23896111-15763381,-4655,Brookdale Healthcare Limited,Care Establishment,4 - Operations - Providers services,LDP Huntingdonshire Locality - Care,Respite Independent Sector
Cambridgeshire County Council,27-Jul-17,23896112-15763382,-4655,Brookdale Healthcare Limited,Care Establishment,2 - Operations - Learning Disability,LDP Hunts special needs,Respite Independent Sector
Cambridgeshire County Council,27-Jul-17,23896122-15763392,-4655,Brookdale Healthcare Limited,Care Establishment,2 - Operations - Learning Disability,LDP Hunts special needs,Respite Independent Sector
Cambridgeshire County Council,20-Jul-17,23721330-15726382,-4655,Brookdale Healthcare Limited,Care Establishment,2 - Operations - Learning Disability,LDP Hunts special needs,Respite Independent Sector
Cambridgeshire County Council,20-Jul-17,23805098-15726399,-4655,Brookdale Healthcare Limited,Care Establishment,2 - Operations - Learning Disability,LDP Hunts special needs,Respite Independent Sector
Cambridgeshire County Council,20-Jul-17,23853084-15726438,-4655,Brookdale Healthcare Limited,Care Establishment,4 - Operations - Providers services,LDP Huntingdonshire Locality - Care,Respite Independent Sector
Cambridgeshire County Council,20-Jul-17,23721320-15726377,-4655,Brookdale Healthcare Limited,Care Establishment,2 - Operations - Learning Disability,LDP Hunts special needs,Respite Independent Sector
Cambridgeshire County Council,20-Jul-17,23721327-15726380,-4655,Brookdale Healthcare Limited,Care Establishment,4 - Operations - Providers services,LDP Huntingdonshire Locality - Care,Respite Independent Sector
Cambridgeshire County Council,20-Jul-17,23853078-15726432,-4655,Brookdale Healthcare Limited,Care Establishment,2 - Operations - Learning Disability,LDP Hunts special needs,Respite Independent Sector
Cambridgeshire County Council,20-Jul-17,23853083-15726437,-4655,Brookdale Healthcare Limited,Care Establishment,2 - Operations - Learning Disability,LDP Hunts special needs,Respite Independent Sector
Cambridgeshire County Council,27-Jul-17,23896120-15763390,-4655,Brookdale Healthcare Limited,Care Establishment,2 - Operations - Learning Disability,LDP Hunts special needs,Respite Independent Sector
Cambridgeshire County Council,20-Jul-17,23721342-15726386,-4655,Brookdale Healthcare Limited,Care Establishment,4 - Operations - Providers services,LDP Huntingdonshire Locality - Care,Respite Independent Sector
Cambridgeshire County Council,20-Jul-17,23853077-15726431,-4655,Brookdale Healthcare Limited,Care Establishment,4 - Operations - Providers services,LDP Huntingdonshire Locality - Care,Respite Independent Sector
Cambridgeshire County Council,20-Jul-17,23721348-15726389,-4655,Brookdale Healthcare Limited,Care Establishment,2 - Operations - Learning Disability,LDP Hunts special needs,Respite Independent Sector
Cambridgeshire County Council,20-Jul-17,23805102-15726403,-4655,Brookdale Healthcare Limited,Care Establishment,4 - Operations - Providers services,LDP Huntingdonshire Locality - Care,Respite Independent Sector
Cambridgeshire County Council,20-Jul-17,23805104-15726405,-4655,Brookdale Healthcare Limited,Care Establishment,2 - Operations - Learning Disability,LDP Hunts special needs,Respite Independent Sector
Cambridgeshire County Council,20-Jul-17,23853064-15726418,-4655,Brookdale Healthcare Limited,Care Establishment,2 - Operations - Learning Disability,LDP Hunts special needs,Respite Independent Sector
Cambridgeshire County Council,20-Jul-17,23853070-15726424,-4655,Brookdale Healthcare Limited,Care Establishment,2 - Operations - Learning Disability,LDP Hunts special needs,Respite Independent Sector
Cambridgeshire County Council,27-Jul-17,23896107-15763377,-4655,Brookdale Healthcare Limited,Care Establishment,2 - Operations - Learning Disability,LDP Hunts special needs,Respite Independent Sector
Cambridgeshire County Council,20-Jul-17,23721333-15726384,-4655,Brookdale Healthcare Limited,Care Establishment,2 - Operations - Learning Disability,LDP Hunts special needs,Respite Independent Sector
Cambridgeshire County Council,20-Jul-17,23805093-15726394,-4655,Brookdale Healthcare Limited,Care Establishment,4 - Operations - Providers services,LDP Huntingdonshire Locality - Care,Respite Independent Sector
Cambridgeshire County Council,20-Jul-17,23853063-15726417,-4655,Brookdale Healthcare Limited,Care Establishment,2 - Operations - Learning Disability,LDP Hunts special needs,Respite Independent Sector
Cambridgeshire County Council,20-Jul-17,23853072-15726426,-4655,Brookdale Healthcare Limited,Care Establishment,2 - Operations - Learning Disability,LDP Hunts special needs,Respite Independent Sector
Cambridgeshire County Council,27-Jul-17,23896109-15763379,-4655,Brookdale Healthcare Limited,Care Establishment,4 - Operations - Providers services,LDP Huntingdonshire Locality - Care,Respite Independent Sector
Cambridgeshire County Council,27-Jul-17,23896116-15763386,-4655,Brookdale Healthcare Limited,Care Establishment,4 - Operations - Providers services,LDP Huntingdonshire Locality - Care,Respite Independent Sector
Cambridgeshire County Council,06-Jul-17,23726947-15641597,-4397.14,Primrose Healthcare,Care Establishment,2 - Commissioning - Older people Pool,OP Blocks - Care Placements,Residential Independent Sector
Cambridgeshire County Council,06-Jul-17,23725228-15642738,-4397.14,Buchan Healthcare Ltd,Care Establishment,2 - Commissioning - Older people Pool,OP Blocks - Care Placements,Residential Independent Sector
Cambridgeshire County Council,06-Jul-17,23722657-15649193,-4397.14,St George'S Court,Care Establishment,2 - Commissioning - Older people Pool,OP Blocks - Care Placements,Residential Independent Sector
Cambridgeshire County Council,13-Jul-17,23722717-15678192,-4008.84,Midfield Lodge Care Centre,Care Establishment,2 - Commissioning - Older people Pool,OP Blocks - Care Placements,Nursing Independent Sector
Cambridgeshire County Council,13-Jul-17,23717528-15678200,-4008.84,Midfield Lodge Care Centre,Care Establishment,2 - Commissioning - Older people Pool,OP Blocks - Care Placements,Nursing Independent Sector
Cambridgeshire County Council,13-Jul-17,23727696-15678205,-4008.84,Midfield Lodge Care Centre,Care Establishment,2 - Commissioning - Older people Pool,OP Blocks - Care Placements,Nursing Independent Sector
Cambridgeshire County Council,13-Jul-17,23726964-15678206,-4008.84,Midfield Lodge Care Centre,Care Establishment,2 - Commissioning - Older people Pool,OP Blocks - Care Placements,Nursing Independent Sector
Cambridgeshire County Council,13-Jul-17,23725210-15678230,-4008.84,Midfield Lodge Care Centre,Care Establishment,2 - Commissioning - Older people Pool,OP Blocks - Care Placements,Nursing Independent Sector
Cambridgeshire County Council,13-Jul-17,23727576-15678204,-4008.84,Midfield Lodge Care Centre,Care Establishment,2 - Commissioning - Older people Pool,OP Blocks - Care Placements,Nursing Independent Sector
Cambridgeshire County Council,13-Jul-17,23717692-15678201,-4008.84,Midfield Lodge Care Centre,Care Establishment,2 - Commissioning - Older people Pool,OP Blocks - Care Placements,Nursing Independent Sector
Cambridgeshire County Council,13-Jul-17,23725020-15678227,-4008.84,Midfield Lodge Care Centre,Care Establishment,2 - Commissioning - Older people Pool,OP Blocks - Care Placements,Nursing Independent Sector
Cambridgeshire County Council,13-Jul-17,23722593-15678191,-4008.84,Midfield Lodge Care Centre,Care Establishment,2 - Commissioning - Older people Pool,OP Blocks - Care Placements,Nursing Independent Sector
Cambridgeshire County Council,13-Jul-17,23717527-15678199,-4008.84,Midfield Lodge Care Centre,Care Establishment,2 - Commissioning - Older people Pool,OP Blocks - Care Placements,Nursing Independent Sector
Cambridgeshire County Council,13-Jul-17,23717693-15678202,-4008.84,Midfield Lodge Care Centre,Care Establishment,2 - Commissioning - Older people Pool,OP Blocks - Care Placements,Nursing Independent Sector
Cambridgeshire County Council,13-Jul-17,23727525-15678203,-4008.84,Midfield Lodge Care Centre,Care Establishment,2 - Commissioning - Older people Pool,OP Blocks - Care Placements,Nursing Independent Sector
Cambridgeshire County Council,13-Jul-17,23721860-15678198,-4008.84,Midfield Lodge Care Centre,Care Establishment,2 - Commissioning - Older people Pool,OP Blocks - Care Placements,Nursing Independent Sector
Cambridgeshire County Council,13-Jul-17,23725019-15678226,-4008.84,Midfield Lodge Care Centre,Care Establishment,2 - Commissioning - Older people Pool,OP Blocks - Care Placements,Nursing Independent Sector
Cambridgeshire County Council,13-Jul-17,23725139-15678229,-4008.84,Midfield Lodge Care Centre,Care Establishment,2 - Commissioning - Older people Pool,OP Blocks - Care Placements,Nursing Independent Sector
Cambridgeshire County Council,20-Jul-17,23724999-15710268,-3886.25,Etheldred House,Care Establishment,2 - Commissioning - Older people Pool,OP Blocks - Care Placements,Nursing Independent Sector
Cambridgeshire County Council,20-Jul-17,23725161-15710270,-3886.25,Etheldred House,Care Establishment,2 - Commissioning - Older people Pool,OP Blocks - Care Placements,Nursing Independent Sector
Cambridgeshire County Council,20-Jul-17,23724998-15710267,-3886.25,Etheldred House,Care Establishment,2 - Commissioning - Older people Pool,OP Blocks - Care Placements,Nursing Independent Sector
Cambridgeshire County Council,20-Jul-17,23725262-15710276,-3886.25,Etheldred House,Care Establishment,2 - Commissioning - Older people Pool,OP Blocks - Care Placements,Nursing Independent Sector
Cambridgeshire County Council,20-Jul-17,23717567-15710210,-3886.25,Etheldred House,Care Establishment,2 - Commissioning - Older people Pool,OP Blocks - Care Placements,Nursing Independent Sector
Cambridgeshire County Council,20-Jul-17,23722535-15710254,-3886.25,Etheldred House,Care Establishment,2 - Commissioning - Older people Pool,OP Blocks - Care Placements,Nursing Independent Sector
Cambridgeshire County Council,20-Jul-17,23717733-15710219,-3886.25,Etheldred House,Care Establishment,2 - Commissioning - Older people Pool,OP Blocks - Care Placements,Nursing Independent Sector
Cambridgeshire County Council,20-Jul-17,23722588-15710256,-3886.25,Etheldred House,Care Establishment,2 - Commissioning - Older people Pool,OP Blocks - Care Placements,Nursing Independent Sector
Cambridgeshire County Council,20-Jul-17,23722759-15710260,-3886.25,Etheldred House,Care Establishment,2 - Commissioning - Older people Pool,OP Blocks - Care Placements,Nursing Independent Sector
Cambridgeshire County Council,20-Jul-17,23724997-15710266,-3886.25,Etheldred House,Care Establishment,2 - Commissioning - Older people Pool,OP Blocks - Care Placements,Nursing Independent Sector
Cambridgeshire County Council,20-Jul-17,23727558-15710286,-3886.25,Etheldred House,Care Establishment,2 - Commissioning - Older people Pool,OP Blocks - Care Placements,Nursing Independent Sector
Cambridgeshire County Council,06-Jul-17,23717529-15643064,-3731.25,Glennfield Care Centre (Op),Care Establishment,2 - Commissioning - Older people Pool,OP Blocks - Care Placements,Nursing Independent Sector
Cambridgeshire County Council,06-Jul-17,23725272-15643074,-3731.25,Glennfield Care Centre (Op),Care Establishment,2 - Commissioning - Older people Pool,OP Blocks - Care Placements,Nursing Independent Sector
Cambridgeshire County Council,06-Jul-17,23725271-15643073,-3731.25,Glennfield Care Centre (Op),Care Establishment,2 - Commissioning - Older people Pool,OP Blocks - Care Placements,Nursing Independent Sector
Cambridgeshire County Council,06-Jul-17,23721841-15643032,-3731.25,Glennfield Care Centre (Op),Care Establishment,2 - Commissioning - Older people Pool,OP Blocks - Care Placements,Nursing Independent Sector
Cambridgeshire County Council,06-Jul-17,23717696-15643062,-3731.25,Glennfield Care Centre (Op),Care Establishment,2 - Commissioning - Older people Pool,OP Blocks - Care Placements,Nursing Independent Sector
Cambridgeshire County Council,06-Jul-17,23725212-15643070,-3731.25,Glennfield Care Centre (Op),Care Establishment,2 - Commissioning - Older people Pool,OP Blocks - Care Placements,Nursing Independent Sector
Cambridgeshire County Council,06-Jul-17,23726965-15643054,-3731.25,Glennfield Care Centre (Op),Care Establishment,2 - Commissioning - Older people Pool,OP Blocks - Care Placements,Nursing Independent Sector
Cambridgeshire County Council,06-Jul-17,23717694-15643060,-3731.25,Glennfield Care Centre (Op),Care Establishment,2 - Commissioning - Older people Pool,OP Blocks - Care Placements,Nursing Independent Sector
Cambridgeshire County Council,06-Jul-17,23717657-15643066,-3731.25,Glennfield Care Centre (Op),Care Establishment,2 - Commissioning - Older people Pool,OP Blocks - Care Placements,Nursing Independent Sector
Cambridgeshire County Council,06-Jul-17,23717656-15643065,-3731.25,Glennfield Care Centre (Op),Care Establishment,2 - Commissioning - Older people Pool,OP Blocks - Care Placements,Nursing Independent Sector
Cambridgeshire County Council,06-Jul-17,23726946-15643053,-3731.25,Glennfield Care Centre (Op),Care Establishment,2 - Commissioning - Older people Pool,OP Blocks - Care Placements,Nursing Independent Sector
Cambridgeshire County Council,06-Jul-17,23725234-15645998,-3626.25,Hunters Healthcare (Hunters Down),Care Establishment,2 - Commissioning - Older people Pool,OP Blocks - Care Placements,Nursing Independent Sector
Cambridgeshire County Council,06-Jul-17,23722648-15645989,-3626.25,Hunters Healthcare (Hunters Down),Care Establishment,2 - Commissioning - Older people Pool,OP Blocks - Care Placements,Nursing Independent Sector
Cambridgeshire County Council,06-Jul-17,23722738-15645995,-3626.25,Hunters Healthcare (Hunters Down),Care Establishment,2 - Commissioning - Older people Pool,OP Blocks - Care Placements,Nursing Independent Sector
Cambridgeshire County Council,06-Jul-17,23725295-15646003,-3626.25,Hunters Healthcare (Hunters Down),Care Establishment,2 - Commissioning - Older people Pool,OP Blocks - Care Placements,Nursing Independent Sector
Cambridgeshire County Council,06-Jul-17,23727535-15645955,-3626.25,Hunters Healthcare (Hunters Down),Care Establishment,2 - Commissioning - Older people Pool,OP Blocks - Care Placements,Nursing Independent Sector
Cambridgeshire County Council,06-Jul-17,23727534-15645954,-3626.25,Hunters Healthcare (Hunters Down),Care Establishment,2 - Commissioning - Older people Pool,OP Blocks - Care Placements,Nursing Independent Sector
Cambridgeshire County Council,06-Jul-17,23725044-15645925,-3626.25,Hunters Healthcare (Hunters Down),Care Establishment,2 - Commissioning - Older people Pool,OP Blocks - Care Placements,Nursing Independent Sector
Cambridgeshire County Council,06-Jul-17,23726991-15645950,-3626.25,Hunters Healthcare (Hunters Down),Care Establishment,2 - Commissioning - Older people Pool,OP Blocks - Care Placements,Nursing Independent Sector
Cambridgeshire County Council,06-Jul-17,23727537-15645957,-3626.25,Hunters Healthcare (Hunters Down),Care Establishment,2 - Commissioning - Older people Pool,OP Blocks - Care Placements,Nursing Independent Sector
Cambridgeshire County Council,06-Jul-17,23727662-15645967,-3626.25,Hunters Healthcare (Hunters Down),Care Establishment,2 - Commissioning - Older people Pool,OP Blocks - Care Placements,Nursing Independent Sector
Cambridgeshire County Council,06-Jul-17,23717605-15645978,-3626.25,Hunters Healthcare (Hunters Down),Care Establishment,2 - Commissioning - Older people Pool,OP Blocks - Care Placements,Nursing Independent Sector
Cambridgeshire County Council,06-Jul-17,23722569-15645897,-3576.25,Hunters Healthcare (Hunters Down),Care Establishment,2 - Commissioning - Older people Pool,OP Blocks - Care Placements,Nursing Independent Sector
Cambridgeshire County Council,06-Jul-17,23726992-15645951,-3576.25,Hunters Healthcare (Hunters Down),Care Establishment,2 - Commissioning - Older people Pool,OP Blocks - Care Placements,Nursing Independent Sector
Cambridgeshire County Council,06-Jul-17,23717621-15645981,-3576.25,Hunters Healthcare (Hunters Down),Care Establishment,2 - Commissioning - Older people Pool,OP Blocks - Care Placements,Nursing Independent Sector
Cambridgeshire County Council,06-Jul-17,23717673-15645984,-3576.25,Hunters Healthcare (Hunters Down),Care Establishment,2 - Commissioning - Older people Pool,OP Blocks - Care Placements,Nursing Independent Sector
Cambridgeshire County Council,06-Jul-17,23722646-15645987,-3576.25,Hunters Healthcare (Hunters Down),Care Establishment,2 - Commissioning - Older people Pool,OP Blocks - Care Placements,Nursing Independent Sector
Cambridgeshire County Council,06-Jul-17,23725046-15645927,-3576.25,Hunters Healthcare (Hunters Down),Care Establishment,2 - Commissioning - Older people Pool,OP Blocks - Care Placements,Nursing Independent Sector
Cambridgeshire County Council,06-Jul-17,23727599-15645965,-3576.25,Hunters Healthcare (Hunters Down),Care Establishment,2 - Commissioning - Older people Pool,OP Blocks - Care Placements,Nursing Independent Sector
Cambridgeshire County Council,06-Jul-17,23725097-15645931,-3576.25,Hunters Healthcare (Hunters Down),Care Establishment,2 - Commissioning - Older people Pool,OP Blocks - Care Placements,Nursing Independent Sector
Cambridgeshire County Council,06-Jul-17,23725098-15645932,-3576.25,Hunters Healthcare (Hunters Down),Care Establishment,2 - Commissioning - Older people Pool,OP Blocks - Care Placements,Nursing Independent Sector
Cambridgeshire County Council,06-Jul-17,23725237-15646001,-3576.25,Hunters Healthcare (Hunters Down),Care Establishment,2 - Commissioning - Older people Pool,OP Blocks - Care Placements,Nursing Independent Sector
Cambridgeshire County Council,06-Jul-17,23717716-15645972,-3576.25,Hunters Healthcare (Hunters Down),Care Establishment,2 - Commissioning - Older people Pool,OP Blocks - Care Placements,Nursing Independent Sector
Cambridgeshire County Council,06-Jul-17,23722564-15642525,-3576,Aliwal Healthcare Ltd,Care Establishment,2 - Commissioning - Older people Pool,OP Blocks - Care Placements,Residential Independent Sector
Cambridgeshire County Council,06-Jul-17,23727584-15642543,-3576,Aliwal Healthcare Ltd,Care Establishment,2 - Commissioning - Older people Pool,OP Blocks - Care Placements,Residential Independent Sector
Cambridgeshire County Council,06-Jul-17,23717708-15642551,-3576,Aliwal Healthcare Ltd,Care Establishment,2 - Commissioning - Older people Pool,OP Blocks - Care Placements,Residential Independent Sector
Cambridgeshire County Council,06-Jul-17,23724950-15642533,-3576,Aliwal Healthcare Ltd,Care Establishment,2 - Commissioning - Older people Pool,OP Blocks - Care Placements,Residential Independent Sector
Cambridgeshire County Council,06-Jul-17,23727585-15642544,-3576,Aliwal Healthcare Ltd,Care Establishment,2 - Commissioning - Older people Pool,OP Blocks - Care Placements,Residential Independent Sector
Cambridgeshire County Council,06-Jul-17,23727657-15642549,-3576,Aliwal Healthcare Ltd,Care Establishment,2 - Commissioning - Older people Pool,OP Blocks - Care Placements,Residential Independent Sector
Cambridgeshire County Council,06-Jul-17,23717595-15642555,-3576,Aliwal Healthcare Ltd,Care Establishment,2 - Commissioning - Older people Pool,OP Blocks - Care Placements,Residential Independent Sector
Cambridgeshire County Council,06-Jul-17,23725249-15642567,-3576,Aliwal Healthcare Ltd,Care Establishment,2 - Commissioning - Older people Pool,OP Blocks - Care Placements,Residential Independent Sector
Cambridgeshire County Council,06-Jul-17,23722642-15642560,-3576,Aliwal Healthcare Ltd,Care Establishment,2 - Commissioning - Older people Pool,OP Blocks - Care Placements,Residential Independent Sector
Cambridgeshire County Council,06-Jul-17,23725037-15642528,-3576,Aliwal Healthcare Ltd,Care Establishment,2 - Commissioning - Older people Pool,OP Blocks - Care Placements,Residential Independent Sector
Cambridgeshire County Council,06-Jul-17,23725248-15642566,-3576,Aliwal Healthcare Ltd,Care Establishment,2 - Commissioning - Older people Pool,OP Blocks - Care Placements,Residential Independent Sector
Cambridgeshire County Council,17-Jul-17,23608461-15693695,-3523.2,Integrated Services Programme (Isp),Care Establishment,S&C,Placements - Social Care,Agency Placements - In Cambs
Cambridgeshire County Council,17-Jul-17,23608450-15693694,-3523.2,Integrated Services Programme (Isp),Care Establishment,S&C,Placements - Social Care,Agency Placements - In Cambs
Cambridgeshire County Council,13-Jul-17,23725082-15678228,-3436.15,Midfield Lodge Care Centre,Care Establishment,2 - Commissioning - Older people Pool,OP Blocks - Care Placements,Nursing Independent Sector
Cambridgeshire County Council,03-Jul-17,23588109-15624345,-3423,Cambridge City Council,Other Public Bodies,LGSS Managed,Fitzwilliam Road Hostel,Business rates
Cambridgeshire County Council,20-Jul-17,23722611-15710257,-3331.07,Etheldred House,Care Establishment,2 - Commissioning - Older people Pool,OP Blocks - Care Placements,Nursing Independent Sector
Cambridgeshire County Council,20-Jul-17,23721315-15726373,-3325,Brookdale Healthcare Limited,Care Establishment,4 - Operations - Providers services,LDP Huntingdonshire Locality - Care,Respite Independent Sector
Cambridgeshire County Council,20-Jul-17,23805094-15726395,-3325,Brookdale Healthcare Limited,Care Establishment,2 - Operations - Learning Disability,LDP Hunts special needs,Respite Independent Sector
Cambridgeshire County Council,20-Jul-17,23853080-15726434,-3325,Brookdale Healthcare Limited,Care Establishment,4 - Operations - Providers services,LDP Huntingdonshire Locality - Care,Respite Independent Sector
Cambridgeshire County Council,27-Jul-17,23896118-15763388,-3325,Brookdale Healthcare Limited,Care Establishment,2 - Operations - Learning Disability,LDP Hunts special needs,Respite Independent Sector
Cambridgeshire County Council,10-Jul-17,23495983-15662184,-3320.72,Dexter Brown Ltd,Trade Supplier,LGSS Managed,Ely Library,Rents and Leases
Cambridgeshire County Council,06-Jul-17,23725021-15643045,-3198.21,Glennfield Care Centre (Op),Care Establishment,2 - Commissioning - Older people Pool,OP Blocks - Care Placements,Nursing Independent Sector
Cambridgeshire County Council,06-Jul-17,23721800-15645893,-3108.21,Hunters Healthcare (Hunters Down),Care Establishment,2 - Commissioning - Older people Pool,OP Blocks - Care Placements,Nursing Independent Sector
Cambridgeshire County Council,06-Jul-17,23717544-15645973,-3065.36,Hunters Healthcare (Hunters Down),Care Establishment,2 - Commissioning - Older people Pool,OP Blocks - Care Placements,Nursing Independent Sector
Cambridgeshire County Council,06-Jul-17,23726982-15642540,-3065.14,Aliwal Healthcare Ltd,Care Establishment,2 - Commissioning - Older people Pool,OP Blocks - Care Placements,Residential Independent Sector
Cambridgeshire County Council,06-Jul-17,23726915-15646046,-3050,Brook Healthcare#1,Care Establishment,2 - Commissioning - Older people Pool,OP Blocks - Care Placements,Residential Independent Sector
Cambridgeshire County Council,06-Jul-17,23722741-15646063,-3050,Brook Healthcare#1,Care Establishment,2 - Commissioning - Older people Pool,OP Blocks - Care Placements,Residential Independent Sector
Cambridgeshire County Council,06-Jul-17,23725299-15646072,-3050,Brook Healthcare#1,Care Establishment,2 - Commissioning - Older people Pool,OP Blocks - Care Placements,Residential Independent Sector
Cambridgeshire County Council,06-Jul-17,23722711-15646061,-3050,Brook Healthcare#1,Care Establishment,2 - Commissioning - Older people Pool,OP Blocks - Care Placements,Residential Independent Sector
Cambridgeshire County Council,06-Jul-17,23717718-15646055,-3050,Brook Healthcare#1,Care Establishment,2 - Commissioning - Older people Pool,OP Blocks - Care Placements,Residential Independent Sector
Cambridgeshire County Council,06-Jul-17,23727665-15646053,-3050,Brook Healthcare#1,Care Establishment,2 - Commissioning - Older people Pool,OP Blocks - Care Placements,Residential Independent Sector
Cambridgeshire County Council,06-Jul-17,23717717-15646054,-3050,Brook Healthcare#1,Care Establishment,2 - Commissioning - Older people Pool,OP Blocks - Care Placements,Residential Independent Sector
Cambridgeshire County Council,06-Jul-17,23722650-15646059,-3050,Brook Healthcare#1,Care Establishment,2 - Commissioning - Older people Pool,OP Blocks - Care Placements,Residential Independent Sector
Cambridgeshire County Council,06-Jul-17,23725107-15646041,-3050,Brook Healthcare#1,Care Establishment,2 - Commissioning - Older people Pool,OP Blocks - Care Placements,Residential Independent Sector
Cambridgeshire County Council,06-Jul-17,23725514-15646042,-3050,Brook Healthcare#1,Care Establishment,2 - Commissioning - Older people Pool,OP Blocks - Care Placements,Residential Independent Sector
Cambridgeshire County Council,06-Jul-17,23725239-15646069,-3050,Brook Healthcare#1,Care Establishment,2 - Commissioning - Older people Pool,OP Blocks - Care Placements,Residential Independent Sector
Cambridgeshire County Council,06-Jul-17,23724952-15642535,-3036,Aliwal Healthcare Ltd,Care Establishment,2 - Commissioning - Older people Pool,OP Blocks - Care Placements,Residential Independent Sector
Cambridgeshire County Council,06-Jul-17,23717596-15642556,-3036,Aliwal Healthcare Ltd,Care Establishment,2 - Commissioning - Older people Pool,OP Blocks - Care Placements,Residential Independent Sector
Cambridgeshire County Council,06-Jul-17,23725291-15642569,-3036,Aliwal Healthcare Ltd,Care Establishment,2 - Commissioning - Older people Pool,OP Blocks - Care Placements,Residential Independent Sector
Cambridgeshire County Council,06-Jul-17,23727618-15642546,-3036,Aliwal Healthcare Ltd,Care Establishment,2 - Commissioning - Older people Pool,OP Blocks - Care Placements,Residential Independent Sector
Cambridgeshire County Council,06-Jul-17,23727619-15642547,-3036,Aliwal Healthcare Ltd,Care Establishment,2 - Commissioning - Older people Pool,OP Blocks - Care Placements,Residential Independent Sector
Cambridgeshire County Council,06-Jul-17,23726910-15642538,-3036,Aliwal Healthcare Ltd,Care Establishment,2 - Commissioning - Older people Pool,OP Blocks - Care Placements,Residential Independent Sector
Cambridgeshire County Council,06-Jul-17,23727617-15642545,-3036,Aliwal Healthcare Ltd,Care Establishment,2 - Commissioning - Older people Pool,OP Blocks - Care Placements,Residential Independent Sector
Cambridgeshire County Council,06-Jul-17,23722640-15642558,-3036,Aliwal Healthcare Ltd,Care Establishment,2 - Commissioning - Older people Pool,OP Blocks - Care Placements,Residential Independent Sector
Cambridgeshire County Council,06-Jul-17,23724951-15642534,-3036,Aliwal Healthcare Ltd,Care Establishment,2 - Commissioning - Older people Pool,OP Blocks - Care Placements,Residential Independent Sector
Cambridgeshire County Council,06-Jul-17,23717594-15642554,-3036,Aliwal Healthcare Ltd,Care Establishment,2 - Commissioning - Older people Pool,OP Blocks - Care Placements,Residential Independent Sector
Cambridgeshire County Council,06-Jul-17,23717540-15642553,-3036,Aliwal Healthcare Ltd,Care Establishment,2 - Commissioning - Older people Pool,OP Blocks - Care Placements,Residential Independent Sector
Cambridgeshire County Council,06-Jul-17,23727552-15648625,-2977,The Elms Nursing Home,Care Establishment,2 - Commissioning - Older people Pool,OP Blocks - Care Placements,Nursing Independent Sector
Cambridgeshire County Council,06-Jul-17,23722753-15646677,-2977,The Cambridge Nursing Centre,Care Establishment,2 - Commissioning - Older people Pool,OP Blocks - Care Placements,Nursing Independent Sector
Cambridgeshire County Council,06-Jul-17,23724984-15646585,-2977,The Cambridge Nursing Centre,Care Establishment,2 - Commissioning - Older people Pool,OP Blocks - Care Placements,Nursing Independent Sector
Cambridgeshire County Council,06-Jul-17,23725059-15646598,-2977,The Cambridge Nursing Centre,Care Establishment,2 - Commissioning - Older people Pool,OP Blocks - Care Placements,Nursing Independent Sector
Cambridgeshire County Council,06-Jul-17,23727543-15646627,-2977,The Cambridge Nursing Centre,Care Establishment,2 - Commissioning - Older people Pool,OP Blocks - Care Placements,Nursing Independent Sector
Cambridgeshire County Council,06-Jul-17,23725119-15648619,-2977,The Elms Nursing Home,Care Establishment,2 - Commissioning - Older people Pool,OP Blocks - Care Placements,Nursing Independent Sector
Cambridgeshire County Council,06-Jul-17,23727683-15648622,-2977,The Elms Nursing Home,Care Establishment,2 - Commissioning - Older people Pool,OP Blocks - Care Placements,Nursing Independent Sector
Cambridgeshire County Council,06-Jul-17,23722757-15648637,-2977,The Elms Nursing Home,Care Establishment,2 - Commissioning - Older people Pool,OP Blocks - Care Placements,Nursing Independent Sector
Cambridgeshire County Council,06-Jul-17,23727630-15646636,-2977,The Cambridge Nursing Centre,Care Establishment,2 - Commissioning - Older people Pool,OP Blocks - Care Placements,Nursing Independent Sector
Cambridgeshire County Council,06-Jul-17,23727632-15646638,-2977,The Cambridge Nursing Centre,Care Establishment,2 - Commissioning - Older people Pool,OP Blocks - Care Placements,Nursing Independent Sector
Cambridgeshire County Council,06-Jul-17,23724990-15648610,-2977,The Elms Nursing Home,Care Establishment,2 - Commissioning - Older people Pool,OP Blocks - Care Placements,Nursing Independent Sector
Cambridgeshire County Council,06-Jul-17,23725158-15648612,-2977,The Elms Nursing Home,Care Establishment,2 - Commissioning - Older people Pool,OP Blocks - Care Placements,Nursing Independent Sector
Cambridgeshire County Council,06-Jul-17,23725118-15648618,-2977,The Elms Nursing Home,Care Establishment,2 - Commissioning - Older people Pool,OP Blocks - Care Placements,Nursing Independent Sector
Cambridgeshire County Council,06-Jul-17,23717560-15648630,-2977,The Elms Nursing Home,Care Establishment,2 - Commissioning - Older people Pool,OP Blocks - Care Placements,Nursing Independent Sector
Cambridgeshire County Council,06-Jul-17,23717635-15648632,-2977,The Elms Nursing Home,Care Establishment,2 - Commissioning - Older people Pool,OP Blocks - Care Placements,Nursing Independent Sector
Cambridgeshire County Council,06-Jul-17,23722750-15646674,-2977,The Cambridge Nursing Centre,Care Establishment,2 - Commissioning - Older people Pool,OP Blocks - Care Placements,Nursing Independent Sector
Cambridgeshire County Council,06-Jul-17,23717609-15646648,-2977,The Cambridge Nursing Centre,Care Establishment,2 - Commissioning - Older people Pool,OP Blocks - Care Placements,Nursing Independent Sector
Cambridgeshire County Council,06-Jul-17,23725111-15646603,-2977,The Cambridge Nursing Centre,Care Establishment,2 - Commissioning - Older people Pool,OP Blocks - Care Placements,Nursing Independent Sector
Cambridgeshire County Council,06-Jul-17,23725184-15646596,-2977,The Cambridge Nursing Centre,Care Establishment,2 - Commissioning - Older people Pool,OP Blocks - Care Placements,Nursing Independent Sector
Cambridgeshire County Council,06-Jul-17,23725120-15648620,-2977,The Elms Nursing Home,Care Establishment,2 - Commissioning - Older people Pool,OP Blocks - Care Placements,Nursing Independent Sector
Cambridgeshire County Council,06-Jul-17,23727549-15646633,-2977,The Cambridge Nursing Centre,Care Establishment,2 - Commissioning - Older people Pool,OP Blocks - Care Placements,Nursing Independent Sector
Cambridgeshire County Council,06-Jul-17,23724975-15648608,-2977,The Elms Nursing Home,Care Establishment,2 - Commissioning - Older people Pool,OP Blocks - Care Placements,Nursing Independent Sector
Cambridgeshire County Council,06-Jul-17,23717729-15648629,-2977,The Elms Nursing Home,Care Establishment,2 - Commissioning - Older people Pool,OP Blocks - Care Placements,Nursing Independent Sector
Cambridgeshire County Council,06-Jul-17,23722756-15648636,-2977,The Elms Nursing Home,Care Establishment,2 - Commissioning - Older people Pool,OP Blocks - Care Placements,Nursing Independent Sector
Cambridgeshire County Council,06-Jul-17,23725302-15646685,-2977,The Cambridge Nursing Centre,Care Establishment,2 - Commissioning - Older people Pool,OP Blocks - Care Placements,Nursing Independent Sector
Cambridgeshire County Council,06-Jul-17,23722519-15646579,-2977,The Cambridge Nursing Centre,Care Establishment,2 - Commissioning - Older people Pool,OP Blocks - Care Placements,Nursing Independent Sector
Cambridgeshire County Council,06-Jul-17,23724983-15646584,-2977,The Cambridge Nursing Centre,Care Establishment,2 - Commissioning - Older people Pool,OP Blocks - Care Placements,Nursing Independent Sector
Cambridgeshire County Council,06-Jul-17,23717608-15646647,-2977,The Cambridge Nursing Centre,Care Establishment,2 - Commissioning - Older people Pool,OP Blocks - Care Placements,Nursing Independent Sector
Cambridgeshire County Council,06-Jul-17,23724974-15648607,-2977,The Elms Nursing Home,Care Establishment,2 - Commissioning - Older people Pool,OP Blocks - Care Placements,Nursing Independent Sector
Cambridgeshire County Council,06-Jul-17,23725157-15648611,-2977,The Elms Nursing Home,Care Establishment,2 - Commissioning - Older people Pool,OP Blocks - Care Placements,Nursing Independent Sector
Cambridgeshire County Council,06-Jul-17,23724992-15648615,-2977,The Elms Nursing Home,Care Establishment,2 - Commissioning - Older people Pool,OP Blocks - Care Placements,Nursing Independent Sector
Cambridgeshire County Council,06-Jul-17,23722654-15646665,-2977,The Cambridge Nursing Centre,Care Establishment,2 - Commissioning - Older people Pool,OP Blocks - Care Placements,Nursing Independent Sector
Cambridgeshire County Council,06-Jul-17,23722656-15646667,-2977,The Cambridge Nursing Centre,Care Establishment,2 - Commissioning - Older people Pool,OP Blocks - Care Placements,Nursing Independent Sector
Cambridgeshire County Council,06-Jul-17,23725112-15646604,-2977,The Cambridge Nursing Centre,Care Establishment,2 - Commissioning - Older people Pool,OP Blocks - Care Placements,Nursing Independent Sector
Cambridgeshire County Council,06-Jul-17,23727546-15646630,-2977,The Cambridge Nursing Centre,Care Establishment,2 - Commissioning - Older people Pool,OP Blocks - Care Placements,Nursing Independent Sector
Cambridgeshire County Council,06-Jul-17,23717550-15646641,-2977,The Cambridge Nursing Centre,Care Establishment,2 - Commissioning - Older people Pool,OP Blocks - Care Placements,Nursing Independent Sector
Cambridgeshire County Council,06-Jul-17,23717553-15646644,-2977,The Cambridge Nursing Centre,Care Establishment,2 - Commissioning - Older people Pool,OP Blocks - Care Placements,Nursing Independent Sector
Cambridgeshire County Council,13-Jul-17,23726720-15676976,-2919.43,Aurora Orchard Manor#1,Care Establishment,Corporate Services,LDP Young Adults - Care,Residential Independent Sector
Cambridgeshire County Council,13-Jul-17,23726715-15676971,-2919.43,Aurora Orchard Manor#1,Care Establishment,Corporate Services,LDP Young Adults - Care,Residential Independent Sector
Cambridgeshire County Council,13-Jul-17,23726717-15676973,-2919.43,Aurora Orchard Manor#1,Care Establishment,Corporate Services,LDP Young Adults - Care,Residential Independent Sector
Cambridgeshire County Council,13-Jul-17,23726719-15676975,-2919.43,Aurora Orchard Manor#1,Care Establishment,Corporate Services,LDP Young Adults - Care,Residential Independent Sector
Cambridgeshire County Council,13-Jul-17,23726722-15676978,-2919.43,Aurora Orchard Manor#1,Care Establishment,Corporate Services,LDP Young Adults - Care,Residential Independent Sector
Cambridgeshire County Council,13-Jul-17,23726713-15676969,-2919.43,Aurora Orchard Manor#1,Care Establishment,Corporate Services,LDP Young Adults - Care,Residential Independent Sector
Cambridgeshire County Council,13-Jul-17,23726716-15676972,-2919.43,Aurora Orchard Manor#1,Care Establishment,Corporate Services,LDP Young Adults - Care,Residential Independent Sector
Cambridgeshire County Council,13-Jul-17,23726724-15676980,-2919.43,Aurora Orchard Manor#1,Care Establishment,Corporate Services,LDP Young Adults - Care,Residential Independent Sector
Cambridgeshire County Council,13-Jul-17,23726712-15676968,-2919.43,Aurora Orchard Manor#1,Care Establishment,Corporate Services,LDP Young Adults - Care,Residential Independent Sector
Cambridgeshire County Council,13-Jul-17,23726714-15676970,-2919.43,Aurora Orchard Manor#1,Care Establishment,Corporate Services,LDP Young Adults - Care,Residential Independent Sector
Cambridgeshire County Council,13-Jul-17,23726718-15676974,-2919.43,Aurora Orchard Manor#1,Care Establishment,Corporate Services,LDP Young Adults - Care,Residential Independent Sector
Cambridgeshire County Council,13-Jul-17,23726721-15676977,-2919.43,Aurora Orchard Manor#1,Care Establishment,Corporate Services,LDP Young Adults - Care,Residential Independent Sector
Cambridgeshire County Council,06-Jul-17,23725105-15646039,-2614.29,Brook Healthcare#1,Care Establishment,2 - Commissioning - Older people Pool,OP Blocks - Care Placements,Residential Independent Sector
Cambridgeshire County Council,06-Jul-17,23724949-15642532,-2602.29,Aliwal Healthcare Ltd,Care Establishment,2 - Commissioning - Older people Pool,OP Blocks - Care Placements,Residential Independent Sector
Cambridgeshire County Council,06-Jul-17,23717683-15648633,-2551.71,The Elms Nursing Home,Care Establishment,2 - Commissioning - Older people Pool,OP Blocks - Care Placements,Nursing Independent Sector
Cambridgeshire County Council,06-Jul-17,23726999-15646616,-2551.71,The Cambridge Nursing Centre,Care Establishment,2 - Commissioning - Older people Pool,OP Blocks - Care Placements,Nursing Independent Sector
Cambridgeshire County Council,13-Jul-17,23726723-15676979,-2502.37,Aurora Orchard Manor#1,Care Establishment,Corporate Services,LDP Young Adults - Care,Residential Independent Sector
Cambridgeshire County Council,06-Jul-17,23725099-15645933,-2495,Hunters Healthcare (Hunters Down),Care Establishment,2 - Commissioning - Older people Pool,OP Blocks - Care Placements,Residential Independent Sector
Cambridgeshire County Council,06-Jul-17,23717713-15645969,-2495,Hunters Healthcare (Hunters Down),Care Establishment,2 - Commissioning - Older people Pool,OP Blocks - Care Placements,Residential Independent Sector
Cambridgeshire County Council,06-Jul-17,23725236-15646000,-2495,Hunters Healthcare (Hunters Down),Care Establishment,2 - Commissioning - Older people Pool,OP Blocks - Care Placements,Residential Independent Sector
Cambridgeshire County Council,06-Jul-17,23727595-15645961,-2495,Hunters Healthcare (Hunters Down),Care Establishment,2 - Commissioning - Older people Pool,OP Blocks - Care Placements,Residential Independent Sector
Cambridgeshire County Council,06-Jul-17,23717545-15645974,-2495,Hunters Healthcare (Hunters Down),Care Establishment,2 - Commissioning - Older people Pool,OP Blocks - Care Placements,Residential Independent Sector
Cambridgeshire County Council,06-Jul-17,23717622-15645982,-2495,Hunters Healthcare (Hunters Down),Care Establishment,2 - Commissioning - Older people Pool,OP Blocks - Care Placements,Residential Independent Sector
Cambridgeshire County Council,06-Jul-17,23726990-15645949,-2495,Hunters Healthcare (Hunters Down),Care Establishment,2 - Commissioning - Older people Pool,OP Blocks - Care Placements,Residential Independent Sector
Cambridgeshire County Council,06-Jul-17,23726993-15645952,-2495,Hunters Healthcare (Hunters Down),Care Establishment,2 - Commissioning - Older people Pool,OP Blocks - Care Placements,Residential Independent Sector
Cambridgeshire County Council,06-Jul-17,23727596-15645962,-2495,Hunters Healthcare (Hunters Down),Care Establishment,2 - Commissioning - Older people Pool,OP Blocks - Care Placements,Residential Independent Sector
Cambridgeshire County Council,06-Jul-17,23722571-15645899,-2495,Hunters Healthcare (Hunters Down),Care Establishment,2 - Commissioning - Older people Pool,OP Blocks - Care Placements,Residential Independent Sector
Cambridgeshire County Council,06-Jul-17,23717620-15645980,-2495,Hunters Healthcare (Hunters Down),Care Establishment,2 - Commissioning - Older people Pool,OP Blocks - Care Placements,Residential Independent Sector
Cambridgeshire County Council,06-Jul-17,23725022-15643046,-2384,Glennfield Care Centre (Op),Care Establishment,2 - Commissioning - Older people Pool,OP Blocks - Care Placements,Residential Independent Sector
Cambridgeshire County Council,06-Jul-17,23725211-15643042,-2384,Glennfield Care Centre (Op),Care Establishment,2 - Commissioning - Older people Pool,OP Blocks - Care Placements,Residential Independent Sector
Cambridgeshire County Council,06-Jul-17,23727526-15643056,-2384,Glennfield Care Centre (Op),Care Establishment,2 - Commissioning - Older people Pool,OP Blocks - Care Placements,Residential Independent Sector
Cambridgeshire County Council,06-Jul-17,23725213-15643071,-2384,Glennfield Care Centre (Op),Care Establishment,2 - Commissioning - Older people Pool,OP Blocks - Care Placements,Residential Independent Sector
Cambridgeshire County Council,06-Jul-17,23725084-15643049,-2384,Glennfield Care Centre (Op),Care Establishment,2 - Commissioning - Older people Pool,OP Blocks - Care Placements,Residential Independent Sector
Cambridgeshire County Council,06-Jul-17,23721840-15643031,-2384,Glennfield Care Centre (Op),Care Establishment,2 - Commissioning - Older people Pool,OP Blocks - Care Placements,Residential Independent Sector
Cambridgeshire County Council,06-Jul-17,23722718-15643068,-2384,Glennfield Care Centre (Op),Care Establishment,2 - Commissioning - Older people Pool,OP Blocks - Care Placements,Residential Independent Sector
Cambridgeshire County Council,06-Jul-17,23722595-15643036,-2384,Glennfield Care Centre (Op),Care Establishment,2 - Commissioning - Older people Pool,OP Blocks - Care Placements,Residential Independent Sector
Cambridgeshire County Council,06-Jul-17,23725023-15643047,-2384,Glennfield Care Centre (Op),Care Establishment,2 - Commissioning - Older people Pool,OP Blocks - Care Placements,Residential Independent Sector
Cambridgeshire County Council,06-Jul-17,23727606-15643059,-2384,Glennfield Care Centre (Op),Care Establishment,2 - Commissioning - Older people Pool,OP Blocks - Care Placements,Residential Independent Sector
Cambridgeshire County Council,06-Jul-17,23725273-15643075,-2384,Glennfield Care Centre (Op),Care Establishment,2 - Commissioning - Older people Pool,OP Blocks - Care Placements,Residential Independent Sector
Cambridgeshire County Council,20-Jul-17,23806635-15727187,-2337.29,Dimensions (Uk) Ltd,Care Establishment,4 - Operations - Providers services,LDP South Cambs - Special Needs,Supported Living
Cambridgeshire County Council,20-Jul-17,23855044-15727266,-2337.29,Dimensions (Uk) Ltd,Care Establishment,4 - Operations - Providers services,LDP South Cambs - Special Needs,Supported Living
Cambridgeshire County Council,20-Jul-17,23855047-15727269,-2337.29,Dimensions (Uk) Ltd,Care Establishment,4 - Operations - Providers services,LDP Cambs City - Special Needs,Supported Living
Cambridgeshire County Council,06-Jul-17,23725838-15650319,-2337.29,Dimensions (Uk) Ltd,Care Establishment,4 - Operations - Providers services,LDP Cambs City - Special Needs,Supported Living
Cambridgeshire County Council,06-Jul-17,23725845-15650326,-2337.29,Dimensions (Uk) Ltd,Care Establishment,4 - Operations - Providers services,LDP South Cambs - Special Needs,Supported Living
Cambridgeshire County Council,06-Jul-17,23725848-15650329,-2337.29,Dimensions (Uk) Ltd,Care Establishment,4 - Operations - Providers services,LDP Cambs City - Special Needs,Supported Living
Cambridgeshire County Council,20-Jul-17,23806642-15727194,-2337.29,Dimensions (Uk) Ltd,Care Establishment,4 - Operations - Providers services,LDP Cambs City - Special Needs,Supported Living
Cambridgeshire County Council,20-Jul-17,23855042-15727264,-2337.29,Dimensions (Uk) Ltd,Care Establishment,4 - Operations - Providers services,LDP South Cambs - Special Needs,Supported Living
Cambridgeshire County Council,06-Jul-17,23725847-15650328,-2337.29,Dimensions (Uk) Ltd,Care Establishment,4 - Operations - Providers services,LDP Cambs City - Special Needs,Supported Living
Cambridgeshire County Council,06-Jul-17,23635594-15650348,-2337.29,Dimensions (Uk) Ltd,Care Establishment,4 - Operations - Providers services,LDP South Cambs - Special Needs,Supported Living
Cambridgeshire County Council,20-Jul-17,23806627-15727179,-2337.29,Dimensions (Uk) Ltd,Care Establishment,4 - Operations - Providers services,LDP South Cambs - Special Needs,Supported Living
Cambridgeshire County Council,20-Jul-17,23806631-15727183,-2337.29,Dimensions (Uk) Ltd,Care Establishment,4 - Operations - Providers services,LDP Cambs City - Special Needs,Supported Living
Cambridgeshire County Council,20-Jul-17,23806641-15727193,-2337.29,Dimensions (Uk) Ltd,Care Establishment,4 - Operations - Providers services,LDP South Cambs - Special Needs,Supported Living
Cambridgeshire County Council,20-Jul-17,23855050-15727272,-2337.29,Dimensions (Uk) Ltd,Care Establishment,4 - Operations - Providers services,LDP South Cambs - Special Needs,Supported Living
Cambridgeshire County Council,06-Jul-17,23725839-15650320,-2337.29,Dimensions (Uk) Ltd,Care Establishment,4 - Operations - Providers services,LDP Cambs City - Special Needs,Supported Living
Cambridgeshire County Council,06-Jul-17,23725850-15650331,-2337.29,Dimensions (Uk) Ltd,Care Establishment,4 - Operations - Providers services,LDP South Cambs - Special Needs,Supported Living
Cambridgeshire County Council,06-Jul-17,23635588-15650342,-2337.29,Dimensions (Uk) Ltd,Care Establishment,4 - Operations - Providers services,LDP South Cambs - Special Needs,Supported Living
Cambridgeshire County Council,06-Jul-17,23635591-15650345,-2337.29,Dimensions (Uk) Ltd,Care Establishment,4 - Operations - Providers services,LDP South Cambs - Special Needs,Supported Living
Cambridgeshire County Council,06-Jul-17,23635592-15650346,-2337.29,Dimensions (Uk) Ltd,Care Establishment,4 - Operations - Providers services,LDP South Cambs - Special Needs,Supported Living
Cambridgeshire County Council,20-Jul-17,23855051-15727273,-2337.29,Dimensions (Uk) Ltd,Care Establishment,4 - Operations - Providers services,LDP Cambs City - Special Needs,Supported Living
Cambridgeshire County Council,06-Jul-17,23725844-15650325,-2337.29,Dimensions (Uk) Ltd,Care Establishment,4 - Operations - Providers services,LDP Cambs City - Special Needs,Supported Living
Cambridgeshire County Council,06-Jul-17,23635583-15650337,-2337.29,Dimensions (Uk) Ltd,Care Establishment,4 - Operations - Providers services,LDP Cambs City - Special Needs,Supported Living
Cambridgeshire County Council,06-Jul-17,23635595-15650349,-2337.29,Dimensions (Uk) Ltd,Care Establishment,4 - Operations - Providers services,LDP Cambs City - Special Needs,Supported Living
Cambridgeshire County Council,20-Jul-17,23806636-15727188,-2337.29,Dimensions (Uk) Ltd,Care Establishment,4 - Operations - Providers services,LDP South Cambs - Special Needs,Supported Living
Cambridgeshire County Council,20-Jul-17,23855046-15727268,-2337.29,Dimensions (Uk) Ltd,Care Establishment,4 - Operations - Providers services,LDP Cambs City - Special Needs,Supported Living
Cambridgeshire County Council,06-Jul-17,23725853-15650334,-2337.29,Dimensions (Uk) Ltd,Care Establishment,4 - Operations - Providers services,LDP Cambs City - Special Needs,Supported Living
Cambridgeshire County Council,06-Jul-17,23635600-15650354,-2337.29,Dimensions (Uk) Ltd,Care Establishment,4 - Operations - Providers services,LDP Cambs City - Special Needs,Supported Living
Cambridgeshire County Council,20-Jul-17,23806630-15727182,-2337.29,Dimensions (Uk) Ltd,Care Establishment,4 - Operations - Providers services,LDP South Cambs - Special Needs,Supported Living
Cambridgeshire County Council,20-Jul-17,23855058-15727279,-2337.29,Dimensions (Uk) Ltd,Care Establishment,4 - Operations - Providers services,LDP South Cambs - Special Needs,Supported Living
Cambridgeshire County Council,06-Jul-17,23635597-15650351,-2337.29,Dimensions (Uk) Ltd,Care Establishment,4 - Operations - Providers services,LDP Cambs City - Special Needs,Supported Living
Cambridgeshire County Council,20-Jul-17,23806643-15727195,-2337.29,Dimensions (Uk) Ltd,Care Establishment,4 - Operations - Providers services,LDP Cambs City - Special Needs,Supported Living
Cambridgeshire County Council,20-Jul-17,23855048-15727270,-2337.29,Dimensions (Uk) Ltd,Care Establishment,4 - Operations - Providers services,LDP Cambs City - Special Needs,Supported Living
Cambridgeshire County Council,06-Jul-17,23725233-15645997,-2138.57,Hunters Healthcare (Hunters Down),Care Establishment,2 - Commissioning - Older people Pool,OP Blocks - Care Placements,Residential Independent Sector
Cambridgeshire County Council,06-Jul-17,23722713-15646668,-2126.43,The Cambridge Nursing Centre,Care Establishment,2 - Commissioning - Older people Pool,OP Blocks - Care Placements,Nursing Independent Sector
Cambridgeshire County Council,06-Jul-17,23721819-15643764,-2080,The Red House Residential & Nursing Home,Care Establishment,2 - Commissioning - Older people Pool,OP Blocks - Care Placements,Residential Independent Sector
Cambridgeshire County Council,06-Jul-17,23717624-15643804,-2080,The Red House Residential & Nursing Home,Care Establishment,2 - Commissioning - Older people Pool,OP Blocks - Care Placements,Residential Independent Sector
Cambridgeshire County Council,06-Jul-17,23725255-15643812,-2080,The Red House Residential & Nursing Home,Care Establishment,2 - Commissioning - Older people Pool,OP Blocks - Care Placements,Residential Independent Sector
Cambridgeshire County Council,06-Jul-17,23726916-15643785,-2080,The Red House Residential & Nursing Home,Care Establishment,2 - Commissioning - Older people Pool,OP Blocks - Care Placements,Residential Independent Sector
Cambridgeshire County Council,06-Jul-17,23727540-15643789,-2080,The Red House Residential & Nursing Home,Care Establishment,2 - Commissioning - Older people Pool,OP Blocks - Care Placements,Residential Independent Sector
Cambridgeshire County Council,06-Jul-17,23725052-15643775,-2080,The Red House Residential & Nursing Home,Care Establishment,2 - Commissioning - Older people Pool,OP Blocks - Care Placements,Residential Independent Sector
Cambridgeshire County Council,06-Jul-17,23725180-15643773,-2080,The Red House Residential & Nursing Home,Care Establishment,2 - Commissioning - Older people Pool,OP Blocks - Care Placements,Residential Independent Sector
Cambridgeshire County Council,06-Jul-17,23725108-15643778,-2080,The Red House Residential & Nursing Home,Care Establishment,2 - Commissioning - Older people Pool,OP Blocks - Care Placements,Residential Independent Sector
Cambridgeshire County Council,06-Jul-17,23722576-15643769,-2080,The Red House Residential & Nursing Home,Care Establishment,2 - Commissioning - Older people Pool,OP Blocks - Care Placements,Residential Independent Sector
Cambridgeshire County Council,06-Jul-17,23727625-15643793,-2080,The Red House Residential & Nursing Home,Care Establishment,2 - Commissioning - Older people Pool,OP Blocks - Care Placements,Residential Independent Sector
Cambridgeshire County Council,06-Jul-17,23717720-15643798,-2080,The Red House Residential & Nursing Home,Care Establishment,2 - Commissioning - Older people Pool,OP Blocks - Care Placements,Residential Independent Sector
Cambridgeshire County Council,20-Jul-17,23722760-15710261,-2052,Etheldred House,Care Establishment,2 - Commissioning - Older people Pool,OP Blocks - Care Placements,Residential Independent Sector
Cambridgeshire County Council,20-Jul-17,23725194-15710274,-2052,Etheldred House,Care Establishment,2 - Commissioning - Older people Pool,OP Blocks - Care Placements,Residential Independent Sector
Cambridgeshire County Council,20-Jul-17,23717735-15710221,-2052,Etheldred House,Care Establishment,2 - Commissioning - Older people Pool,OP Blocks - Care Placements,Residential Independent Sector
Cambridgeshire County Council,20-Jul-17,23717566-15710209,-2052,Etheldred House,Care Establishment,2 - Commissioning - Older people Pool,OP Blocks - Care Placements,Residential Independent Sector
Cambridgeshire County Council,20-Jul-17,23722762-15710263,-2052,Etheldred House,Care Establishment,2 - Commissioning - Older people Pool,OP Blocks - Care Placements,Residential Independent Sector
Cambridgeshire County Council,20-Jul-17,23727512-15710280,-2052,Etheldred House,Care Establishment,2 - Commissioning - Older people Pool,OP Blocks - Care Placements,Residential Independent Sector
Cambridgeshire County Council,20-Jul-17,23717569-15710212,-2052,Etheldred House,Care Establishment,2 - Commissioning - Older people Pool,OP Blocks - Care Placements,Residential Independent Sector
Cambridgeshire County Council,20-Jul-17,23727686-15710290,-2052,Etheldred House,Care Establishment,2 - Commissioning - Older people Pool,OP Blocks - Care Placements,Residential Independent Sector
Cambridgeshire County Council,20-Jul-17,23717637-15710214,-2052,Etheldred House,Care Establishment,2 - Commissioning - Older people Pool,OP Blocks - Care Placements,Residential Independent Sector
Cambridgeshire County Council,20-Jul-17,23725191-15710271,-2052,Etheldred House,Care Establishment,2 - Commissioning - Older people Pool,OP Blocks - Care Placements,Residential Independent Sector
Cambridgeshire County Council,20-Jul-17,23727556-15710284,-2052,Etheldred House,Care Establishment,2 - Commissioning - Older people Pool,OP Blocks - Care Placements,Residential Independent Sector
Cambridgeshire County Council,20-Jul-17,23721766-15710247,-2052,Etheldred House,Care Establishment,2 - Commissioning - Older people Pool,OP Blocks - Care Placements,Residential Independent Sector
Cambridgeshire County Council,20-Jul-17,23727511-15710279,-2052,Etheldred House,Care Establishment,2 - Commissioning - Older people Pool,OP Blocks - Care Placements,Residential Independent Sector
Cambridgeshire County Council,20-Jul-17,23717564-15710207,-2052,Etheldred House,Care Establishment,2 - Commissioning - Older people Pool,OP Blocks - Care Placements,Residential Independent Sector
Cambridgeshire County Council,20-Jul-17,23717732-15710218,-2052,Etheldred House,Care Establishment,2 - Commissioning - Older people Pool,OP Blocks - Care Placements,Residential Independent Sector
Cambridgeshire County Council,20-Jul-17,23722534-15710253,-2052,Etheldred House,Care Establishment,2 - Commissioning - Older people Pool,OP Blocks - Care Placements,Residential Independent Sector
Cambridgeshire County Council,20-Jul-17,23722667-15710258,-2052,Etheldred House,Care Establishment,2 - Commissioning - Older people Pool,OP Blocks - Care Placements,Residential Independent Sector
Cambridgeshire County Council,06-Jul-17,23725140-15643038,-2043.43,Glennfield Care Centre (Op),Care Establishment,2 - Commissioning - Older people Pool,OP Blocks - Care Placements,Residential Independent Sector
Cambridgeshire County Council,20-Jul-17,23807465-15720023,-2028.09,The Edmund Trust,Care Establishment,2 - Operations - Learning Disability,LDP South Cambs Locality - Care,Supported Living
Cambridgeshire County Council,20-Jul-17,23805392-15719999,-2028.09,The Edmund Trust,Care Establishment,2 - Operations - Learning Disability,LDP South Cambs Locality - Care,Supported Living
Cambridgeshire County Council,20-Jul-17,23807464-15720022,-2028.09,The Edmund Trust,Care Establishment,2 - Operations - Learning Disability,LDP South Cambs Locality - Care,Supported Living
Cambridgeshire County Council,20-Jul-17,23807483-15720041,-2028.09,The Edmund Trust,Care Establishment,2 - Operations - Learning Disability,LDP South Cambs Locality - Care,Supported Living
Cambridgeshire County Council,20-Jul-17,23807467-15720025,-2028.09,The Edmund Trust,Care Establishment,2 - Operations - Learning Disability,LDP South Cambs Locality - Care,Supported Living
Cambridgeshire County Council,20-Jul-17,23807471-15720029,-2028.09,The Edmund Trust,Care Establishment,2 - Operations - Learning Disability,LDP South Cambs Locality - Care,Supported Living
Cambridgeshire County Council,20-Jul-17,23807469-15720027,-2028.09,The Edmund Trust,Care Establishment,2 - Operations - Learning Disability,LDP South Cambs Locality - Care,Supported Living
Cambridgeshire County Council,20-Jul-17,23805391-15719998,-2028.09,The Edmund Trust,Care Establishment,2 - Operations - Learning Disability,LDP South Cambs Locality - Care,Supported Living
Cambridgeshire County Council,06-Jul-17,23717688-15641503,-1926.9,Home Close Ltd,Care Establishment,2 - Commissioning - Older people Pool,OP Blocks - Care Placements,Nursing Independent Sector
Cambridgeshire County Council,06-Jul-17,23726933-15641496,-1926.9,Home Close Ltd,Care Establishment,2 - Commissioning - Older people Pool,OP Blocks - Care Placements,Nursing Independent Sector
Cambridgeshire County Council,06-Jul-17,23726934-15641497,-1926.9,Home Close Ltd,Care Establishment,2 - Commissioning - Older people Pool,OP Blocks - Care Placements,Nursing Independent Sector
Cambridgeshire County Council,06-Jul-17,23717738-15641505,-1926.9,Home Close Ltd,Care Establishment,2 - Commissioning - Older people Pool,OP Blocks - Care Placements,Nursing Independent Sector
Cambridgeshire County Council,06-Jul-17,23725167-15641491,-1926.9,Home Close Ltd,Care Establishment,2 - Commissioning - Older people Pool,OP Blocks - Care Placements,Nursing Independent Sector
Cambridgeshire County Council,06-Jul-17,23717518-15641508,-1926.9,Home Close Ltd,Care Establishment,2 - Commissioning - Older people Pool,OP Blocks - Care Placements,Nursing Independent Sector
Cambridgeshire County Council,06-Jul-17,23717573-15641510,-1926.9,Home Close Ltd,Care Establishment,2 - Commissioning - Older people Pool,OP Blocks - Care Placements,Nursing Independent Sector
Cambridgeshire County Council,06-Jul-17,23722590-15641482,-1926.9,Home Close Ltd,Care Establishment,2 - Commissioning - Older people Pool,OP Blocks - Care Placements,Nursing Independent Sector
Cambridgeshire County Council,06-Jul-17,23725128-15641485,-1926.9,Home Close Ltd,Care Establishment,2 - Commissioning - Older people Pool,OP Blocks - Care Placements,Nursing Independent Sector
Cambridgeshire County Council,06-Jul-17,23725129-15641486,-1926.9,Home Close Ltd,Care Establishment,2 - Commissioning - Older people Pool,OP Blocks - Care Placements,Nursing Independent Sector
Cambridgeshire County Council,06-Jul-17,23722674-15641518,-1926.9,Home Close Ltd,Care Establishment,2 - Commissioning - Older people Pool,OP Blocks - Care Placements,Nursing Independent Sector
Cambridgeshire County Council,06-Jul-17,23717623-15643803,-1782.86,The Red House Residential & Nursing Home,Care Establishment,2 - Commissioning - Older people Pool,OP Blocks - Care Placements,Residential Independent Sector
Cambridgeshire County Council,20-Jul-17,23717636-15710213,-1758.86,Etheldred House,Care Establishment,2 - Commissioning - Older people Pool,OP Blocks - Care Placements,Residential Independent Sector
Cambridgeshire County Council,20-Jul-17,23722758-15710259,-1758.86,Etheldred House,Care Establishment,2 - Commissioning - Older people Pool,OP Blocks - Care Placements,Residential Independent Sector
Cambridgeshire County Council,20-Jul-17,23803494-15723490,-1758.56,Redacted Personal Data,Individual,2 - Operations - Learning Disability,LDP South Cambs Locality - Care,SDS - Care and support Services
Cambridgeshire County Council,20-Jul-17,23803493-15723489,-1758.56,Redacted Personal Data,Individual,2 - Operations - Learning Disability,LDP South Cambs Locality - Care,SDS - Care and support Services
Cambridgeshire County Council,20-Jul-17,23803495-15723491,-1758.56,Redacted Personal Data,Individual,2 - Operations - Learning Disability,LDP South Cambs Locality - Care,SDS - Care and support Services
Cambridgeshire County Council,20-Jul-17,23803496-15723492,-1758.56,Redacted Personal Data,Individual,2 - Operations - Learning Disability,LDP South Cambs Locality - Care,SDS - Care and support Services
Cambridgeshire County Council,20-Jul-17,23803492-15723488,-1758.56,Redacted Personal Data,Individual,2 - Operations - Learning Disability,LDP South Cambs Locality - Care,SDS - Care and support Services
Cambridgeshire County Council,20-Jul-17,23860268-15714332,-1693.03,Thera East Anglia,Care Establishment,4 - Operations - Providers services,LDP E Cambs Locality - Care,Supported Living
Cambridgeshire County Council,20-Jul-17,23860277-15714336,-1693.03,Thera East Anglia,Care Establishment,4 - Operations - Providers services,LDP E Cambs Locality - Care,Supported Living
Cambridgeshire County Council,20-Jul-17,23860631-15714362,-1693.03,Thera East Anglia,Care Establishment,4 - Operations - Providers services,LDP E Cambs Locality - Care,Supported Living
Cambridgeshire County Council,20-Jul-17,23860633-15714364,-1693.03,Thera East Anglia,Care Establishment,4 - Operations - Providers services,LDP E Cambs Locality - Care,Supported Living
Cambridgeshire County Council,20-Jul-17,23853017-15714109,-1693.03,Thera East Anglia,Care Establishment,4 - Operations - Providers services,LDP E Cambs Locality - Care,Supported Living
Cambridgeshire County Council,20-Jul-17,23853028-15714117,-1693.03,Thera East Anglia,Care Establishment,4 - Operations - Providers services,LDP E Cambs Locality - Care,Supported Living
Cambridgeshire County Council,20-Jul-17,23853054-15714136,-1693.03,Thera East Anglia,Care Establishment,4 - Operations - Providers services,LDP E Cambs Locality - Care,Supported Living
Cambridgeshire County Council,20-Jul-17,23803372-15713610,-1693.03,Thera East Anglia,Care Establishment,4 - Operations - Providers services,LDP E Cambs Special Needs,Supported Living
Cambridgeshire County Council,20-Jul-17,23860229-15714305,-1693.03,Thera East Anglia,Care Establishment,4 - Operations - Providers services,LDP E Cambs Locality - Care,Supported Living
Cambridgeshire County Council,20-Jul-17,23860245-15714313,-1693.03,Thera East Anglia,Care Establishment,4 - Operations - Providers services,LDP E Cambs Locality - Care,Supported Living
Cambridgeshire County Council,20-Jul-17,23860249-15714317,-1693.03,Thera East Anglia,Care Establishment,4 - Operations - Providers services,LDP E Cambs Locality - Care,Supported Living
Cambridgeshire County Council,20-Jul-17,23860274-15714333,-1693.03,Thera East Anglia,Care Establishment,4 - Operations - Providers services,LDP E Cambs Locality - Care,Supported Living
Cambridgeshire County Council,20-Jul-17,23860609-15714347,-1693.03,Thera East Anglia,Care Establishment,4 - Operations - Providers services,LDP E Cambs Locality - Care,Supported Living
Cambridgeshire County Council,20-Jul-17,23860622-15714355,-1693.03,Thera East Anglia,Care Establishment,4 - Operations - Providers services,LDP E Cambs Locality - Care,Supported Living
Cambridgeshire County Council,20-Jul-17,23853029-15714118,-1693.03,Thera East Anglia,Care Establishment,4 - Operations - Providers services,LDP E Cambs Locality - Care,Supported Living
Cambridgeshire County Council,20-Jul-17,23853037-15714130,-1693.03,Thera East Anglia,Care Establishment,4 - Operations - Providers services,LDP E Cambs Locality - Care,Supported Living
Cambridgeshire County Council,20-Jul-17,23860235-15714306,-1693.03,Thera East Anglia,Care Establishment,4 - Operations - Providers services,LDP E Cambs Locality - Care,Supported Living
Cambridgeshire County Council,20-Jul-17,23860240-15714311,-1693.03,Thera East Anglia,Care Establishment,4 - Operations - Providers services,LDP E Cambs Locality - Care,Supported Living
Cambridgeshire County Council,20-Jul-17,23860629-15714361,-1693.03,Thera East Anglia,Care Establishment,4 - Operations - Providers services,LDP E Cambs Locality - Care,Supported Living
Cambridgeshire County Council,20-Jul-17,23860641-15714367,-1693.03,Thera East Anglia,Care Establishment,4 - Operations - Providers services,LDP E Cambs Locality - Care,Supported Living
Cambridgeshire County Council,20-Jul-17,23853036-15714129,-1693.03,Thera East Anglia,Care Establishment,4 - Operations - Providers services,LDP E Cambs Locality - Care,Supported Living
Cambridgeshire County Council,20-Jul-17,23853056-15714138,-1693.03,Thera East Anglia,Care Establishment,4 - Operations - Providers services,LDP E Cambs Locality - Care,Supported Living
Cambridgeshire County Council,20-Jul-17,23860212-15714295,-1693.03,Thera East Anglia,Care Establishment,4 - Operations - Providers services,LDP E Cambs Locality - Care,Supported Living
Cambridgeshire County Council,20-Jul-17,23860241-15714312,-1693.03,Thera East Anglia,Care Establishment,4 - Operations - Providers services,LDP E Cambs Locality - Care,Supported Living
Cambridgeshire County Council,20-Jul-17,23860280-15714339,-1693.03,Thera East Anglia,Care Establishment,4 - Operations - Providers services,LDP E Cambs Locality - Care,Supported Living
Cambridgeshire County Council,20-Jul-17,23860223-15714301,-1693.03,Thera East Anglia,Care Establishment,4 - Operations - Providers services,LDP E Cambs Locality - Care,Supported Living
Cambridgeshire County Council,20-Jul-17,23860219-15714299,-1693.03,Thera East Anglia,Care Establishment,4 - Operations - Providers services,LDP E Cambs Locality - Care,Supported Living
Cambridgeshire County Council,20-Jul-17,23860259-15714324,-1693.03,Thera East Anglia,Care Establishment,4 - Operations - Providers services,LDP E Cambs Locality - Care,Supported Living
Cambridgeshire County Council,20-Jul-17,23860279-15714338,-1693.03,Thera East Anglia,Care Establishment,4 - Operations - Providers services,LDP E Cambs Locality - Care,Supported Living
Cambridgeshire County Council,20-Jul-17,23860625-15714357,-1693.03,Thera East Anglia,Care Establishment,4 - Operations - Providers services,LDP E Cambs Locality - Care,Supported Living
Cambridgeshire County Council,20-Jul-17,23860643-15714369,-1693.03,Thera East Anglia,Care Establishment,4 - Operations - Providers services,LDP E Cambs Locality - Care,Supported Living
Cambridgeshire County Council,20-Jul-17,23860654-15714373,-1693.03,Thera East Anglia,Care Establishment,4 - Operations - Providers services,LDP E Cambs Locality - Care,Supported Living
Cambridgeshire County Council,20-Jul-17,23860660-15714377,-1693.03,Thera East Anglia,Care Establishment,4 - Operations - Providers services,LDP E Cambs Locality - Care,Supported Living
Cambridgeshire County Council,20-Jul-17,23853044-15714132,-1693.03,Thera East Anglia,Care Establishment,4 - Operations - Providers services,LDP E Cambs Locality - Care,Supported Living
Cambridgeshire County Council,20-Jul-17,23860217-15714297,-1693.03,Thera East Anglia,Care Establishment,4 - Operations - Providers services,LDP E Cambs Locality - Care,Supported Living
Cambridgeshire County Council,20-Jul-17,23860256-15714321,-1693.03,Thera East Anglia,Care Establishment,4 - Operations - Providers services,LDP E Cambs Locality - Care,Supported Living
Cambridgeshire County Council,20-Jul-17,23860260-15714325,-1693.03,Thera East Anglia,Care Establishment,4 - Operations - Providers services,LDP E Cambs Locality - Care,Supported Living
Cambridgeshire County Council,20-Jul-17,23860262-15714327,-1693.03,Thera East Anglia,Care Establishment,4 - Operations - Providers services,LDP E Cambs Locality - Care,Supported Living
Cambridgeshire County Council,20-Jul-17,23853018-15714110,-1693.03,Thera East Anglia,Care Establishment,4 - Operations - Providers services,LDP E Cambs Locality - Care,Supported Living
Cambridgeshire County Council,20-Jul-17,23853025-15714114,-1693.03,Thera East Anglia,Care Establishment,4 - Operations - Providers services,LDP E Cambs Locality - Care,Supported Living
Cambridgeshire County Council,20-Jul-17,23853046-15714134,-1693.03,Thera East Anglia,Care Establishment,4 - Operations - Providers services,LDP E Cambs Locality - Care,Supported Living
Cambridgeshire County Council,20-Jul-17,23860237-15714308,-1693.03,Thera East Anglia,Care Establishment,4 - Operations - Providers services,LDP E Cambs Locality - Care,Supported Living
Cambridgeshire County Council,20-Jul-17,23860247-15714315,-1693.03,Thera East Anglia,Care Establishment,4 - Operations - Providers services,LDP E Cambs Locality - Care,Supported Living
Cambridgeshire County Council,20-Jul-17,23860265-15714329,-1693.03,Thera East Anglia,Care Establishment,4 - Operations - Providers services,LDP E Cambs Locality - Care,Supported Living
Cambridgeshire County Council,20-Jul-17,23860266-15714330,-1693.03,Thera East Anglia,Care Establishment,4 - Operations - Providers services,LDP E Cambs Locality - Care,Supported Living
Cambridgeshire County Council,20-Jul-17,23860627-15714359,-1693.03,Thera East Anglia,Care Establishment,4 - Operations - Providers services,LDP E Cambs Locality - Care,Supported Living
Cambridgeshire County Council,20-Jul-17,23853026-15714115,-1693.03,Thera East Anglia,Care Establishment,4 - Operations - Providers services,LDP E Cambs Locality - Care,Supported Living
Cambridgeshire County Council,20-Jul-17,23860220-15714300,-1693.03,Thera East Anglia,Care Establishment,4 - Operations - Providers services,LDP E Cambs Locality - Care,Supported Living
Cambridgeshire County Council,06-Jul-17,23717552-15646643,-1680,The Cambridge Nursing Centre,Care Establishment,2 - Commissioning - Older people Pool,OP Blocks - Care Placements,Residential Independent Sector
Cambridgeshire County Council,06-Jul-17,23725307-15646690,-1680,The Cambridge Nursing Centre,Care Establishment,2 - Commissioning - Older people Pool,OP Blocks - Care Placements,Residential Independent Sector
Cambridgeshire County Council,06-Jul-17,23725115-15646607,-1680,The Cambridge Nursing Centre,Care Establishment,2 - Commissioning - Older people Pool,OP Blocks - Care Placements,Residential Independent Sector
Cambridgeshire County Council,06-Jul-17,23717555-15646646,-1680,The Cambridge Nursing Centre,Care Establishment,2 - Commissioning - Older people Pool,OP Blocks - Care Placements,Residential Independent Sector
Cambridgeshire County Council,06-Jul-17,23727669-15646622,-1680,The Cambridge Nursing Centre,Care Establishment,2 - Commissioning - Older people Pool,OP Blocks - Care Placements,Residential Independent Sector
Cambridgeshire County Council,06-Jul-17,23727544-15646628,-1680,The Cambridge Nursing Centre,Care Establishment,2 - Commissioning - Older people Pool,OP Blocks - Care Placements,Residential Independent Sector
Cambridgeshire County Council,06-Jul-17,23722653-15646664,-1680,The Cambridge Nursing Centre,Care Establishment,2 - Commissioning - Older people Pool,OP Blocks - Care Placements,Residential Independent Sector
Cambridgeshire County Council,06-Jul-17,23722580-15646582,-1680,The Cambridge Nursing Centre,Care Establishment,2 - Commissioning - Older people Pool,OP Blocks - Care Placements,Residential Independent Sector
Cambridgeshire County Council,06-Jul-17,23717628-15646653,-1680,The Cambridge Nursing Centre,Care Establishment,2 - Commissioning - Older people Pool,OP Blocks - Care Placements,Residential Independent Sector
Cambridgeshire County Council,06-Jul-17,23717676-15646658,-1680,The Cambridge Nursing Centre,Care Establishment,2 - Commissioning - Older people Pool,OP Blocks - Care Placements,Residential Independent Sector
Cambridgeshire County Council,06-Jul-17,23722518-15646578,-1680,The Cambridge Nursing Centre,Care Establishment,2 - Commissioning - Older people Pool,OP Blocks - Care Placements,Residential Independent Sector
Cambridgeshire County Council,06-Jul-17,23722581-15646583,-1680,The Cambridge Nursing Centre,Care Establishment,2 - Commissioning - Older people Pool,OP Blocks - Care Placements,Residential Independent Sector
Cambridgeshire County Council,06-Jul-17,23717610-15646649,-1680,The Cambridge Nursing Centre,Care Establishment,2 - Commissioning - Older people Pool,OP Blocks - Care Placements,Residential Independent Sector
Cambridgeshire County Council,06-Jul-17,23726921-15646615,-1680,The Cambridge Nursing Centre,Care Establishment,2 - Commissioning - Older people Pool,OP Blocks - Care Placements,Residential Independent Sector
Cambridgeshire County Council,06-Jul-17,23727629-15646635,-1680,The Cambridge Nursing Centre,Care Establishment,2 - Commissioning - Older people Pool,OP Blocks - Care Placements,Residential Independent Sector
Cambridgeshire County Council,06-Jul-17,23725244-15646680,-1680,The Cambridge Nursing Centre,Care Establishment,2 - Commissioning - Older people Pool,OP Blocks - Care Placements,Residential Independent Sector
Cambridgeshire County Council,06-Jul-17,23721851-15641476,-1651.63,Home Close Ltd,Care Establishment,2 - Commissioning - Older people Pool,OP Blocks - Care Placements,Nursing Independent Sector
Cambridgeshire County Council,20-Jul-17,23807991-15727427,-1610.18,Hft Trust Ltd,Trust (Other),2 - Operations - Learning Disability,LDP Fenland Locality - Care,Residential Independent Sector
Cambridgeshire County Council,20-Jul-17,23807982-15727418,-1610.18,Hft Trust Ltd,Trust (Other),2 - Operations - Learning Disability,LDP Fenland Locality - Care,Residential Independent Sector
Cambridgeshire County Council,20-Jul-17,23807983-15727419,-1610.18,Hft Trust Ltd,Trust (Other),2 - Operations - Learning Disability,LDP Fenland Locality - Care,Residential Independent Sector
Cambridgeshire County Council,20-Jul-17,23807990-15727426,-1610.18,Hft Trust Ltd,Trust (Other),2 - Operations - Learning Disability,LDP Fenland Locality - Care,Residential Independent Sector
Cambridgeshire County Council,20-Jul-17,23807994-15727430,-1610.18,Hft Trust Ltd,Trust (Other),2 - Operations - Learning Disability,LDP Fenland Locality - Care,Residential Independent Sector
Cambridgeshire County Council,20-Jul-17,23807989-15727425,-1610.18,Hft Trust Ltd,Trust (Other),2 - Operations - Learning Disability,LDP Fenland Locality - Care,Residential Independent Sector
Cambridgeshire County Council,20-Jul-17,23807986-15727422,-1610.18,Hft Trust Ltd,Trust (Other),2 - Operations - Learning Disability,LDP Fenland Locality - Care,Residential Independent Sector
Cambridgeshire County Council,20-Jul-17,23807988-15727424,-1610.18,Hft Trust Ltd,Trust (Other),2 - Operations - Learning Disability,LDP Fenland Locality - Care,Residential Independent Sector
Cambridgeshire County Council,06-Jul-17,23717741-15641554,-1500.66,Home Meadow Ltd,Care Establishment,2 - Commissioning - Older people Pool,OP Blocks - Care Placements,Residential Independent Sector
Cambridgeshire County Council,06-Jul-17,23722617-15641563,-1500.66,Home Meadow Ltd,Care Establishment,2 - Commissioning - Older people Pool,OP Blocks - Care Placements,Residential Independent Sector
Cambridgeshire County Council,06-Jul-17,23722676-15641564,-1500.66,Home Meadow Ltd,Care Establishment,2 - Commissioning - Older people Pool,OP Blocks - Care Placements,Residential Independent Sector
Cambridgeshire County Council,06-Jul-17,23725131-15641532,-1500.66,Home Meadow Ltd,Care Establishment,2 - Commissioning - Older people Pool,OP Blocks - Care Placements,Residential Independent Sector
Cambridgeshire County Council,06-Jul-17,23725169-15641534,-1500.66,Home Meadow Ltd,Care Establishment,2 - Commissioning - Older people Pool,OP Blocks - Care Placements,Residential Independent Sector
Cambridgeshire County Council,06-Jul-17,23717740-15641553,-1500.66,Home Meadow Ltd,Care Establishment,2 - Commissioning - Older people Pool,OP Blocks - Care Placements,Residential Independent Sector
Cambridgeshire County Council,06-Jul-17,23721773-15641522,-1500.66,Home Meadow Ltd,Care Establishment,2 - Commissioning - Older people Pool,OP Blocks - Care Placements,Residential Independent Sector
Cambridgeshire County Council,06-Jul-17,23722545-15641530,-1500.66,Home Meadow Ltd,Care Establishment,2 - Commissioning - Older people Pool,OP Blocks - Care Placements,Residential Independent Sector
Cambridgeshire County Council,06-Jul-17,23717574-15641556,-1500.66,Home Meadow Ltd,Care Establishment,2 - Commissioning - Older people Pool,OP Blocks - Care Placements,Residential Independent Sector
Cambridgeshire County Council,06-Jul-17,23717575-15641557,-1500.66,Home Meadow Ltd,Care Establishment,2 - Commissioning - Older people Pool,OP Blocks - Care Placements,Residential Independent Sector
Cambridgeshire County Council,06-Jul-17,23727564-15641549,-1500.66,Home Meadow Ltd,Care Establishment,2 - Commissioning - Older people Pool,OP Blocks - Care Placements,Residential Independent Sector
Cambridgeshire County Council,20-Jul-17,23721375-15717745,-1500,Cambridge Manor Care Home (Tlc),Care Establishment,2 - Commissioning - Older people Pool,Older People - City & South,Nursing Independent Sector
Cambridgeshire County Council,20-Jul-17,23806440-15710332,-1498,Etheldred House,Care Establishment,2 - Commissioning - Older people Pool,Older People - City & South,Nursing Independent Sector
Cambridgeshire County Council,20-Jul-17,23806442-15710334,-1498,Etheldred House,Care Establishment,2 - Commissioning - Older people Pool,Older People - City & South,Nursing Independent Sector
Cambridgeshire County Council,20-Jul-17,23806412-15710304,-1498,Etheldred House,Care Establishment,2 - Commissioning - Older people Pool,Older People - City & South,Nursing Independent Sector
Cambridgeshire County Council,20-Jul-17,23806408-15710300,-1498,Etheldred House,Care Establishment,2 - Commissioning - Older people Pool,Older People - City & South,Nursing Independent Sector
Cambridgeshire County Council,20-Jul-17,23806411-15710303,-1498,Etheldred House,Care Establishment,2 - Commissioning - Older people Pool,Older People - City & South,Nursing Independent Sector
Cambridgeshire County Council,20-Jul-17,23806406-15710298,-1498,Etheldred House,Care Establishment,2 - Commissioning - Older people Pool,Older People - City & South,Nursing Independent Sector
Cambridgeshire County Council,20-Jul-17,23806405-15710297,-1498,Etheldred House,Care Establishment,2 - Commissioning - Older people Pool,Older People - City & South,Nursing Independent Sector
Cambridgeshire County Council,20-Jul-17,23806434-15710326,-1498,Etheldred House,Care Establishment,2 - Commissioning - Older people Pool,Older People - City & South,Nursing Independent Sector
Cambridgeshire County Council,20-Jul-17,23806421-15710313,-1498,Etheldred House,Care Establishment,2 - Commissioning - Older people Pool,Older People - City & South,Nursing Independent Sector
Cambridgeshire County Council,20-Jul-17,23806425-15710317,-1498,Etheldred House,Care Establishment,2 - Commissioning - Older people Pool,Older People - City & South,Nursing Independent Sector
Cambridgeshire County Council,20-Jul-17,23806426-15710318,-1498,Etheldred House,Care Establishment,2 - Commissioning - Older people Pool,Older People - City & South,Nursing Independent Sector
Cambridgeshire County Council,20-Jul-17,23806401-15710293,-1498,Etheldred House,Care Establishment,2 - Commissioning - Older people Pool,Older People - City & South,Nursing Independent Sector
Cambridgeshire County Council,20-Jul-17,23860211-15714294,-1451.17,Thera East Anglia,Care Establishment,4 - Operations - Providers services,LDP E Cambs Locality - Care,Supported Living
Cambridgeshire County Council,20-Jul-17,23807468-15720026,-1448.64,The Edmund Trust,Care Establishment,2 - Operations - Learning Disability,LDP South Cambs Locality - Care,Supported Living
Cambridgeshire County Council,20-Jul-17,23847443-15713905,-1441.88,Thera East Anglia,Care Establishment,4 - Operations - Providers services,LDP E Cambs Locality - Care,Supported Living
Cambridgeshire County Council,20-Jul-17,23847450-15713912,-1441.88,Thera East Anglia,Care Establishment,4 - Operations - Providers services,LDP E Cambs Locality - Care,Supported Living
Cambridgeshire County Council,20-Jul-17,23847358-15713932,-1441.88,Thera East Anglia,Care Establishment,4 - Operations - Providers services,LDP E Cambs Locality - Care,Supported Living
Cambridgeshire County Council,20-Jul-17,23847425-15713999,-1441.88,Thera East Anglia,Care Establishment,4 - Operations - Providers services,LDP E Cambs Locality - Care,Supported Living
Cambridgeshire County Council,20-Jul-17,23839422-15713645,-1441.88,Thera East Anglia,Care Establishment,4 - Operations - Providers services,LDP E Cambs Locality - Care,Supported Living
Cambridgeshire County Council,20-Jul-17,23839424-15713647,-1441.88,Thera East Anglia,Care Establishment,4 - Operations - Providers services,LDP E Cambs Locality - Care,Supported Living
Cambridgeshire County Council,20-Jul-17,23839428-15713651,-1441.88,Thera East Anglia,Care Establishment,4 - Operations - Providers services,LDP E Cambs Locality - Care,Supported Living
Cambridgeshire County Council,20-Jul-17,23839447-15713670,-1441.88,Thera East Anglia,Care Establishment,4 - Operations - Providers services,LDP E Cambs Locality - Care,Supported Living
Cambridgeshire County Council,20-Jul-17,23847434-15714008,-1441.88,Thera East Anglia,Care Establishment,4 - Operations - Providers services,LDP E Cambs Locality - Care,Supported Living
Cambridgeshire County Council,20-Jul-17,23854284-15714171,-1441.88,Thera East Anglia,Care Establishment,4 - Operations - Providers services,LDP E Cambs Locality - Care,Supported Living
Cambridgeshire County Council,20-Jul-17,23847356-15713930,-1441.88,Thera East Anglia,Care Establishment,4 - Operations - Providers services,LDP E Cambs Locality - Care,Supported Living
Cambridgeshire County Council,20-Jul-17,23847387-15713961,-1441.88,Thera East Anglia,Care Establishment,4 - Operations - Providers services,LDP E Cambs Locality - Care,Supported Living
Cambridgeshire County Council,20-Jul-17,23861327-15714409,-1441.88,Thera East Anglia,Care Establishment,4 - Operations - Providers services,LDP E Cambs Locality - Care,Supported Living
Cambridgeshire County Council,20-Jul-17,23861331-15714413,-1441.88,Thera East Anglia,Care Establishment,4 - Operations - Providers services,LDP E Cambs Locality - Care,Supported Living
Cambridgeshire County Council,20-Jul-17,23847349-15713923,-1441.88,Thera East Anglia,Care Establishment,4 - Operations - Providers services,LDP E Cambs Locality - Care,Supported Living
Cambridgeshire County Council,20-Jul-17,23847370-15713944,-1441.88,Thera East Anglia,Care Establishment,4 - Operations - Providers services,LDP E Cambs Locality - Care,Supported Living
Cambridgeshire County Council,20-Jul-17,23847451-15713913,-1441.88,Thera East Anglia,Care Establishment,4 - Operations - Providers services,LDP E Cambs Locality - Care,Supported Living
Cambridgeshire County Council,20-Jul-17,23847357-15713931,-1441.88,Thera East Anglia,Care Establishment,4 - Operations - Providers services,LDP E Cambs Locality - Care,Supported Living
Cambridgeshire County Council,20-Jul-17,23847403-15713977,-1441.88,Thera East Anglia,Care Establishment,4 - Operations - Providers services,LDP E Cambs Locality - Care,Supported Living
Cambridgeshire County Council,20-Jul-17,23847419-15713993,-1441.88,Thera East Anglia,Care Establishment,4 - Operations - Providers services,LDP E Cambs Locality - Care,Supported Living
Cambridgeshire County Council,20-Jul-17,23839408-15713631,-1441.88,Thera East Anglia,Care Establishment,4 - Operations - Providers services,LDP E Cambs Locality - Care,Supported Living
Cambridgeshire County Council,20-Jul-17,23861322-15714404,-1441.88,Thera East Anglia,Care Establishment,4 - Operations - Providers services,LDP E Cambs Locality - Care,Supported Living
Cambridgeshire County Council,20-Jul-17,23861326-15714408,-1441.88,Thera East Anglia,Care Establishment,4 - Operations - Providers services,LDP E Cambs Locality - Care,Supported Living
Cambridgeshire County Council,20-Jul-17,23854285-15714172,-1441.88,Thera East Anglia,Care Establishment,4 - Operations - Providers services,LDP E Cambs Locality - Care,Supported Living
Cambridgeshire County Council,20-Jul-17,23847445-15713907,-1441.88,Thera East Anglia,Care Establishment,4 - Operations - Providers services,LDP E Cambs Locality - Care,Supported Living
Cambridgeshire County Council,20-Jul-17,23847448-15713910,-1441.88,Thera East Anglia,Care Establishment,4 - Operations - Providers services,LDP E Cambs Locality - Care,Supported Living
Cambridgeshire County Council,20-Jul-17,23847367-15713941,-1441.88,Thera East Anglia,Care Establishment,4 - Operations - Providers services,LDP E Cambs Locality - Care,Supported Living
Cambridgeshire County Council,20-Jul-17,23847404-15713978,-1441.88,Thera East Anglia,Care Establishment,4 - Operations - Providers services,LDP E Cambs Locality - Care,Supported Living
Cambridgeshire County Council,20-Jul-17,23839415-15713638,-1441.88,Thera East Anglia,Care Establishment,4 - Operations - Providers services,LDP E Cambs Locality - Care,Supported Living
Cambridgeshire County Council,20-Jul-17,23854280-15714167,-1441.88,Thera East Anglia,Care Establishment,4 - Operations - Providers services,LDP E Cambs Locality - Care,Supported Living
Cambridgeshire County Council,20-Jul-17,23854289-15714176,-1441.88,Thera East Anglia,Care Establishment,4 - Operations - Providers services,LDP E Cambs Locality - Care,Supported Living
Cambridgeshire County Council,20-Jul-17,23847372-15713946,-1441.88,Thera East Anglia,Care Establishment,4 - Operations - Providers services,LDP E Cambs Locality - Care,Supported Living
Cambridgeshire County Council,20-Jul-17,23847385-15713959,-1441.88,Thera East Anglia,Care Establishment,4 - Operations - Providers services,LDP E Cambs Locality - Care,Supported Living
Cambridgeshire County Council,20-Jul-17,23847386-15713960,-1441.88,Thera East Anglia,Care Establishment,4 - Operations - Providers services,LDP E Cambs Locality - Care,Supported Living
Cambridgeshire County Council,20-Jul-17,23847407-15713981,-1441.88,Thera East Anglia,Care Establishment,4 - Operations - Providers services,LDP E Cambs Locality - Care,Supported Living
Cambridgeshire County Council,20-Jul-17,23847420-15713994,-1441.88,Thera East Anglia,Care Establishment,4 - Operations - Providers services,LDP E Cambs Locality - Care,Supported Living
Cambridgeshire County Council,20-Jul-17,23839419-15713642,-1441.88,Thera East Anglia,Care Establishment,4 - Operations - Providers services,LDP E Cambs Locality - Care,Supported Living
Cambridgeshire County Council,20-Jul-17,23861311-15714393,-1441.88,Thera East Anglia,Care Establishment,4 - Operations - Providers services,LDP E Cambs Locality - Care,Supported Living
Cambridgeshire County Council,20-Jul-17,23861325-15714407,-1441.88,Thera East Anglia,Care Establishment,4 - Operations - Providers services,LDP E Cambs Locality - Care,Supported Living
Cambridgeshire County Council,20-Jul-17,23861337-15714419,-1441.88,Thera East Anglia,Care Establishment,4 - Operations - Providers services,LDP E Cambs Locality - Care,Supported Living
Cambridgeshire County Council,20-Jul-17,23854277-15714164,-1441.88,Thera East Anglia,Care Establishment,4 - Operations - Providers services,LDP E Cambs Locality - Care,Supported Living
Cambridgeshire County Council,20-Jul-17,23847400-15713974,-1441.88,Thera East Anglia,Care Establishment,4 - Operations - Providers services,LDP E Cambs Locality - Care,Supported Living
Cambridgeshire County Council,20-Jul-17,23839439-15713662,-1441.88,Thera East Anglia,Care Establishment,4 - Operations - Providers services,LDP E Cambs Locality - Care,Supported Living
Cambridgeshire County Council,20-Jul-17,23861320-15714402,-1441.88,Thera East Anglia,Care Establishment,4 - Operations - Providers services,LDP E Cambs Locality - Care,Supported Living
Cambridgeshire County Council,20-Jul-17,23847428-15714002,-1441.88,Thera East Anglia,Care Establishment,4 - Operations - Providers services,LDP E Cambs Locality - Care,Supported Living
Cambridgeshire County Council,06-Jul-17,23727667-15646620,-1440,The Cambridge Nursing Centre,Care Establishment,2 - Commissioning - Older people Pool,OP Blocks - Care Placements,Residential Independent Sector
Cambridgeshire County Council,06-Jul-17,23725179-15643772,-1388.5,The Red House Residential & Nursing Home,Care Establishment,2 - Commissioning - Older people Pool,OP Blocks - Care Placements,Nursing Independent Sector
Cambridgeshire County Council,06-Jul-17,23722712-15643807,-1388.5,The Red House Residential & Nursing Home,Care Establishment,2 - Commissioning - Older people Pool,OP Blocks - Care Placements,Nursing Independent Sector
Cambridgeshire County Council,06-Jul-17,23717723-15643801,-1388.5,The Red House Residential & Nursing Home,Care Establishment,2 - Commissioning - Older people Pool,OP Blocks - Care Placements,Nursing Independent Sector
Cambridgeshire County Council,06-Jul-17,23725254-15643811,-1388.5,The Red House Residential & Nursing Home,Care Establishment,2 - Commissioning - Older people Pool,OP Blocks - Care Placements,Nursing Independent Sector
Cambridgeshire County Council,06-Jul-17,23725110-15643780,-1388.5,The Red House Residential & Nursing Home,Care Establishment,2 - Commissioning - Older people Pool,OP Blocks - Care Placements,Nursing Independent Sector
Cambridgeshire County Council,06-Jul-17,23724960-15643781,-1388.5,The Red House Residential & Nursing Home,Care Establishment,2 - Commissioning - Older people Pool,OP Blocks - Care Placements,Nursing Independent Sector
Cambridgeshire County Council,06-Jul-17,23726998-15643787,-1388.5,The Red House Residential & Nursing Home,Care Establishment,2 - Commissioning - Older people Pool,OP Blocks - Care Placements,Nursing Independent Sector
Cambridgeshire County Council,06-Jul-17,23727628-15643796,-1388.5,The Red House Residential & Nursing Home,Care Establishment,2 - Commissioning - Older people Pool,OP Blocks - Care Placements,Nursing Independent Sector
Cambridgeshire County Council,06-Jul-17,23722747-15643809,-1388.5,The Red House Residential & Nursing Home,Care Establishment,2 - Commissioning - Older people Pool,OP Blocks - Care Placements,Nursing Independent Sector
Cambridgeshire County Council,06-Jul-17,23725241-15643810,-1388.5,The Red House Residential & Nursing Home,Care Establishment,2 - Commissioning - Older people Pool,OP Blocks - Care Placements,Nursing Independent Sector
Cambridgeshire County Council,06-Jul-17,23724961-15643782,-1388.5,The Red House Residential & Nursing Home,Care Establishment,2 - Commissioning - Older people Pool,OP Blocks - Care Placements,Nursing Independent Sector
Cambridgeshire County Council,20-Jul-17,23807985-15727421,-1380.15,Hft Trust Ltd,Trust (Other),2 - Operations - Learning Disability,LDP Fenland Locality - Care,Residential Independent Sector
Cambridgeshire County Council,20-Jul-17,23641608-15708574,-1328.7,Social Care Solutions Ltd,Care Establishment,4 - Operations - Providers services,LDP Fens - Special Needs,Supported Living
Cambridgeshire County Council,20-Jul-17,23641614-15708580,-1328.7,Social Care Solutions Ltd,Care Establishment,4 - Operations - Providers services,LDP Fens - Special Needs,Supported Living
Cambridgeshire County Council,20-Jul-17,23641616-15708582,-1328.7,Social Care Solutions Ltd,Care Establishment,4 - Operations - Providers services,LDP Fens - Special Needs,Supported Living
Cambridgeshire County Council,20-Jul-17,23641620-15708586,-1328.7,Social Care Solutions Ltd,Care Establishment,4 - Operations - Providers services,LDP Fens - Special Needs,Supported Living
Cambridgeshire County Council,20-Jul-17,23641626-15708592,-1328.7,Social Care Solutions Ltd,Care Establishment,4 - Operations - Providers services,LDP Fens - Special Needs,Supported Living
Cambridgeshire County Council,20-Jul-17,23632716-15708621,-1328.7,Social Care Solutions Ltd,Care Establishment,4 - Operations - Providers services,LDP Fens - Special Needs,Supported Living
Cambridgeshire County Council,20-Jul-17,23635488-15708631,-1328.7,Social Care Solutions Ltd,Care Establishment,4 - Operations - Providers services,LDP Fens - Special Needs,Supported Living
Cambridgeshire County Council,20-Jul-17,23635493-15708636,-1328.7,Social Care Solutions Ltd,Care Establishment,4 - Operations - Providers services,LDP Fens - Special Needs,Supported Living
Cambridgeshire County Council,20-Jul-17,23641635-15708601,-1328.7,Social Care Solutions Ltd,Care Establishment,4 - Operations - Providers services,LDP Fens - Special Needs,Supported Living
Cambridgeshire County Council,20-Jul-17,23641606-15708572,-1328.7,Social Care Solutions Ltd,Care Establishment,4 - Operations - Providers services,LDP Fens - Special Needs,Supported Living
Cambridgeshire County Council,20-Jul-17,23641621-15708587,-1328.7,Social Care Solutions Ltd,Care Establishment,4 - Operations - Providers services,LDP Fens - Special Needs,Supported Living
Cambridgeshire County Council,20-Jul-17,23641638-15708604,-1328.7,Social Care Solutions Ltd,Care Establishment,4 - Operations - Providers services,LDP Fens - Special Needs,Supported Living
Cambridgeshire County Council,20-Jul-17,23635497-15708640,-1328.7,Social Care Solutions Ltd,Care Establishment,4 - Operations - Providers services,LDP Fens - Special Needs,Supported Living
Cambridgeshire County Council,20-Jul-17,23632707-15708562,-1328.7,Social Care Solutions Ltd,Care Establishment,4 - Operations - Providers services,LDP Fens - Special Needs,Supported Living
Cambridgeshire County Council,20-Jul-17,23641604-15708570,-1328.7,Social Care Solutions Ltd,Care Establishment,4 - Operations - Providers services,LDP Fens - Special Needs,Supported Living
Cambridgeshire County Council,20-Jul-17,23641617-15708583,-1328.7,Social Care Solutions Ltd,Care Establishment,4 - Operations - Providers services,LDP Fens - Special Needs,Supported Living
Cambridgeshire County Council,20-Jul-17,23641652-15708618,-1328.7,Social Care Solutions Ltd,Care Establishment,4 - Operations - Providers services,LDP Fens - Special Needs,Supported Living
Cambridgeshire County Council,20-Jul-17,23632718-15708623,-1328.7,Social Care Solutions Ltd,Care Establishment,4 - Operations - Providers services,LDP Fens - Special Needs,Supported Living
Cambridgeshire County Council,20-Jul-17,23635501-15708644,-1328.7,Social Care Solutions Ltd,Care Establishment,4 - Operations - Providers services,LDP Fens - Special Needs,Supported Living
Cambridgeshire County Council,20-Jul-17,23632710-15708565,-1328.7,Social Care Solutions Ltd,Care Establishment,4 - Operations - Providers services,LDP Fens - Special Needs,Supported Living
Cambridgeshire County Council,20-Jul-17,23632711-15708566,-1328.7,Social Care Solutions Ltd,Care Establishment,4 - Operations - Providers services,LDP Fens - Special Needs,Supported Living
Cambridgeshire County Council,20-Jul-17,23641624-15708590,-1328.7,Social Care Solutions Ltd,Care Establishment,4 - Operations - Providers services,LDP Fens - Special Needs,Supported Living
Cambridgeshire County Council,20-Jul-17,23641640-15708606,-1328.7,Social Care Solutions Ltd,Care Establishment,4 - Operations - Providers services,LDP Fens - Special Needs,Supported Living
Cambridgeshire County Council,20-Jul-17,23641647-15708613,-1328.7,Social Care Solutions Ltd,Care Establishment,4 - Operations - Providers services,LDP Fens - Special Needs,Supported Living
Cambridgeshire County Council,20-Jul-17,23635502-15708645,-1328.7,Social Care Solutions Ltd,Care Establishment,4 - Operations - Providers services,LDP Fens - Special Needs,Supported Living
Cambridgeshire County Council,20-Jul-17,23632713-15708568,-1328.7,Social Care Solutions Ltd,Care Establishment,4 - Operations - Providers services,LDP Fens - Special Needs,Supported Living
Cambridgeshire County Council,20-Jul-17,23641615-15708581,-1328.7,Social Care Solutions Ltd,Care Establishment,4 - Operations - Providers services,LDP Fens - Special Needs,Supported Living
Cambridgeshire County Council,20-Jul-17,23641619-15708585,-1328.7,Social Care Solutions Ltd,Care Establishment,4 - Operations - Providers services,LDP Fens - Special Needs,Supported Living
Cambridgeshire County Council,20-Jul-17,23641630-15708596,-1328.7,Social Care Solutions Ltd,Care Establishment,4 - Operations - Providers services,LDP Fens - Special Needs,Supported Living
Cambridgeshire County Council,20-Jul-17,23641642-15708608,-1328.7,Social Care Solutions Ltd,Care Establishment,4 - Operations - Providers services,LDP Fens - Special Needs,Supported Living
Cambridgeshire County Council,20-Jul-17,23641653-15708619,-1328.7,Social Care Solutions Ltd,Care Establishment,4 - Operations - Providers services,LDP Fens - Special Needs,Supported Living
Cambridgeshire County Council,20-Jul-17,23635494-15708637,-1328.7,Social Care Solutions Ltd,Care Establishment,4 - Operations - Providers services,LDP Fens - Special Needs,Supported Living
Cambridgeshire County Council,20-Jul-17,23632706-15708561,-1328.7,Social Care Solutions Ltd,Care Establishment,4 - Operations - Providers services,LDP Fens - Special Needs,Supported Living
Cambridgeshire County Council,20-Jul-17,23632708-15708563,-1328.7,Social Care Solutions Ltd,Care Establishment,4 - Operations - Providers services,LDP Fens - Special Needs,Supported Living
Cambridgeshire County Council,20-Jul-17,23641607-15708573,-1328.7,Social Care Solutions Ltd,Care Establishment,4 - Operations - Providers services,LDP Fens - Special Needs,Supported Living
Cambridgeshire County Council,20-Jul-17,23641651-15708617,-1328.7,Social Care Solutions Ltd,Care Establishment,4 - Operations - Providers services,LDP Fens - Special Needs,Supported Living
Cambridgeshire County Council,20-Jul-17,23635496-15708639,-1328.7,Social Care Solutions Ltd,Care Establishment,4 - Operations - Providers services,LDP Fens - Special Needs,Supported Living
Cambridgeshire County Council,20-Jul-17,23635503-15708646,-1328.7,Social Care Solutions Ltd,Care Establishment,4 - Operations - Providers services,LDP Fens - Special Needs,Supported Living
Cambridgeshire County Council,20-Jul-17,23635504-15708647,-1328.7,Social Care Solutions Ltd,Care Establishment,4 - Operations - Providers services,LDP Fens - Special Needs,Supported Living
Cambridgeshire County Council,20-Jul-17,23851682-15716659,-1317.11,Alderton House,Care Establishment,4 - Operations - Providers services,LDP E Cambs Locality - Care,Residential Independent Sector
Cambridgeshire County Council,20-Jul-17,23851686-15716663,-1317.11,Alderton House,Care Establishment,4 - Operations - Providers services,LDP E Cambs Locality - Care,Residential Independent Sector
Cambridgeshire County Council,20-Jul-17,23851719-15716685,-1317.11,Alderton House,Care Establishment,4 - Operations - Providers services,LDP E Cambs Locality - Care,Residential Independent Sector
Cambridgeshire County Council,20-Jul-17,23851726-15716687,-1317.11,Alderton House,Care Establishment,4 - Operations - Providers services,LDP E Cambs Locality - Care,Residential Independent Sector
Cambridgeshire County Council,20-Jul-17,23851740-15716698,-1317.11,Alderton House,Care Establishment,4 - Operations - Providers services,LDP E Cambs Special Needs,Residential Independent Sector
Cambridgeshire County Council,20-Jul-17,23858670-15716726,-1317.11,Alderton House,Care Establishment,4 - Operations - Providers services,LDP E Cambs Locality - Care,Residential Independent Sector
Cambridgeshire County Council,20-Jul-17,23858703-15716755,-1317.11,Alderton House,Care Establishment,4 - Operations - Providers services,LDP E Cambs Special Needs,Residential Independent Sector
Cambridgeshire County Council,20-Jul-17,23843697-15716545,-1317.11,Alderton House,Care Establishment,4 - Operations - Providers services,LDP E Cambs Locality - Care,Residential Independent Sector
Cambridgeshire County Council,20-Jul-17,23843753-15716587,-1317.11,Alderton House,Care Establishment,4 - Operations - Providers services,LDP E Cambs Locality - Care,Residential Independent Sector
Cambridgeshire County Council,20-Jul-17,23850555-15716604,-1317.11,Alderton House,Care Establishment,4 - Operations - Providers services,LDP E Cambs Locality - Care,Residential Independent Sector
Cambridgeshire County Council,20-Jul-17,23851661-15716643,-1317.11,Alderton House,Care Establishment,4 - Operations - Providers services,LDP E Cambs Locality - Care,Residential Independent Sector
Cambridgeshire County Council,20-Jul-17,23851663-15716645,-1317.11,Alderton House,Care Establishment,4 - Operations - Providers services,LDP E Cambs Locality - Care,Residential Independent Sector
Cambridgeshire County Council,20-Jul-17,23851666-15716648,-1317.11,Alderton House,Care Establishment,4 - Operations - Providers services,LDP E Cambs Locality - Care,Residential Independent Sector
Cambridgeshire County Council,20-Jul-17,23851675-15716655,-1317.11,Alderton House,Care Establishment,4 - Operations - Providers services,LDP E Cambs Special Needs,Residential Independent Sector
Cambridgeshire County Council,27-Jul-17,23894352-15757827,-1317.11,Alderton House,Care Establishment,4 - Operations - Providers services,LDP E Cambs Locality - Care,Residential Independent Sector
Cambridgeshire County Council,27-Jul-17,23894379-15757845,-1317.11,Alderton House,Care Establishment,4 - Operations - Providers services,LDP E Cambs Special Needs,Residential Independent Sector
Cambridgeshire County Council,27-Jul-17,23894383-15757849,-1317.11,Alderton House,Care Establishment,4 - Operations - Providers services,LDP E Cambs Special Needs,Residential Independent Sector
Cambridgeshire County Council,27-Jul-17,23894397-15757857,-1317.11,Alderton House,Care Establishment,4 - Operations - Providers services,LDP E Cambs Locality - Care,Residential Independent Sector
Cambridgeshire County Council,27-Jul-17,23894416-15757874,-1317.11,Alderton House,Care Establishment,4 - Operations - Providers services,LDP E Cambs Locality - Care,Residential Independent Sector
Cambridgeshire County Council,27-Jul-17,23894456-15757910,-1317.11,Alderton House,Care Establishment,4 - Operations - Providers services,LDP E Cambs Special Needs,Residential Independent Sector
Cambridgeshire County Council,27-Jul-17,23894478-15757928,-1317.11,Alderton House,Care Establishment,4 - Operations - Providers services,LDP E Cambs Special Needs,Residential Independent Sector
Cambridgeshire County Council,27-Jul-17,23894484-15757934,-1317.11,Alderton House,Care Establishment,4 - Operations - Providers services,LDP E Cambs Special Needs,Residential Independent Sector
Cambridgeshire County Council,27-Jul-17,23894486-15757935,-1317.11,Alderton House,Care Establishment,4 - Operations - Providers services,LDP E Cambs Locality - Care,Residential Independent Sector
Cambridgeshire County Council,27-Jul-17,23894506-15757953,-1317.11,Alderton House,Care Establishment,4 - Operations - Providers services,LDP E Cambs Locality - Care,Residential Independent Sector
Cambridgeshire County Council,27-Jul-17,23896905-15757982,-1317.11,Alderton House,Care Establishment,4 - Operations - Providers services,LDP E Cambs Locality - Care,Residential Independent Sector
Cambridgeshire County Council,27-Jul-17,23896917-15757994,-1317.11,Alderton House,Care Establishment,4 - Operations - Providers services,LDP E Cambs Locality - Care,Residential Independent Sector
Cambridgeshire County Council,27-Jul-17,23896919-15757996,-1317.11,Alderton House,Care Establishment,4 - Operations - Providers services,LDP E Cambs Locality - Care,Residential Independent Sector
Cambridgeshire County Council,27-Jul-17,23896945-15758019,-1317.11,Alderton House,Care Establishment,4 - Operations - Providers services,LDP E Cambs Special Needs,Residential Independent Sector
Cambridgeshire County Council,27-Jul-17,23896957-15758031,-1317.11,Alderton House,Care Establishment,4 - Operations - Providers services,LDP E Cambs Special Needs,Residential Independent Sector
Cambridgeshire County Council,20-Jul-17,23851683-15716660,-1317.11,Alderton House,Care Establishment,4 - Operations - Providers services,LDP E Cambs Special Needs,Residential Independent Sector
Cambridgeshire County Council,20-Jul-17,23851701-15716672,-1317.11,Alderton House,Care Establishment,4 - Operations - Providers services,LDP E Cambs Locality - Care,Residential Independent Sector
Cambridgeshire County Council,20-Jul-17,23851717-15716683,-1317.11,Alderton House,Care Establishment,4 - Operations - Providers services,LDP E Cambs Special Needs,Residential Independent Sector
Cambridgeshire County Council,20-Jul-17,23851753-15716711,-1317.11,Alderton House,Care Establishment,4 - Operations - Providers services,LDP E Cambs Special Needs,Residential Independent Sector
Cambridgeshire County Council,20-Jul-17,23851762-15716717,-1317.11,Alderton House,Care Establishment,4 - Operations - Providers services,LDP E Cambs Special Needs,Residential Independent Sector
Cambridgeshire County Council,20-Jul-17,23858686-15716740,-1317.11,Alderton House,Care Establishment,4 - Operations - Providers services,LDP E Cambs Special Needs,Residential Independent Sector
Cambridgeshire County Council,20-Jul-17,23858701-15716753,-1317.11,Alderton House,Care Establishment,4 - Operations - Providers services,LDP E Cambs Special Needs,Residential Independent Sector
Cambridgeshire County Council,20-Jul-17,23858702-15716754,-1317.11,Alderton House,Care Establishment,4 - Operations - Providers services,LDP E Cambs Special Needs,Residential Independent Sector
Cambridgeshire County Council,20-Jul-17,23858718-15716764,-1317.11,Alderton House,Care Establishment,4 - Operations - Providers services,LDP E Cambs Locality - Care,Residential Independent Sector
Cambridgeshire County Council,20-Jul-17,23843691-15716541,-1317.11,Alderton House,Care Establishment,4 - Operations - Providers services,LDP E Cambs Locality - Care,Residential Independent Sector
Cambridgeshire County Council,20-Jul-17,23843730-15716570,-1317.11,Alderton House,Care Establishment,4 - Operations - Providers services,LDP E Cambs Special Needs,Residential Independent Sector
Cambridgeshire County Council,20-Jul-17,23850571-15716616,-1317.11,Alderton House,Care Establishment,4 - Operations - Providers services,LDP E Cambs Locality - Care,Residential Independent Sector
Cambridgeshire County Council,20-Jul-17,23850578-15716622,-1317.11,Alderton House,Care Establishment,4 - Operations - Providers services,LDP E Cambs Special Needs,Residential Independent Sector
Cambridgeshire County Council,20-Jul-17,23851775-15716640,-1317.11,Alderton House,Care Establishment,4 - Operations - Providers services,LDP E Cambs Locality - Care,Residential Independent Sector
Cambridgeshire County Council,20-Jul-17,23851776-15716641,-1317.11,Alderton House,Care Establishment,4 - Operations - Providers services,LDP E Cambs Special Needs,Residential Independent Sector
Cambridgeshire County Council,20-Jul-17,23851777-15716642,-1317.11,Alderton House,Care Establishment,4 - Operations - Providers services,LDP E Cambs Locality - Care,Residential Independent Sector
Cambridgeshire County Council,20-Jul-17,23851670-15716652,-1317.11,Alderton House,Care Establishment,4 - Operations - Providers services,LDP E Cambs Locality - Care,Residential Independent Sector
Cambridgeshire County Council,27-Jul-17,23894350-15757825,-1317.11,Alderton House,Care Establishment,4 - Operations - Providers services,LDP E Cambs Special Needs,Residential Independent Sector
Cambridgeshire County Council,27-Jul-17,23894358-15757833,-1317.11,Alderton House,Care Establishment,4 - Operations - Providers services,LDP E Cambs Special Needs,Residential Independent Sector
Cambridgeshire County Council,27-Jul-17,23894414-15757872,-1317.11,Alderton House,Care Establishment,4 - Operations - Providers services,LDP E Cambs Locality - Care,Residential Independent Sector
Cambridgeshire County Council,27-Jul-17,23894422-15757880,-1317.11,Alderton House,Care Establishment,4 - Operations - Providers services,LDP E Cambs Special Needs,Residential Independent Sector
Cambridgeshire County Council,27-Jul-17,23894475-15757926,-1317.11,Alderton House,Care Establishment,4 - Operations - Providers services,LDP E Cambs Locality - Care,Residential Independent Sector
Cambridgeshire County Council,27-Jul-17,23894505-15757952,-1317.11,Alderton House,Care Establishment,4 - Operations - Providers services,LDP E Cambs Locality - Care,Residential Independent Sector
Cambridgeshire County Council,20-Jul-17,23851709-15716678,-1317.11,Alderton House,Care Establishment,4 - Operations - Providers services,LDP E Cambs Special Needs,Residential Independent Sector
Cambridgeshire County Council,20-Jul-17,23851718-15716684,-1317.11,Alderton House,Care Establishment,4 - Operations - Providers services,LDP E Cambs Locality - Care,Residential Independent Sector
Cambridgeshire County Council,20-Jul-17,23851727-15716688,-1317.11,Alderton House,Care Establishment,4 - Operations - Providers services,LDP E Cambs Locality - Care,Residential Independent Sector
Cambridgeshire County Council,20-Jul-17,23851731-15716692,-1317.11,Alderton House,Care Establishment,4 - Operations - Providers services,LDP E Cambs Special Needs,Residential Independent Sector
Cambridgeshire County Council,20-Jul-17,23858671-15716727,-1317.11,Alderton House,Care Establishment,4 - Operations - Providers services,LDP E Cambs Locality - Care,Residential Independent Sector
Cambridgeshire County Council,20-Jul-17,23858717-15716763,-1317.11,Alderton House,Care Establishment,4 - Operations - Providers services,LDP E Cambs Locality - Care,Residential Independent Sector
Cambridgeshire County Council,20-Jul-17,23843699-15716547,-1317.11,Alderton House,Care Establishment,4 - Operations - Providers services,LDP E Cambs Special Needs,Residential Independent Sector
Cambridgeshire County Council,20-Jul-17,23843713-15716557,-1317.11,Alderton House,Care Establishment,4 - Operations - Providers services,LDP E Cambs Special Needs,Residential Independent Sector
Cambridgeshire County Council,20-Jul-17,23843729-15716569,-1317.11,Alderton House,Care Establishment,4 - Operations - Providers services,LDP E Cambs Locality - Care,Residential Independent Sector
Cambridgeshire County Council,20-Jul-17,23843732-15716572,-1317.11,Alderton House,Care Establishment,4 - Operations - Providers services,LDP E Cambs Special Needs,Residential Independent Sector
Cambridgeshire County Council,20-Jul-17,23843750-15716584,-1317.11,Alderton House,Care Establishment,4 - Operations - Providers services,LDP E Cambs Locality - Care,Residential Independent Sector
Cambridgeshire County Council,20-Jul-17,23850566-15716612,-1317.11,Alderton House,Care Establishment,4 - Operations - Providers services,LDP E Cambs Locality - Care,Residential Independent Sector
Cambridgeshire County Council,20-Jul-17,23850569-15716614,-1317.11,Alderton House,Care Establishment,4 - Operations - Providers services,LDP E Cambs Special Needs,Residential Independent Sector
Cambridgeshire County Council,20-Jul-17,23851767-15716635,-1317.11,Alderton House,Care Establishment,4 - Operations - Providers services,LDP E Cambs Locality - Care,Residential Independent Sector
Cambridgeshire County Council,27-Jul-17,23894430-15757884,-1317.11,Alderton House,Care Establishment,4 - Operations - Providers services,LDP E Cambs Special Needs,Residential Independent Sector
Cambridgeshire County Council,27-Jul-17,23894435-15757889,-1317.11,Alderton House,Care Establishment,4 - Operations - Providers services,LDP E Cambs Special Needs,Residential Independent Sector
Cambridgeshire County Council,27-Jul-17,23894455-15757909,-1317.11,Alderton House,Care Establishment,4 - Operations - Providers services,LDP E Cambs Locality - Care,Residential Independent Sector
Cambridgeshire County Council,27-Jul-17,23894459-15757913,-1317.11,Alderton House,Care Establishment,4 - Operations - Providers services,LDP E Cambs Special Needs,Residential Independent Sector
Cambridgeshire County Council,27-Jul-17,23894467-15757919,-1317.11,Alderton House,Care Establishment,4 - Operations - Providers services,LDP E Cambs Special Needs,Residential Independent Sector
Cambridgeshire County Council,27-Jul-17,23894469-15757921,-1317.11,Alderton House,Care Establishment,4 - Operations - Providers services,LDP E Cambs Special Needs,Residential Independent Sector
Cambridgeshire County Council,27-Jul-17,23894480-15757930,-1317.11,Alderton House,Care Establishment,4 - Operations - Providers services,LDP E Cambs Special Needs,Residential Independent Sector
Cambridgeshire County Council,27-Jul-17,23894483-15757933,-1317.11,Alderton House,Care Establishment,4 - Operations - Providers services,LDP E Cambs Locality - Care,Residential Independent Sector
Cambridgeshire County Council,27-Jul-17,23894530-15757965,-1317.11,Alderton House,Care Establishment,4 - Operations - Providers services,LDP E Cambs Locality - Care,Residential Independent Sector
Cambridgeshire County Council,27-Jul-17,23896899-15757978,-1317.11,Alderton House,Care Establishment,4 - Operations - Providers services,LDP E Cambs Locality - Care,Residential Independent Sector
Cambridgeshire County Council,27-Jul-17,23896908-15757985,-1317.11,Alderton House,Care Establishment,4 - Operations - Providers services,LDP E Cambs Special Needs,Residential Independent Sector
Cambridgeshire County Council,27-Jul-17,23896914-15757991,-1317.11,Alderton House,Care Establishment,4 - Operations - Providers services,LDP E Cambs Special Needs,Residential Independent Sector
Cambridgeshire County Council,27-Jul-17,23896922-15757999,-1317.11,Alderton House,Care Establishment,4 - Operations - Providers services,LDP E Cambs Special Needs,Residential Independent Sector
Cambridgeshire County Council,27-Jul-17,23896926-15758002,-1317.11,Alderton House,Care Establishment,4 - Operations - Providers services,LDP E Cambs Special Needs,Residential Independent Sector
Cambridgeshire County Council,27-Jul-17,23896931-15758007,-1317.11,Alderton House,Care Establishment,4 - Operations - Providers services,LDP E Cambs Special Needs,Residential Independent Sector
Cambridgeshire County Council,20-Jul-17,23851706-15716675,-1317.11,Alderton House,Care Establishment,4 - Operations - Providers services,LDP E Cambs Locality - Care,Residential Independent Sector
Cambridgeshire County Council,20-Jul-17,23851711-15716680,-1317.11,Alderton House,Care Establishment,4 - Operations - Providers services,LDP E Cambs Locality - Care,Residential Independent Sector
Cambridgeshire County Council,20-Jul-17,23851748-15716706,-1317.11,Alderton House,Care Establishment,4 - Operations - Providers services,LDP E Cambs Locality - Care,Residential Independent Sector
Cambridgeshire County Council,20-Jul-17,23858683-15716737,-1317.11,Alderton House,Care Establishment,4 - Operations - Providers services,LDP E Cambs Locality - Care,Residential Independent Sector
Cambridgeshire County Council,20-Jul-17,23858691-15716745,-1317.11,Alderton House,Care Establishment,4 - Operations - Providers services,LDP E Cambs Special Needs,Residential Independent Sector
Cambridgeshire County Council,20-Jul-17,23843710-15716554,-1317.11,Alderton House,Care Establishment,4 - Operations - Providers services,LDP E Cambs Special Needs,Residential Independent Sector
Cambridgeshire County Council,20-Jul-17,23850551-15716600,-1317.11,Alderton House,Care Establishment,4 - Operations - Providers services,LDP E Cambs Locality - Care,Residential Independent Sector
Cambridgeshire County Council,20-Jul-17,23851774-15716639,-1317.11,Alderton House,Care Establishment,4 - Operations - Providers services,LDP E Cambs Special Needs,Residential Independent Sector
Cambridgeshire County Council,20-Jul-17,23851667-15716649,-1317.11,Alderton House,Care Establishment,4 - Operations - Providers services,LDP E Cambs Special Needs,Residential Independent Sector
Cambridgeshire County Council,20-Jul-17,23851676-15716656,-1317.11,Alderton House,Care Establishment,4 - Operations - Providers services,LDP E Cambs Special Needs,Residential Independent Sector
Cambridgeshire County Council,27-Jul-17,23894360-15757834,-1317.11,Alderton House,Care Establishment,4 - Operations - Providers services,LDP E Cambs Special Needs,Residential Independent Sector
Cambridgeshire County Council,27-Jul-17,23894398-15757858,-1317.11,Alderton House,Care Establishment,4 - Operations - Providers services,LDP E Cambs Locality - Care,Residential Independent Sector
Cambridgeshire County Council,27-Jul-17,23894421-15757879,-1317.11,Alderton House,Care Establishment,4 - Operations - Providers services,LDP E Cambs Special Needs,Residential Independent Sector
Cambridgeshire County Council,27-Jul-17,23894441-15757895,-1317.11,Alderton House,Care Establishment,4 - Operations - Providers services,LDP E Cambs Special Needs,Residential Independent Sector
Cambridgeshire County Council,27-Jul-17,23894451-15757905,-1317.11,Alderton House,Care Establishment,4 - Operations - Providers services,LDP E Cambs Special Needs,Residential Independent Sector
Cambridgeshire County Council,27-Jul-17,23894488-15757937,-1317.11,Alderton House,Care Establishment,4 - Operations - Providers services,LDP E Cambs Special Needs,Residential Independent Sector
Cambridgeshire County Council,27-Jul-17,23894503-15757950,-1317.11,Alderton House,Care Establishment,4 - Operations - Providers services,LDP E Cambs Locality - Care,Residential Independent Sector
Cambridgeshire County Council,27-Jul-17,23894504-15757951,-1317.11,Alderton House,Care Establishment,4 - Operations - Providers services,LDP E Cambs Locality - Care,Residential Independent Sector
Cambridgeshire County Council,27-Jul-17,23894534-15757969,-1317.11,Alderton House,Care Establishment,4 - Operations - Providers services,LDP E Cambs Locality - Care,Residential Independent Sector
Cambridgeshire County Council,27-Jul-17,23894538-15757973,-1317.11,Alderton House,Care Establishment,4 - Operations - Providers services,LDP E Cambs Locality - Care,Residential Independent Sector
Cambridgeshire County Council,27-Jul-17,23896913-15757990,-1317.11,Alderton House,Care Establishment,4 - Operations - Providers services,LDP E Cambs Special Needs,Residential Independent Sector
Cambridgeshire County Council,27-Jul-17,23896933-15758009,-1317.11,Alderton House,Care Establishment,4 - Operations - Providers services,LDP E Cambs Locality - Care,Residential Independent Sector
Cambridgeshire County Council,27-Jul-17,23896943-15758017,-1317.11,Alderton House,Care Establishment,4 - Operations - Providers services,LDP E Cambs Locality - Care,Residential Independent Sector
Cambridgeshire County Council,20-Jul-17,23851684-15716661,-1317.11,Alderton House,Care Establishment,4 - Operations - Providers services,LDP E Cambs Locality - Care,Residential Independent Sector
Cambridgeshire County Council,20-Jul-17,23851697-15716668,-1317.11,Alderton House,Care Establishment,4 - Operations - Providers services,LDP E Cambs Locality - Care,Residential Independent Sector
Cambridgeshire County Council,20-Jul-17,23858666-15716722,-1317.11,Alderton House,Care Establishment,4 - Operations - Providers services,LDP E Cambs Locality - Care,Residential Independent Sector
Cambridgeshire County Council,20-Jul-17,23858673-15716729,-1317.11,Alderton House,Care Establishment,4 - Operations - Providers services,LDP E Cambs Special Needs,Residential Independent Sector
Cambridgeshire County Council,20-Jul-17,23858692-15716746,-1317.11,Alderton House,Care Establishment,4 - Operations - Providers services,LDP E Cambs Special Needs,Residential Independent Sector
Cambridgeshire County Council,20-Jul-17,23858698-15716750,-1317.11,Alderton House,Care Establishment,4 - Operations - Providers services,LDP E Cambs Locality - Care,Residential Independent Sector
Cambridgeshire County Council,20-Jul-17,23858700-15716752,-1317.11,Alderton House,Care Establishment,4 - Operations - Providers services,LDP E Cambs Special Needs,Residential Independent Sector
Cambridgeshire County Council,20-Jul-17,23858705-15716757,-1317.11,Alderton House,Care Establishment,4 - Operations - Providers services,LDP E Cambs Special Needs,Residential Independent Sector
Cambridgeshire County Council,20-Jul-17,23843693-15716543,-1317.11,Alderton House,Care Establishment,4 - Operations - Providers services,LDP E Cambs Special Needs,Residential Independent Sector
Cambridgeshire County Council,20-Jul-17,23843716-15716560,-1317.11,Alderton House,Care Establishment,4 - Operations - Providers services,LDP E Cambs Special Needs,Residential Independent Sector
Cambridgeshire County Council,20-Jul-17,23850554-15716603,-1317.11,Alderton House,Care Establishment,4 - Operations - Providers services,LDP E Cambs Special Needs,Residential Independent Sector
Cambridgeshire County Council,20-Jul-17,23850565-15716611,-1317.11,Alderton House,Care Establishment,4 - Operations - Providers services,LDP E Cambs Locality - Care,Residential Independent Sector
Cambridgeshire County Council,27-Jul-17,23894353-15757828,-1317.11,Alderton House,Care Establishment,4 - Operations - Providers services,LDP E Cambs Locality - Care,Residential Independent Sector
Cambridgeshire County Council,27-Jul-17,23894403-15757863,-1317.11,Alderton House,Care Establishment,4 - Operations - Providers services,LDP E Cambs Locality - Care,Residential Independent Sector
Cambridgeshire County Council,27-Jul-17,23894434-15757888,-1317.11,Alderton House,Care Establishment,4 - Operations - Providers services,LDP E Cambs Locality - Care,Residential Independent Sector
Cambridgeshire County Council,27-Jul-17,23894439-15757893,-1317.11,Alderton House,Care Establishment,4 - Operations - Providers services,LDP E Cambs Special Needs,Residential Independent Sector
Cambridgeshire County Council,27-Jul-17,23894465-15757917,-1317.11,Alderton House,Care Establishment,4 - Operations - Providers services,LDP E Cambs Locality - Care,Residential Independent Sector
Cambridgeshire County Council,27-Jul-17,23894482-15757932,-1317.11,Alderton House,Care Establishment,4 - Operations - Providers services,LDP E Cambs Locality - Care,Residential Independent Sector
Cambridgeshire County Council,27-Jul-17,23894537-15757972,-1317.11,Alderton House,Care Establishment,4 - Operations - Providers services,LDP E Cambs Locality - Care,Residential Independent Sector
Cambridgeshire County Council,27-Jul-17,23896898-15757977,-1317.11,Alderton House,Care Establishment,4 - Operations - Providers services,LDP E Cambs Locality - Care,Residential Independent Sector
Cambridgeshire County Council,27-Jul-17,23896903-15757980,-1317.11,Alderton House,Care Establishment,4 - Operations - Providers services,LDP E Cambs Special Needs,Residential Independent Sector
Cambridgeshire County Council,27-Jul-17,23896904-15757981,-1317.11,Alderton House,Care Establishment,4 - Operations - Providers services,LDP E Cambs Special Needs,Residential Independent Sector
Cambridgeshire County Council,27-Jul-17,23896910-15757987,-1317.11,Alderton House,Care Establishment,4 - Operations - Providers services,LDP E Cambs Locality - Care,Residential Independent Sector
Cambridgeshire County Council,20-Jul-17,23851677-15716657,-1317.11,Alderton House,Care Establishment,4 - Operations - Providers services,LDP E Cambs Locality - Care,Residential Independent Sector
Cambridgeshire County Council,20-Jul-17,23851700-15716671,-1317.11,Alderton House,Care Establishment,4 - Operations - Providers services,LDP E Cambs Locality - Care,Residential Independent Sector
Cambridgeshire County Council,20-Jul-17,23851710-15716679,-1317.11,Alderton House,Care Establishment,4 - Operations - Providers services,LDP E Cambs Special Needs,Residential Independent Sector
Cambridgeshire County Council,20-Jul-17,23851745-15716703,-1317.11,Alderton House,Care Establishment,4 - Operations - Providers services,LDP E Cambs Locality - Care,Residential Independent Sector
Cambridgeshire County Council,20-Jul-17,23851751-15716709,-1317.11,Alderton House,Care Establishment,4 - Operations - Providers services,LDP E Cambs Special Needs,Residential Independent Sector
Cambridgeshire County Council,20-Jul-17,23858668-15716724,-1317.11,Alderton House,Care Establishment,4 - Operations - Providers services,LDP E Cambs Locality - Care,Residential Independent Sector
Cambridgeshire County Council,20-Jul-17,23858674-15716730,-1317.11,Alderton House,Care Establishment,4 - Operations - Providers services,LDP E Cambs Locality - Care,Residential Independent Sector
Cambridgeshire County Council,20-Jul-17,23858685-15716739,-1317.11,Alderton House,Care Establishment,4 - Operations - Providers services,LDP E Cambs Locality - Care,Residential Independent Sector
Cambridgeshire County Council,20-Jul-17,23843690-15716540,-1317.11,Alderton House,Care Establishment,4 - Operations - Providers services,LDP E Cambs Locality - Care,Residential Independent Sector
Cambridgeshire County Council,20-Jul-17,23843717-15716561,-1317.11,Alderton House,Care Establishment,4 - Operations - Providers services,LDP E Cambs Locality - Care,Residential Independent Sector
Cambridgeshire County Council,20-Jul-17,23843722-15716562,-1317.11,Alderton House,Care Establishment,4 - Operations - Providers services,LDP E Cambs Special Needs,Residential Independent Sector
Cambridgeshire County Council,20-Jul-17,23843727-15716567,-1317.11,Alderton House,Care Establishment,4 - Operations - Providers services,LDP E Cambs Locality - Care,Residential Independent Sector
Cambridgeshire County Council,20-Jul-17,23850574-15716619,-1317.11,Alderton House,Care Establishment,4 - Operations - Providers services,LDP E Cambs Locality - Care,Residential Independent Sector
Cambridgeshire County Council,20-Jul-17,23850575-15716620,-1317.11,Alderton House,Care Establishment,4 - Operations - Providers services,LDP E Cambs Locality - Care,Residential Independent Sector
Cambridgeshire County Council,20-Jul-17,23850580-15716624,-1317.11,Alderton House,Care Establishment,4 - Operations - Providers services,LDP E Cambs Locality - Care,Residential Independent Sector
Cambridgeshire County Council,20-Jul-17,23850582-15716626,-1317.11,Alderton House,Care Establishment,4 - Operations - Providers services,LDP E Cambs Special Needs,Residential Independent Sector
Cambridgeshire County Council,20-Jul-17,23850583-15716627,-1317.11,Alderton House,Care Establishment,4 - Operations - Providers services,LDP E Cambs Special Needs,Residential Independent Sector
Cambridgeshire County Council,20-Jul-17,23851770-15716638,-1317.11,Alderton House,Care Establishment,4 - Operations - Providers services,LDP E Cambs Locality - Care,Residential Independent Sector
Cambridgeshire County Council,27-Jul-17,23894351-15757826,-1317.11,Alderton House,Care Establishment,4 - Operations - Providers services,LDP E Cambs Locality - Care,Residential Independent Sector
Cambridgeshire County Council,27-Jul-17,23894401-15757861,-1317.11,Alderton House,Care Establishment,4 - Operations - Providers services,LDP E Cambs Locality - Care,Residential Independent Sector
Cambridgeshire County Council,27-Jul-17,23894411-15757869,-1317.11,Alderton House,Care Establishment,4 - Operations - Providers services,LDP E Cambs Special Needs,Residential Independent Sector
Cambridgeshire County Council,27-Jul-17,23894449-15757903,-1317.11,Alderton House,Care Establishment,4 - Operations - Providers services,LDP E Cambs Special Needs,Residential Independent Sector
Cambridgeshire County Council,27-Jul-17,23894466-15757918,-1317.11,Alderton House,Care Establishment,4 - Operations - Providers services,LDP E Cambs Special Needs,Residential Independent Sector
Cambridgeshire County Council,27-Jul-17,23894471-15757923,-1317.11,Alderton House,Care Establishment,4 - Operations - Providers services,LDP E Cambs Special Needs,Residential Independent Sector
Cambridgeshire County Council,27-Jul-17,23894494-15757943,-1317.11,Alderton House,Care Establishment,4 - Operations - Providers services,LDP E Cambs Locality - Care,Residential Independent Sector
Cambridgeshire County Council,27-Jul-17,23894516-15757958,-1317.11,Alderton House,Care Establishment,4 - Operations - Providers services,LDP E Cambs Locality - Care,Residential Independent Sector
Cambridgeshire County Council,27-Jul-17,23896906-15757983,-1317.11,Alderton House,Care Establishment,4 - Operations - Providers services,LDP E Cambs Locality - Care,Residential Independent Sector
Cambridgeshire County Council,27-Jul-17,23896925-15758001,-1317.11,Alderton House,Care Establishment,4 - Operations - Providers services,LDP E Cambs Special Needs,Residential Independent Sector
Cambridgeshire County Council,27-Jul-17,23898687-15758038,-1317.11,Alderton House,Care Establishment,4 - Operations - Providers services,LDP E Cambs Locality - Care,Residential Independent Sector
Cambridgeshire County Council,27-Jul-17,23898689-15758040,-1317.11,Alderton House,Care Establishment,4 - Operations - Providers services,LDP E Cambs Locality - Care,Residential Independent Sector
Cambridgeshire County Council,20-Jul-17,23851689-15716666,-1317.11,Alderton House,Care Establishment,4 - Operations - Providers services,LDP E Cambs Locality - Care,Residential Independent Sector
Cambridgeshire County Council,20-Jul-17,23851698-15716669,-1317.11,Alderton House,Care Establishment,4 - Operations - Providers services,LDP E Cambs Special Needs,Residential Independent Sector
Cambridgeshire County Council,20-Jul-17,23851747-15716705,-1317.11,Alderton House,Care Establishment,4 - Operations - Providers services,LDP E Cambs Locality - Care,Residential Independent Sector
Cambridgeshire County Council,20-Jul-17,23843689-15716539,-1317.11,Alderton House,Care Establishment,4 - Operations - Providers services,LDP E Cambs Special Needs,Residential Independent Sector
Cambridgeshire County Council,20-Jul-17,23843696-15716544,-1317.11,Alderton House,Care Establishment,4 - Operations - Providers services,LDP E Cambs Special Needs,Residential Independent Sector
Cambridgeshire County Council,20-Jul-17,23843734-15716574,-1317.11,Alderton House,Care Establishment,4 - Operations - Providers services,LDP E Cambs Locality - Care,Residential Independent Sector
Cambridgeshire County Council,20-Jul-17,23843752-15716586,-1317.11,Alderton House,Care Establishment,4 - Operations - Providers services,LDP E Cambs Special Needs,Residential Independent Sector
Cambridgeshire County Council,20-Jul-17,23850550-15716599,-1317.11,Alderton House,Care Establishment,4 - Operations - Providers services,LDP E Cambs Locality - Care,Residential Independent Sector
Cambridgeshire County Council,20-Jul-17,23851665-15716647,-1317.11,Alderton House,Care Establishment,4 - Operations - Providers services,LDP E Cambs Locality - Care,Residential Independent Sector
Cambridgeshire County Council,20-Jul-17,23851671-15716653,-1317.11,Alderton House,Care Establishment,4 - Operations - Providers services,LDP E Cambs Special Needs,Residential Independent Sector
Cambridgeshire County Council,27-Jul-17,23894363-15757837,-1317.11,Alderton House,Care Establishment,4 - Operations - Providers services,LDP E Cambs Special Needs,Residential Independent Sector
Cambridgeshire County Council,27-Jul-17,23894381-15757847,-1317.11,Alderton House,Care Establishment,4 - Operations - Providers services,LDP E Cambs Special Needs,Residential Independent Sector
Cambridgeshire County Council,27-Jul-17,23894433-15757887,-1317.11,Alderton House,Care Establishment,4 - Operations - Providers services,LDP E Cambs Locality - Care,Residential Independent Sector
Cambridgeshire County Council,27-Jul-17,23894437-15757891,-1317.11,Alderton House,Care Establishment,4 - Operations - Providers services,LDP E Cambs Locality - Care,Residential Independent Sector
Cambridgeshire County Council,27-Jul-17,23894458-15757912,-1317.11,Alderton House,Care Establishment,4 - Operations - Providers services,LDP E Cambs Special Needs,Residential Independent Sector
Cambridgeshire County Council,27-Jul-17,23894462-15757914,-1317.11,Alderton House,Care Establishment,4 - Operations - Providers services,LDP E Cambs Locality - Care,Residential Independent Sector
Cambridgeshire County Council,27-Jul-17,23894487-15757936,-1317.11,Alderton House,Care Establishment,4 - Operations - Providers services,LDP E Cambs Special Needs,Residential Independent Sector
Cambridgeshire County Council,27-Jul-17,23894492-15757941,-1317.11,Alderton House,Care Establishment,4 - Operations - Providers services,LDP E Cambs Locality - Care,Residential Independent Sector
Cambridgeshire County Council,27-Jul-17,23894507-15757954,-1317.11,Alderton House,Care Establishment,4 - Operations - Providers services,LDP E Cambs Locality - Care,Residential Independent Sector
Cambridgeshire County Council,27-Jul-17,23894518-15757960,-1317.11,Alderton House,Care Establishment,4 - Operations - Providers services,LDP E Cambs Locality - Care,Residential Independent Sector
Cambridgeshire County Council,27-Jul-17,23896928-15758004,-1317.11,Alderton House,Care Establishment,4 - Operations - Providers services,LDP E Cambs Special Needs,Residential Independent Sector
Cambridgeshire County Council,27-Jul-17,23896942-15758016,-1317.11,Alderton House,Care Establishment,4 - Operations - Providers services,LDP E Cambs Locality - Care,Residential Independent Sector
Cambridgeshire County Council,27-Jul-17,23896944-15758018,-1317.11,Alderton House,Care Establishment,4 - Operations - Providers services,LDP E Cambs Locality - Care,Residential Independent Sector
Cambridgeshire County Council,27-Jul-17,23898682-15758033,-1317.11,Alderton House,Care Establishment,4 - Operations - Providers services,LDP E Cambs Locality - Care,Residential Independent Sector
Cambridgeshire County Council,27-Jul-17,23898683-15758034,-1317.11,Alderton House,Care Establishment,4 - Operations - Providers services,LDP E Cambs Special Needs,Residential Independent Sector
Cambridgeshire County Council,27-Jul-17,23898684-15758035,-1317.11,Alderton House,Care Establishment,4 - Operations - Providers services,LDP E Cambs Locality - Care,Residential Independent Sector
Cambridgeshire County Council,20-Jul-17,23851728-15716689,-1317.11,Alderton House,Care Establishment,4 - Operations - Providers services,LDP E Cambs Locality - Care,Residential Independent Sector
Cambridgeshire County Council,20-Jul-17,23851732-15716693,-1317.11,Alderton House,Care Establishment,4 - Operations - Providers services,LDP E Cambs Special Needs,Residential Independent Sector
Cambridgeshire County Council,20-Jul-17,23858669-15716725,-1317.11,Alderton House,Care Establishment,4 - Operations - Providers services,LDP E Cambs Special Needs,Residential Independent Sector
Cambridgeshire County Council,20-Jul-17,23843700-15716548,-1317.11,Alderton House,Care Establishment,4 - Operations - Providers services,LDP E Cambs Locality - Care,Residential Independent Sector
Cambridgeshire County Council,20-Jul-17,23843704-15716552,-1317.11,Alderton House,Care Establishment,4 - Operations - Providers services,LDP E Cambs Locality - Care,Residential Independent Sector
Cambridgeshire County Council,20-Jul-17,23843737-15716575,-1317.11,Alderton House,Care Establishment,4 - Operations - Providers services,LDP E Cambs Special Needs,Residential Independent Sector
Cambridgeshire County Council,20-Jul-17,23843746-15716580,-1317.11,Alderton House,Care Establishment,4 - Operations - Providers services,LDP E Cambs Special Needs,Residential Independent Sector
Cambridgeshire County Council,20-Jul-17,23850585-15716629,-1317.11,Alderton House,Care Establishment,4 - Operations - Providers services,LDP E Cambs Special Needs,Residential Independent Sector
Cambridgeshire County Council,27-Jul-17,23894371-15757842,-1317.11,Alderton House,Care Establishment,4 - Operations - Providers services,LDP E Cambs Special Needs,Residential Independent Sector
Cambridgeshire County Council,27-Jul-17,23894380-15757846,-1317.11,Alderton House,Care Establishment,4 - Operations - Providers services,LDP E Cambs Locality - Care,Residential Independent Sector
Cambridgeshire County Council,27-Jul-17,23894392-15757855,-1317.11,Alderton House,Care Establishment,4 - Operations - Providers services,LDP E Cambs Locality - Care,Residential Independent Sector
Cambridgeshire County Council,27-Jul-17,23894419-15757877,-1317.11,Alderton House,Care Establishment,4 - Operations - Providers services,LDP E Cambs Locality - Care,Residential Independent Sector
Cambridgeshire County Council,27-Jul-17,23894420-15757878,-1317.11,Alderton House,Care Establishment,4 - Operations - Providers services,LDP E Cambs Special Needs,Residential Independent Sector
Cambridgeshire County Council,27-Jul-17,23894432-15757886,-1317.11,Alderton House,Care Establishment,4 - Operations - Providers services,LDP E Cambs Special Needs,Residential Independent Sector
Cambridgeshire County Council,27-Jul-17,23894490-15757939,-1317.11,Alderton House,Care Establishment,4 - Operations - Providers services,LDP E Cambs Special Needs,Residential Independent Sector
Cambridgeshire County Council,27-Jul-17,23894502-15757949,-1317.11,Alderton House,Care Establishment,4 - Operations - Providers services,LDP E Cambs Special Needs,Residential Independent Sector
Cambridgeshire County Council,27-Jul-17,23894536-15757971,-1317.11,Alderton House,Care Establishment,4 - Operations - Providers services,LDP E Cambs Special Needs,Residential Independent Sector
Cambridgeshire County Council,27-Jul-17,23896921-15757998,-1317.11,Alderton House,Care Establishment,4 - Operations - Providers services,LDP E Cambs Locality - Care,Residential Independent Sector
Cambridgeshire County Council,27-Jul-17,23896929-15758005,-1317.11,Alderton House,Care Establishment,4 - Operations - Providers services,LDP E Cambs Special Needs,Residential Independent Sector
Cambridgeshire County Council,27-Jul-17,23896932-15758008,-1317.11,Alderton House,Care Establishment,4 - Operations - Providers services,LDP E Cambs Special Needs,Residential Independent Sector
Cambridgeshire County Council,27-Jul-17,23896947-15758021,-1317.11,Alderton House,Care Establishment,4 - Operations - Providers services,LDP E Cambs Special Needs,Residential Independent Sector
Cambridgeshire County Council,27-Jul-17,23896950-15758024,-1317.11,Alderton House,Care Establishment,4 - Operations - Providers services,LDP E Cambs Special Needs,Residential Independent Sector
Cambridgeshire County Council,27-Jul-17,23896956-15758030,-1317.11,Alderton House,Care Establishment,4 - Operations - Providers services,LDP E Cambs Special Needs,Residential Independent Sector
Cambridgeshire County Council,06-Jul-17,23721831-15641524,-1286.28,Home Meadow Ltd,Care Establishment,2 - Commissioning - Older people Pool,OP Blocks - Care Placements,Residential Independent Sector
Cambridgeshire County Council,20-Jul-17,23632173-15710844,-1266.59,2 Cheveril Lane (Voyage),Care Establishment,2 - Operations - Learning Disability,LDP Hunts special needs,Supported Living
Cambridgeshire County Council,20-Jul-17,23632161-15710852,-1266.59,2 Cheveril Lane (Voyage),Care Establishment,2 - Operations - Learning Disability,LDP Hunts special needs,Supported Living
Cambridgeshire County Council,20-Jul-17,23632164-15710855,-1266.59,2 Cheveril Lane (Voyage),Care Establishment,2 - Operations - Learning Disability,LDP Hunts special needs,Supported Living
Cambridgeshire County Council,20-Jul-17,23632167-15710858,-1266.59,2 Cheveril Lane (Voyage),Care Establishment,2 - Operations - Learning Disability,LDP Hunts special needs,Supported Living
Cambridgeshire County Council,20-Jul-17,23721931-15710869,-1266.59,2 Cheveril Lane (Voyage),Care Establishment,2 - Operations - Learning Disability,LDP Hunts special needs,Supported Living
Cambridgeshire County Council,20-Jul-17,23725451-15710877,-1266.59,2 Cheveril Lane (Voyage),Care Establishment,2 - Operations - Learning Disability,LDP Hunts special needs,Supported Living
Cambridgeshire County Council,20-Jul-17,23803544-15710883,-1266.59,2 Cheveril Lane (Voyage),Care Establishment,2 - Operations - Learning Disability,LDP Hunts special needs,Supported Living
Cambridgeshire County Council,20-Jul-17,23846267-15710927,-1266.59,2 Cheveril Lane (Voyage),Care Establishment,2 - Operations - Learning Disability,LDP Hunts special needs,Supported Living
Cambridgeshire County Council,20-Jul-17,23632160-15710851,-1266.59,2 Cheveril Lane (Voyage),Care Establishment,4 - Operations - Providers services,LDP Huntingdonshire Locality - Care,Supported Living
Cambridgeshire County Council,20-Jul-17,23632169-15710860,-1266.59,2 Cheveril Lane (Voyage),Care Establishment,2 - Operations - Learning Disability,LDP Hunts special needs,Supported Living
Cambridgeshire County Council,20-Jul-17,23721932-15710870,-1266.59,2 Cheveril Lane (Voyage),Care Establishment,4 - Operations - Providers services,LDP Huntingdonshire Locality - Care,Supported Living
Cambridgeshire County Council,20-Jul-17,23725456-15710882,-1266.59,2 Cheveril Lane (Voyage),Care Establishment,2 - Operations - Learning Disability,LDP Hunts special needs,Supported Living
Cambridgeshire County Council,20-Jul-17,23845270-15710909,-1266.59,2 Cheveril Lane (Voyage),Care Establishment,2 - Operations - Learning Disability,LDP Hunts special needs,Supported Living
Cambridgeshire County Council,20-Jul-17,23632166-15710857,-1266.59,2 Cheveril Lane (Voyage),Care Establishment,2 - Operations - Learning Disability,LDP Hunts special needs,Supported Living
Cambridgeshire County Council,20-Jul-17,23803557-15710896,-1266.59,2 Cheveril Lane (Voyage),Care Establishment,2 - Operations - Learning Disability,LDP Hunts special needs,Supported Living
Cambridgeshire County Council,20-Jul-17,23803558-15710897,-1266.59,2 Cheveril Lane (Voyage),Care Establishment,2 - Operations - Learning Disability,LDP Hunts special needs,Supported Living
Cambridgeshire County Council,20-Jul-17,23803561-15710900,-1266.59,2 Cheveril Lane (Voyage),Care Establishment,4 - Operations - Providers services,LDP Huntingdonshire Locality - Care,Supported Living
Cambridgeshire County Council,20-Jul-17,23805986-15710901,-1266.59,2 Cheveril Lane (Voyage),Care Establishment,4 - Operations - Providers services,LDP Huntingdonshire Locality - Care,Supported Living
Cambridgeshire County Council,20-Jul-17,23853329-15710931,-1266.59,2 Cheveril Lane (Voyage),Care Establishment,4 - Operations - Providers services,LDP Huntingdonshire Locality - Care,Supported Living
Cambridgeshire County Council,20-Jul-17,23632168-15710859,-1266.59,2 Cheveril Lane (Voyage),Care Establishment,2 - Operations - Learning Disability,LDP Hunts special needs,Supported Living
Cambridgeshire County Council,20-Jul-17,23721926-15710864,-1266.59,2 Cheveril Lane (Voyage),Care Establishment,4 - Operations - Providers services,LDP Huntingdonshire Locality - Care,Supported Living
Cambridgeshire County Council,20-Jul-17,23721927-15710865,-1266.59,2 Cheveril Lane (Voyage),Care Establishment,2 - Operations - Learning Disability,LDP Hunts special needs,Supported Living
Cambridgeshire County Council,20-Jul-17,23721929-15710867,-1266.59,2 Cheveril Lane (Voyage),Care Establishment,2 - Operations - Learning Disability,LDP Hunts special needs,Supported Living
Cambridgeshire County Council,20-Jul-17,23845273-15710912,-1266.59,2 Cheveril Lane (Voyage),Care Establishment,4 - Operations - Providers services,LDP Huntingdonshire Locality - Care,Supported Living
Cambridgeshire County Council,20-Jul-17,23846268-15710928,-1266.59,2 Cheveril Lane (Voyage),Care Establishment,2 - Operations - Learning Disability,LDP Hunts special needs,Supported Living
Cambridgeshire County Council,20-Jul-17,23853337-15710938,-1266.59,2 Cheveril Lane (Voyage),Care Establishment,4 - Operations - Providers services,LDP Huntingdonshire Locality - Care,Supported Living
Cambridgeshire County Council,20-Jul-17,23803548-15710887,-1266.59,2 Cheveril Lane (Voyage),Care Establishment,4 - Operations - Providers services,LDP Huntingdonshire Locality - Care,Supported Living
Cambridgeshire County Council,20-Jul-17,23803552-15710891,-1266.59,2 Cheveril Lane (Voyage),Care Establishment,4 - Operations - Providers services,LDP Huntingdonshire Locality - Care,Supported Living
Cambridgeshire County Council,20-Jul-17,23846266-15710926,-1266.59,2 Cheveril Lane (Voyage),Care Establishment,4 - Operations - Providers services,LDP Huntingdonshire Locality - Care,Supported Living
Cambridgeshire County Council,20-Jul-17,23632165-15710856,-1266.59,2 Cheveril Lane (Voyage),Care Establishment,2 - Operations - Learning Disability,LDP Hunts special needs,Supported Living
Cambridgeshire County Council,20-Jul-17,23721934-15710872,-1266.59,2 Cheveril Lane (Voyage),Care Establishment,2 - Operations - Learning Disability,LDP Hunts special needs,Supported Living
Cambridgeshire County Council,20-Jul-17,23803559-15710898,-1266.59,2 Cheveril Lane (Voyage),Care Establishment,4 - Operations - Providers services,LDP Huntingdonshire Locality - Care,Supported Living
Cambridgeshire County Council,20-Jul-17,23803560-15710899,-1266.59,2 Cheveril Lane (Voyage),Care Establishment,2 - Operations - Learning Disability,LDP Hunts special needs,Supported Living
Cambridgeshire County Council,20-Jul-17,23725450-15710876,-1266.59,2 Cheveril Lane (Voyage),Care Establishment,2 - Operations - Learning Disability,LDP Hunts special needs,Supported Living
Cambridgeshire County Council,20-Jul-17,23845274-15710913,-1266.59,2 Cheveril Lane (Voyage),Care Establishment,2 - Operations - Learning Disability,LDP Hunts special needs,Supported Living
Cambridgeshire County Council,20-Jul-17,23853327-15710929,-1266.59,2 Cheveril Lane (Voyage),Care Establishment,2 - Operations - Learning Disability,LDP Hunts special needs,Supported Living
Cambridgeshire County Council,20-Jul-17,23839407-15713630,-1235.9,Thera East Anglia,Care Establishment,4 - Operations - Providers services,LDP E Cambs Locality - Care,Supported Living
Cambridgeshire County Council,06-Jul-17,23722541-15641479,-1217.43,Home Close Ltd,Care Establishment,2 - Commissioning - Older people Pool,OP Blocks - Care Placements,Residential Independent Sector
Cambridgeshire County Council,06-Jul-17,23721770-15641473,-1217.43,Home Close Ltd,Care Establishment,2 - Commissioning - Older people Pool,OP Blocks - Care Placements,Residential Independent Sector
Cambridgeshire County Council,06-Jul-17,23717643-15641513,-1217.43,Home Close Ltd,Care Establishment,2 - Commissioning - Older people Pool,OP Blocks - Care Placements,Residential Independent Sector
Cambridgeshire County Council,06-Jul-17,23722675-15641519,-1217.43,Home Close Ltd,Care Establishment,2 - Commissioning - Older people Pool,OP Blocks - Care Placements,Residential Independent Sector
Cambridgeshire County Council,06-Jul-17,23725165-15641489,-1217.43,Home Close Ltd,Care Establishment,2 - Commissioning - Older people Pool,OP Blocks - Care Placements,Residential Independent Sector
Cambridgeshire County Council,06-Jul-17,23717739-15641506,-1217.43,Home Close Ltd,Care Establishment,2 - Commissioning - Older people Pool,OP Blocks - Care Placements,Residential Independent Sector
Cambridgeshire County Council,06-Jul-17,23725265-15641520,-1217.43,Home Close Ltd,Care Establishment,2 - Commissioning - Older people Pool,OP Blocks - Care Placements,Residential Independent Sector
Cambridgeshire County Council,06-Jul-17,23717641-15641511,-1217.43,Home Close Ltd,Care Establishment,2 - Commissioning - Older people Pool,OP Blocks - Care Placements,Residential Independent Sector
Cambridgeshire County Council,06-Jul-17,23722542-15641480,-1217.43,Home Close Ltd,Care Establishment,2 - Commissioning - Older people Pool,OP Blocks - Care Placements,Residential Independent Sector
Cambridgeshire County Council,06-Jul-17,23727676-15641498,-1217.43,Home Close Ltd,Care Establishment,2 - Commissioning - Older people Pool,OP Blocks - Care Placements,Residential Independent Sector
Cambridgeshire County Council,06-Jul-17,23717517-15641507,-1217.43,Home Close Ltd,Care Establishment,2 - Commissioning - Older people Pool,OP Blocks - Care Placements,Residential Independent Sector
Cambridgeshire County Council,20-Jul-17,23860254-15714319,-1209.31,Thera East Anglia,Care Establishment,4 - Operations - Providers services,LDP E Cambs Locality - Care,Supported Living
Cambridgeshire County Council,20-Jul-17,23858234-15727454,-1200,Hft Trust Ltd,Trust (Other),4 - Operations - Providers services,LDP Huntingdonshire Locality - Care,Supported Living
Cambridgeshire County Council,20-Jul-17,23858236-15727456,-1200,Hft Trust Ltd,Trust (Other),4 - Operations - Providers services,LDP Huntingdonshire Locality - Care,Supported Living
Cambridgeshire County Council,20-Jul-17,23858242-15727462,-1200,Hft Trust Ltd,Trust (Other),4 - Operations - Providers services,LDP Huntingdonshire Locality - Care,Supported Living
Cambridgeshire County Council,20-Jul-17,23858244-15727464,-1200,Hft Trust Ltd,Trust (Other),4 - Operations - Providers services,LDP Huntingdonshire Locality - Care,Supported Living
Cambridgeshire County Council,06-Jul-17,23639165-15648859,-1198.04,Caretech Community Services,Care Establishment,4 - Operations - Providers services,LDP South Cambs - Special Needs,Residential Independent Sector
Cambridgeshire County Council,06-Jul-17,23639169-15648863,-1198.04,Caretech Community Services,Care Establishment,4 - Operations - Providers services,LDP South Cambs - Special Needs,Residential Independent Sector
Cambridgeshire County Council,06-Jul-17,23639178-15648872,-1198.04,Caretech Community Services,Care Establishment,4 - Operations - Providers services,LDP South Cambs - Special Needs,Residential Independent Sector
Cambridgeshire County Council,06-Jul-17,23726482-15648957,-1198.04,Caretech Community Services,Care Establishment,4 - Operations - Providers services,LDP South Cambs - Special Needs,Residential Independent Sector
Cambridgeshire County Council,06-Jul-17,23726436-15648911,-1198.04,Caretech Community Services,Care Establishment,2 - Operations - Learning Disability,LDP South Cambs Locality - Care,Residential Independent Sector
Cambridgeshire County Council,06-Jul-17,23726443-15648918,-1198.04,Caretech Community Services,Care Establishment,2 - Operations - Learning Disability,LDP South Cambs Locality - Care,Residential Independent Sector
Cambridgeshire County Council,06-Jul-17,23726452-15648927,-1198.04,Caretech Community Services,Care Establishment,4 - Operations - Providers services,LDP South Cambs - Special Needs,Residential Independent Sector
Cambridgeshire County Council,06-Jul-17,23726460-15648935,-1198.04,Caretech Community Services,Care Establishment,2 - Operations - Learning Disability,LDP South Cambs Locality - Care,Residential Independent Sector
Cambridgeshire County Council,06-Jul-17,23726462-15648937,-1198.04,Caretech Community Services,Care Establishment,2 - Operations - Learning Disability,LDP South Cambs Locality - Care,Residential Independent Sector
Cambridgeshire County Council,06-Jul-17,23641668-15648832,-1198.04,Caretech Community Services,Care Establishment,2 - Operations - Learning Disability,LDP South Cambs Locality - Care,Residential Independent Sector
Cambridgeshire County Council,06-Jul-17,23641677-15648841,-1198.04,Caretech Community Services,Care Establishment,4 - Operations - Providers services,LDP South Cambs - Special Needs,Residential Independent Sector
Cambridgeshire County Council,06-Jul-17,23639152-15648846,-1198.04,Caretech Community Services,Care Establishment,2 - Operations - Learning Disability,LDP South Cambs Locality - Care,Residential Independent Sector
Cambridgeshire County Council,06-Jul-17,23639159-15648853,-1198.04,Caretech Community Services,Care Establishment,2 - Operations - Learning Disability,LDP South Cambs Locality - Care,Residential Independent Sector
Cambridgeshire County Council,13-Jul-17,23805294-15676642,-1198.04,Caretech Community Services,Care Establishment,4 - Operations - Providers services,LDP South Cambs - Special Needs,Residential Independent Sector
Cambridgeshire County Council,13-Jul-17,23805319-15676670,-1198.04,Caretech Community Services,Care Establishment,4 - Operations - Providers services,LDP South Cambs - Special Needs,Residential Independent Sector
Cambridgeshire County Council,20-Jul-17,23854173-15713436,-1198.04,Caretech Community Services,Care Establishment,2 - Operations - Learning Disability,LDP South Cambs Locality - Care,Residential Independent Sector
Cambridgeshire County Council,20-Jul-17,23854175-15713438,-1198.04,Caretech Community Services,Care Establishment,4 - Operations - Providers services,LDP South Cambs - Special Needs,Residential Independent Sector
Cambridgeshire County Council,20-Jul-17,23854177-15713440,-1198.04,Caretech Community Services,Care Establishment,4 - Operations - Providers services,LDP South Cambs - Special Needs,Residential Independent Sector
Cambridgeshire County Council,20-Jul-17,23861256-15713465,-1198.04,Caretech Community Services,Care Establishment,4 - Operations - Providers services,LDP South Cambs - Special Needs,Residential Independent Sector
Cambridgeshire County Council,20-Jul-17,23861264-15713473,-1198.04,Caretech Community Services,Care Establishment,4 - Operations - Providers services,LDP South Cambs - Special Needs,Residential Independent Sector
Cambridgeshire County Council,20-Jul-17,23861278-15713487,-1198.04,Caretech Community Services,Care Establishment,2 - Operations - Learning Disability,LDP South Cambs Locality - Care,Residential Independent Sector
Cambridgeshire County Council,27-Jul-17,23899220-15758741,-1198.04,Caretech Community Services,Care Establishment,2 - Operations - Learning Disability,LDP South Cambs Locality - Care,Residential Independent Sector
Cambridgeshire County Council,27-Jul-17,23899221-15758742,-1198.04,Caretech Community Services,Care Establishment,2 - Operations - Learning Disability,LDP South Cambs Locality - Care,Residential Independent Sector
Cambridgeshire County Council,06-Jul-17,23639172-15648866,-1198.04,Caretech Community Services,Care Establishment,4 - Operations - Providers services,LDP South Cambs - Special Needs,Residential Independent Sector
Cambridgeshire County Council,06-Jul-17,23639177-15648871,-1198.04,Caretech Community Services,Care Establishment,2 - Operations - Learning Disability,LDP South Cambs Locality - Care,Residential Independent Sector
Cambridgeshire County Council,06-Jul-17,23726439-15648914,-1198.04,Caretech Community Services,Care Establishment,4 - Operations - Providers services,LDP South Cambs - Special Needs,Residential Independent Sector
Cambridgeshire County Council,06-Jul-17,23726457-15648932,-1198.04,Caretech Community Services,Care Establishment,2 - Operations - Learning Disability,LDP South Cambs Locality - Care,Residential Independent Sector
Cambridgeshire County Council,06-Jul-17,23726467-15648942,-1198.04,Caretech Community Services,Care Establishment,2 - Operations - Learning Disability,LDP South Cambs Locality - Care,Residential Independent Sector
Cambridgeshire County Council,06-Jul-17,23641676-15648840,-1198.04,Caretech Community Services,Care Establishment,4 - Operations - Providers services,LDP South Cambs - Special Needs,Residential Independent Sector
Cambridgeshire County Council,13-Jul-17,23805300-15676651,-1198.04,Caretech Community Services,Care Establishment,4 - Operations - Providers services,LDP South Cambs - Special Needs,Residential Independent Sector
Cambridgeshire County Council,13-Jul-17,23805307-15676658,-1198.04,Caretech Community Services,Care Establishment,4 - Operations - Providers services,LDP South Cambs - Special Needs,Residential Independent Sector
Cambridgeshire County Council,13-Jul-17,23805311-15676662,-1198.04,Caretech Community Services,Care Establishment,4 - Operations - Providers services,LDP South Cambs - Special Needs,Residential Independent Sector
Cambridgeshire County Council,13-Jul-17,23805312-15676663,-1198.04,Caretech Community Services,Care Establishment,2 - Operations - Learning Disability,LDP South Cambs Locality - Care,Residential Independent Sector
Cambridgeshire County Council,13-Jul-17,23805320-15676671,-1198.04,Caretech Community Services,Care Establishment,2 - Operations - Learning Disability,LDP South Cambs Locality - Care,Residential Independent Sector
Cambridgeshire County Council,13-Jul-17,23805328-15676679,-1198.04,Caretech Community Services,Care Establishment,2 - Operations - Learning Disability,LDP South Cambs Locality - Care,Residential Independent Sector
Cambridgeshire County Council,20-Jul-17,23854162-15713425,-1198.04,Caretech Community Services,Care Establishment,4 - Operations - Providers services,LDP South Cambs - Special Needs,Residential Independent Sector
Cambridgeshire County Council,20-Jul-17,23861282-15713460,-1198.04,Caretech Community Services,Care Establishment,4 - Operations - Providers services,LDP South Cambs - Special Needs,Residential Independent Sector
Cambridgeshire County Council,20-Jul-17,23861276-15713485,-1198.04,Caretech Community Services,Care Establishment,2 - Operations - Learning Disability,LDP South Cambs Locality - Care,Residential Independent Sector
Cambridgeshire County Council,27-Jul-17,23899212-15758733,-1198.04,Caretech Community Services,Care Establishment,2 - Operations - Learning Disability,LDP South Cambs Locality - Care,Residential Independent Sector
Cambridgeshire County Council,27-Jul-17,23899213-15758734,-1198.04,Caretech Community Services,Care Establishment,2 - Operations - Learning Disability,LDP South Cambs Locality - Care,Residential Independent Sector
Cambridgeshire County Council,27-Jul-17,23899218-15758739,-1198.04,Caretech Community Services,Care Establishment,4 - Operations - Providers services,LDP South Cambs - Special Needs,Residential Independent Sector
Cambridgeshire County Council,27-Jul-17,23899226-15758747,-1198.04,Caretech Community Services,Care Establishment,4 - Operations - Providers services,LDP South Cambs - Special Needs,Residential Independent Sector
Cambridgeshire County Council,27-Jul-17,23899236-15758757,-1198.04,Caretech Community Services,Care Establishment,2 - Operations - Learning Disability,LDP South Cambs Locality - Care,Residential Independent Sector
Cambridgeshire County Council,27-Jul-17,23899240-15758761,-1198.04,Caretech Community Services,Care Establishment,2 - Operations - Learning Disability,LDP South Cambs Locality - Care,Residential Independent Sector
Cambridgeshire County Council,27-Jul-17,23899265-15758786,-1198.04,Caretech Community Services,Care Establishment,4 - Operations - Providers services,LDP South Cambs - Special Needs,Residential Independent Sector
Cambridgeshire County Council,06-Jul-17,23639173-15648867,-1198.04,Caretech Community Services,Care Establishment,2 - Operations - Learning Disability,LDP South Cambs Locality - Care,Residential Independent Sector
Cambridgeshire County Council,06-Jul-17,23726468-15648943,-1198.04,Caretech Community Services,Care Establishment,4 - Operations - Providers services,LDP South Cambs - Special Needs,Residential Independent Sector
Cambridgeshire County Council,06-Jul-17,23641672-15648836,-1198.04,Caretech Community Services,Care Establishment,4 - Operations - Providers services,LDP South Cambs - Special Needs,Residential Independent Sector
Cambridgeshire County Council,13-Jul-17,23805282-15676630,-1198.04,Caretech Community Services,Care Establishment,4 - Operations - Providers services,LDP South Cambs - Special Needs,Residential Independent Sector
Cambridgeshire County Council,13-Jul-17,23805335-15676647,-1198.04,Caretech Community Services,Care Establishment,2 - Operations - Learning Disability,LDP South Cambs Locality - Care,Residential Independent Sector
Cambridgeshire County Council,13-Jul-17,23805299-15676650,-1198.04,Caretech Community Services,Care Establishment,4 - Operations - Providers services,LDP South Cambs - Special Needs,Residential Independent Sector
